﻿fille_objet;libelle_departement;fille_localisation_libelle;fille_identifiant_operation;pere_identifiant_operation;fille_montant_subventionnable;fille_montant_vote;montant_mandate;fille_insee;fille_att_nom_tiers;fille_sess_date_session_initiale;fille_numero_demande_portail;montant_te;nom_epci;objectid;st_length_shape;dep_epci;st_area_shape;date;gml_id;ctr_nom;etiq_epci;type;code_insee;code_departement;fille_numero_dossier_courant;localisation;date_racc;id_commun
La réalisation d'un terrain de football synthétique à Derval - CTR 2020 - CC Châteaubriant Derval;Loire-Atlantique;DERVAL;17I09767;17I04914;861590;225000;225000;44051;COMMUNE DE DERVAL;2017-11-17;00041026;0;Châteaubriant-Derval;19;192160.53583929;44;884476807.089572;Mai 2017;sig.territoires.pdl_ctr.19;Communauté de communes Châteaubriant Derval;Châteaubriant-Derval;CTR;44051;44;2017_09907;47.6576802483, -1.67772975598;05/2017;114
L'extension et la réhabilitation de l'école Françoise Dolto;Loire-Atlantique;MISSILLAC;17I09763;17I06805;2816915;96060;96060;44098;COMMUNE DE MISSILLAC;2017-11-17;00036938;0;Pays de Pontchâteau St Gildas des Bois;1;130121.86476614;44;327059918.271195;Juillet 2017;sig.territoires.pdl_ctr.1;Communauté de communes de Pont Château Saint Gildas des Bois;Pays de Pontchâteau St Gildas des Bois;CTR;44098;44;2017_09945_00;47.4881482821, -2.17765365439;07/2017;115
L'aménagement et la sécurisation des rues du Petit chemin des Sables, rue des Sables, Chemin des Forges, du Puits Donné et de l'Abbaye - CTR 2020 - CA Pornic Coeur Pays de Retz;;;17I10802;17I08233;104842;46300;46300;;COMMUNE DES MOUTIERS EN RETZ;2017-11-17;00036919;;Pornic Agglo Pays de Retz;33;137060.38656142;44;451066582.29291;Septembre 2017;sig.territoires.pdl_ctr.33;Communauté d'Agglomération de Pornic Cœur Pays de Retz;Pornic Agglo Pays de Retz;CTR;;;2017_09928_00;;09/2017;127
la maison de santé pluridisciplinaire et multisite à Rocheservière (CTR 2020 CC Terre de Montaigu - CC Montaigu Rocheservière);Vendée;ROCHESERVIERE;17I09590;17I08583;1480000;300000;300000;85190;TERRES DE MONTAIGU COMMUNAUTE D AGGLOMERATION;2017-11-17;85000147;0;Terres-de-Montaigu;38;167747.72730024;85;383219163.87398;Septembre 2017;sig.territoires.pdl_ctr.38;Terres de Montaigu - Montaigu Rocheservière;Terres-de-Montaigu;CTR;85190;85;2017_09999;46.9274273036, -1.50132208111;09/2017;92
L'aménagement des locaux du centre administratif intercommunal-CTR-Région 2020 de la Communauté de Communes du Pays de Craon;Mayenne;CRAON;17I09652;17I09006;166000;50000;50000;53084;CC DU PAYS DE CRAON;2017-11-17;00039872;0;Pays de Craon;62;169901.29669863;53;646041148.74744;Septembre 2017;sig.territoires.pdl_ctr.62;Pays de Craon;Pays de Craon;CTR;53084;53;2017_10073;47.8454412251, -0.943066490216;09/2017;77
la création - développement d'un magasin de producteurs - CTR 2020 du Pays Vallée de la Sarthe;Sarthe;MAREIL-EN-CHAMPAGNE;18I00948;17I09880;25827;10000;10000;72184;LA CABANE DES PRODUCTEURS;2018-02-16;00039460;0;CC Loué - Brûlon - Noyen;52;226944.40757679;72;1117349894.39695;Novembre 2017;sig.territoires.pdl_ctr.52;Pays Vallée de la Sarthe;Pays Vallée de la Sarthe;CTR;72184;72;2018_00993;47.980608006, -0.17895750019;11/2017;74
Les abords du pôle santé- CTR 2020 de Mayenne Communauté;Mayenne;MAYENNE;18I00888;18I00723;765973;497882;497882;53147;MAYENNE COMMUNAUTE;2018-02-16;00041067;0;Mayenne Communauté;3;193726.21308398;53;626754357.991273;Février 2018;sig.territoires.pdl_ctr.3;Mayenne Communauté;Mayenne Communauté;CTR;53147;53;2018_00990;48.3074609449, -0.614799950799;02/2018;79
la signalétique des zones d'activitéss- CRAON -53-CTR 2020 de la  CC DU PAYS DE CRAON;Mayenne;CRAON;19I00449;17I09006;58694;40000;40000;53084;CC DU PAYS DE CRAON;2018-04-20;00041009;0;Pays de Craon;62;169901.29669863;53;646041148.74744;Septembre 2017;sig.territoires.pdl_ctr.62;Pays de Craon;Pays de Craon;CTR;53084;53;2018_04466_00;47.8454412251, -0.943066490216;09/2017;77
La construction d'un Dojo - CTR 2020 - Communauté de communes Sud Estuaire;Loire-Atlantique;SAINT-PERE-EN-RETZ;18I03760;17I09761;1650000;105313;105313;44187;COMMUNE DE SAINT PERE EN RETZ;2018-04-20;00044196;0;Sud Estuaire;40;69676.17445778;44;202807972.29704;Novembre 2017;sig.territoires.pdl_ctr.40;Sud Estuaire;Sud Estuaire;CTR;44187;44;2018_04391;47.2253813658, -2.06604710896;11/2017;128
L'aménagement de l'avenue des sports, de la rue Georges Bonnet et de la rue du Sillon - CTR 2020 - ESTUAIRE ET SILLON;Loire-Atlantique;LE TEMPLE-DE-BRETAGNE;18I05635;17I09760;832000;47890;47890;44203;COMMUNE DU TEMPLE DE BRETAGNE;2018-05-25;00040080;0;Estuaire et Sillon;61;112337.65867316;44;313121598.740399;Novembre 2017;sig.territoires.pdl_ctr.61;Communauté de communes d'Estuaire et Sillon;Estuaire et Sillon;CTR;44203;44;2018_06771;47.3284386017, -1.79041386059;11/2017;129
44 - SUD ESTUAIRE - COMMUNE DE SAINT-BREVIN-LES-PINS - Restructuration de la Place Baslé;Loire-Atlantique;SAINT-BREVIN-LES-PINS;18I05637;17I09761;2290431;386764;386764;44154;COMMUNE DE SAINT BREVIN LES PINS;2018-05-25;00039834;0;Sud Estuaire;40;69676.17445778;44;202807972.29704;Novembre 2017;sig.territoires.pdl_ctr.40;Sud Estuaire;Sud Estuaire;CTR;44154;44;2018_06773_00;47.2380057754, -2.1516650013;11/2017;128
Les travaux d'amélioration de l'assainissement sur la commune de l'Île d'Yeu;Vendée;L'ILE-D'YEU;18I05689;18I02798;2077300;200000;200000;85113;COMMUNE DE L ILE D YEU;2018-05-25;85000301;0;L'Ile d'Yeu;51;32302.30182464;85;24658739.0;Avril 2018;sig.territoires.pdl_ctr.51;Communauté de communes de l'Île d'Yeu;L'Ile d'Yeu;CTR;85113;85;2018_07027;46.7093514816, -2.34712702345;04/2018;100
l'extension de la pépinière d'entreprises n°1 à Craon - Construction d'un cinquième atelier - CC de Craon -53- CTR de la  CC DU PAYS DE CRAON -;Mayenne;CRAON;18I07147;17I09006;220000;100000;100000;53084;CC DU PAYS DE CRAON;2018-07-13;00039897;0;Pays de Craon;62;169901.29669863;53;646041148.74744;Septembre 2017;sig.territoires.pdl_ctr.62;Pays de Craon;Pays de Craon;CTR;53084;53;2018_08551;47.8454412251, -0.943066490216;09/2017;77
La réhabilitation d'un bâtiment pour la création d'un restaurant - COMMUNE DU PIN - 44 - CTR 2020 -  PAYS ANCENIS (COMPA) -;Loire-Atlantique;LE PIN;18I07142;17I09762;381611;97882;97882;44124;COMMUNE DU PIN;2018-07-13;00041082;66725;Pays d'Ancenis;56;189953.08705022;44;865594442.852705;Novembre 2017;sig.territoires.pdl_ctr.56;Pays d'Ancenis;Pays d'Ancenis;CTR;44124;44;2018_08371_00;47.5921101403, -1.1470215048;11/2017;126
l' aménagement de la place du jardin de l'océan (Place du marché)- COMMUNE DE BREM-SUR-MER - 85 - CTR 2020 CC Pays de Saint-Gilles Croix de Vie;;;18I07631;18I07458;443000;43870;43870;;COMMUNE DE BREM SUR MER;2018-07-13;85000149;;Pays de St Gilles-Croix-de-Vie;4;126534.03790467;85;293800477.999917;Avril 2018;sig.territoires.pdl_ctr.4;Communauté de communes du Pays de St Gilles-Croix-de-Vie;Pays de St Gilles-Croix-de-Vie;CTR;;;2018_08928_00;;04/2018;105
La rénovation énergétique de la salle Malraux à Saint-Mars-du-Désert - COMMUNE DE SAINT-MARS-DU-DESERT -  44 - CTR 2020 de la Communauté de communes Erdre et Gesvres;Loire-Atlantique;SAINT-MARS-DU-DESERT;18I08834;17I04913;345997;30000;30000;44179;COMMUNE DE SAINT MARS DU DESERT;2018-09-28;00041307;30000;Erdre et Gesvres;13;166735.21638325;44;509712555.822317;Mai 2017;sig.territoires.pdl_ctr.13;Communauté de communes d'Erdre et Gesvres;Erdre et Gesvres;CTR;44179;44;2018_10152_00;47.357199355, -1.44530337399;05/2017;113
La création d'un réseau de chaleur -COMMUNE DE SUCE-SUR-ERDRE -  44 - CTR 2020 de la Communauté de communes Erdre et Gesvres;Loire-Atlantique;SUCE-SUR-ERDRE;18I08835;17I04913;633388;30000;30000;44201;COMMUNE DE SUCE SUR ERDRE;2018-09-28;00041250;30000;Erdre et Gesvres;13;166735.21638325;44;509712555.822317;Mai 2017;sig.territoires.pdl_ctr.13;Communauté de communes d'Erdre et Gesvres;Erdre et Gesvres;CTR;44201;44;2018_10153;47.3536547402, -1.51945689724;05/2017;113
L'aménagement et la sécurisation des déplacements doux - Commune de Crossac - 44 - CTR 2020 de la Communauté de Communes de Pont-Château - St Gildas des Bois;Loire-Atlantique;CROSSAC;18I08840;17I06805;351044;75000;75000;44050;COMMUNE DE CROSSAC;2018-09-28;00039893;75000;Pays de Pontchâteau St Gildas des Bois;1;130121.86476614;44;327059918.271195;Juillet 2017;sig.territoires.pdl_ctr.1;Communauté de communes de Pont Château Saint Gildas des Bois;Pays de Pontchâteau St Gildas des Bois;CTR;44050;44;2018_10166;47.4044611195, -2.15336667516;07/2017;115
Le réaménagement du local de la Poste pour des implantations de commerces - COMMUNE DE L'EPINE - 85 - CTR 2020 CC de l'Île de Noirmoutier;;;18I08750;17I08584;78402;37640;37640;;COMMUNE DE L EPINE;2018-09-28;;;Ile de Noirmoutier;42;58228.61267806;85;49215409.8708768;Septembre 2017;sig.territoires.pdl_ctr.42;Ile de Noirmoutier;Ile de Noirmoutier;CTR;;;2018_11217_00;;09/2017;93
la signalétique de randonnée-53 - CTR DE LA COMMUNAUTE DE COMMUNES DU PAYS DE MESLAY GREZ -;Mayenne;MESLAY-DU-MAINE;18I08747;17I09585;43333;15808;15808;53152;COMMUNAUTE DE COMMUNES DU PAYS DE MESLAY GREZ;2018-09-28;00040616;0;Pays de Meslay-Grez;11;168628.2873103;53;425452603.464578;Novembre 2017;sig.territoires.pdl_ctr.11;Pays de Meslay-Grez;Pays de Meslay-Grez;CTR;53152;53;2018_11071_00;47.9469156243, -0.558693863131;11/2017;78
l'aménagement d'une nouvelle mairie - COMMUNE D'APREMONT - 85 - CTR 2020 CC Vie et Boulogne;Vendée;APREMONT;18I08861;18I02800;652355;56000;56000;85006;COMMUNE D APREMONT;2018-09-28;85000178;56000;Vie et Boulogne;37;148814.1881539;85;492534760.430236;Avril 2018;sig.territoires.pdl_ctr.37;Vie et Boulogne;Vie et Boulogne;CTR;85006;85;2018_11216;46.7572682339, -1.74841313647;04/2018;102
la construction d'une salle des sports - COMMUNE D'AVRILLE - 49 - CDM Angers Loire Métropole;Maine-et-Loire;AVRILLE;18I08780;18I06680;3937500;600000;600000;49015;COMMUNE D AVRILLE;2018-09-28;00041460;0;Angers Loire Métropole;10;192445.630446;49;676496020.936854;Juillet 2018;sig.territoires.pdl_ctr.10;Angers Loire Métropole;Angers Loire Métropole;CDM;49015;49;2018_11075;47.5057106265, -0.600788940942;07/2018;116
les travaux de réhabilitation de la maison communale de loisirs - COMMUNE DE BRIOLLAY - 49 - CDM Angers Loire Métropole;Maine-et-Loire;BRIOLLAY;18I08785;18I06680;471825;165138;165138;49048;COMMUNE DE BRIOLLAY;2018-09-28;00041468;139565;Angers Loire Métropole;10;192445.630446;49;676496020.936854;Juillet 2018;sig.territoires.pdl_ctr.10;Angers Loire Métropole;Angers Loire Métropole;CDM;49048;49;2018_11137_00;47.57639762, -0.497931074064;07/2018;116
L'agrandissement de la bibliothèque - COMMUNE DE BEAUFOU - 85 - CTR 2020 CC Vie et Boulogne;Vendée;BEAUFOU;18I10399;18I02800;177268;73500;73500;85015;COMMUNE DE BEAUFOU;2018-11-23;85000224;0;Vie et Boulogne;37;148814.1881539;85;492534760.430236;Avril 2018;sig.territoires.pdl_ctr.37;Vie et Boulogne;Vie et Boulogne;CTR;85015;85;2018_13323;46.8191122027, -1.52479250801;04/2018;102
La réhabilitation et extension de la salle des sports - COMMUNE DE LA MARNE - 44 -  CTR 2020 - CC SUD RETZ ATLANTIQUE;Loire-Atlantique;LA MARNE;18I10728;18I05377;1240600;155000;155000;44090;COMMUNE DE LA MARNE;2018-11-23;00043115;118000;Sud Retz Atlantique;25;169463.38998873;44;425092538.170903;Mai 2018;sig.territoires.pdl_ctr.25;Sud Retz Atlantique;Sud Retz Atlantique;CTR;44090;44;2018_12813;46.9913891791, -1.71864413598;05/2018;75
L'extension de l'actipôle 'les Grandmontains' - CC DU PAYS DE CHANTONNAY - 85 - CTR 2020 CC Pays de Chantonnay;Vendée;SAINT-PROUANT;18I10392;18I06678;260000;104000;104000;85051;COMMUNAUTE DE COMMUNES DU PAYS DE CHANTONNAY;2018-11-23;85000278;0;Pays de Chantonnay;44;130417.27851046;85;319474713.690402;Avril 2018;sig.territoires.pdl_ctr.44;Pays de Chantonnay;Pays de Chantonnay;CTR;85051;85;2018_13311;46.6690167793, -1.04372588019;04/2018;103
La création d'une maison médico-sociale - COMMUNE D'ECOUFLANT - 49 - CDM Angers Loire Métropole;Maine-et-Loire;ECOUFLANT;18I10609;18I06680;546961;223132;223132;49129;MAIRIE D ECOUFLANT;2018-11-23;00043060;0;Angers Loire Métropole;10;192445.630446;49;676496020.936854;Juillet 2018;sig.territoires.pdl_ctr.10;Angers Loire Métropole;Angers Loire Métropole;CDM;49129;49;2018_14050;47.5286938274, -0.518454771034;07/2018;116
la réalisation d'un parking et création d'une voie pour l'aérodrome du Vendéopole Vendée Atlantique - 85 -CTR 2020 CC Sud Vendée Littoral;;;18I10402;18I07459;38797;31037;31037;;COMMUNAUTE DE COMMUNES SUD VENDEE LITTORAL;2018-11-23;85000266;;Sud Vendée Littoral;48;297801.82823589;85;950717267.472634;Juillet 2018;sig.territoires.pdl_ctr.48;CC Sud Vendée Littoral;Sud Vendée Littoral;CTR;;;2018_13079_00;;07/2018;106
la requalification de la zone industrielle Sébastopol - 85 CTR 2020 CC Sud Vendée Littoral;;;18I10403;18I07459;1523000;1146027;1146027;;COMMUNAUTE DE COMMUNES SUD VENDEE LITTORAL;2018-11-23;85000271;;Sud Vendée Littoral;48;297801.82823589;85;950717267.472634;Juillet 2018;sig.territoires.pdl_ctr.48;CC Sud Vendée Littoral;Sud Vendée Littoral;CTR;;;2018_13080_00;;07/2018;106
l'extension et réhabilitation de la salle communale- COMMUNE DE SAINTE PEXINE - 85- CTR 2020 CC Sud Vendée Littoral;Vendée;SAINTE-PEXINE;18I10407;18I07459;220000;35310;35310;85261;COMMUNE DE SAINTE PEXINE;2018-11-23;85000252;35754;Sud Vendée Littoral;48;297801.82823589;85;950717267.472634;Juillet 2018;sig.territoires.pdl_ctr.48;CC Sud Vendée Littoral;Sud Vendée Littoral;CTR;85261;85;2018_13170_00;46.5596018797, -1.12406235901;07/2018;106
la réhabilitation et restructuration d'une ancienne école en maison d'assistantes Maternellees (MAM) - COMMUNE DE NALLIERS - 85- CTR 2020 CC Sud Vendée Littoral;Vendée;NALLIERS;18I10410;18I07459;305325;84400;84400;85159;COMMUNE DE NALLIERS;2018-11-23;85000240;84400;Sud Vendée Littoral;48;297801.82823589;85;950717267.472634;Juillet 2018;sig.territoires.pdl_ctr.48;CC Sud Vendée Littoral;Sud Vendée Littoral;CTR;85159;85;2018_13173;46.4658962703, -1.03958611312;07/2018;106
la rénovation énergétique et aménagement de la salle socio-culturelle - COMMUNE DE LA TAILLEE -85- CTR 2020 CC Sud Vendée Littoral;Vendée;LA TAILLEE;18I10411;18I07459;342526;47261;47261;85286;MAIRIE DE LA TAILLEE;2018-11-23;85000230;47261;Sud Vendée Littoral;48;297801.82823589;85;950717267.472634;Juillet 2018;sig.territoires.pdl_ctr.48;CC Sud Vendée Littoral;Sud Vendée Littoral;CTR;85304;85;2018_13174;46.3852513569, -0.941017792066;07/2018;106
l'animation d'une démarche collective en faveur du développement de l'emploi et de la formation- COMMUNAUTE DE COMMUNES DU BOCAGE MAYENNAIS -53- CTR 2020 CC BOCAGE MAYENNAIS;Mayenne;GORRON;19I01617;18I07457;97416;75000;75000;53107;COMMUNAUTE DE COMMUNES DU BOCAGE MAYENNAIS;2019-02-08;00044823;0;Bocage Mayennais;9;189865.43542796;53;529745022.271069;Juillet 2018;sig.territoires.pdl_ctr.9;Communauté de communes du Bocage Mayennais;Bocage Mayennais;CTR;53107;53;2019_01083;48.4219397405, -0.8016203216;07/2018;83
la construction d'une salle de spectacles - COMMUNAUTE DE COMMUNES DU PAYS DE SAINT GILLES CROIX DE VIE - 85 - CTR 2020 Pays de Saint-Gilles Croix de Vie;Vendée;SAINT-HILAIRE-DE-RIEZ (85226);19I01602;18I07458;4479600;570000;570000;85222;PAYS DE SAINT GILLES CROIX DE VIE AGGLOMERATION;2019-02-08;85000298;0;Pays de St Gilles-Croix-de-Vie;4;126534.03790467;85;293800477.999917;Avril 2018;sig.territoires.pdl_ctr.4;Communauté de communes du Pays de St Gilles-Croix-de-Vie;Pays de St Gilles-Croix-de-Vie;CTR;85222;85;2019_01148;46.6904708814, -1.91946363327;04/2018;105
l' aménagement du centre-bourg - Tranche 1 - COMMUNE DE SAINT AUBIN LA PLAINE - 85 - CTR 2020 CC Sud Vendée Littoral;Vendée;SAINT-AUBIN-LA-PLAINE;19I01606;18I07459;110000;35768;35768;85199;COMMUNE DE SAINT AUBIN LA PLAINE;2019-02-08;85000326;0;Sud Vendée Littoral;48;297801.82823589;85;950717267.472634;Juillet 2018;sig.territoires.pdl_ctr.48;CC Sud Vendée Littoral;Sud Vendée Littoral;CTR;85199;85;2019_01155;46.5040293195, -1.06506577005;07/2018;106
L'aménagement et la sécurisation de la RD50 - entrée de ville - porte sud de la Brière - COMMUNE DE SAINT MALO DE GUERSAC - 44 - CTR 2020 DE LA CARENE;Loire-Atlantique;SAINT-MALO-DE-GUERSAC;19I01598;18I08406;1479100;280000;280000;44176;COMMUNE DE SAINT MALO DE GUERSAC;2019-02-08;00043306;0;CARENE;59;128866.92125478;44;316957860.724649;Septembre 2018;sig.territoires.pdl_ctr.59;CARENE;CARENE;CTR;44176;44;2019_01315;47.3561985163, -2.17203654541;09/2018;133
le développement du Musée de la musique mécanique - COMMUNAUTÉ DE COMMUNES DES VALLÉES DE LA BRAYE ET DE L'ANILLE - 72 - CTR 2020 PAYS PERCHE SARTHOIS;Sarthe;DOLLON;19I01626;19I00771;500000;50000;50000;72118;COMMUNAUTE DE COMMUNES DES VALLEES DE LA BRAYE ET DE L ANILLE;2019-02-08;00045363;0;CC du Pays de l'Huisne Sarthoise;35;265241.4780676;72;1290421266.50866;Février 2019;sig.territoires.pdl_ctr.35;Pays du Perche Sarthois;Pays du Perche Sarthois;CTR;72118;72;2019_01144;48.0360309875, 0.59353315613;02/2019;88
Les travaux d'aménagement et de mise en sécurité de la place de l'Eglise et de la rue du Chaudron à St Sulpice - CC Loire Layon Aubance;Maine-et-Loire;BLAISON SAINT SULPICE (49029);19I03596;17I08581;190595;35637;35637;49283;CC LOIRE LAYON AUBANCE;2019-04-05;00045794;0;Loire Layon Aubance;29;220718.82914478;49;613435516.735679;Septembre 2017;sig.territoires.pdl_ctr.29;Loire Layon Aubance;Loire Layon Aubance;CTR;49283;49;2019_04137_00;47.4024678993, -0.756078071904;09/2017;121
L'achat et l'aménagement d'un terrain d'accueil des gens du voyage - Commune d'Echemiré;Maine-et-Loire;BAUGE-EN-ANJOU;19I03599;17I09576;68329;38542;38542;49018;COMMUNAUTE DE COMMUNES BAUGEOIS VALLEE;2019-04-05;00045902;0;Baugeois Vallée;27;204904.66931563;49;738271608.292046;Novembre 2017;sig.territoires.pdl_ctr.27;Baugeois Vallée;Baugeois Vallée;CTR;49018;49;2019_04180;47.5466894738, -0.109021794815;11/2017;120
La création d'un espace de stationnement mutualisé et paysagé;Loire-Atlantique;SAINT-ETIENNE-DE-MER-MORTE;19I03589;18I05377;200000;60000;60000;44157;COMMUNE DE SAINT ETIENNE DE MER MORTE;2019-04-05;00045472;0;Sud Retz Atlantique;25;169463.38998873;44;425092538.170903;Mai 2018;sig.territoires.pdl_ctr.25;Sud Retz Atlantique;Sud Retz Atlantique;CTR;44157;44;2019_04220;46.9452735798, -1.71830813548;05/2018;75
Requalification de la rue de l'expansion - Zone de Méron à Montreuil-Bellay - CA Saumur Val de Loire;Maine-et-Loire;MONTREUIL BELLAY (49215);19I03597;18I05643;561863;140466;140466;49328;CA SAUMUR VAL DE LOIRE;2019-04-05;00045521;0;Saumur Val de Loire;28;222936.82254543;49;1244790494.62575;Mai 2018;sig.territoires.pdl_ctr.28;Saumur Val de Loire;Saumur Val de Loire;CTR;49328;49;2019_04140;47.2673853525, -0.0830410591988;05/2018;123
les aménagements urbains en centre-ville -85 - Commune de la Tranche sur Mer - CTR 2020  Sud Vendée Littoral;Vendée;LA TRANCHE-SUR-MER;19I03628;18I07459;719000;225159;225159;85294;COMMUNE DE LA TRANCHE SUR MER;2019-04-05;85000344;0;Sud Vendée Littoral;48;297801.82823589;85;950717267.472634;Juillet 2018;sig.territoires.pdl_ctr.48;CC Sud Vendée Littoral;Sud Vendée Littoral;CTR;85294;85;2019_04574;46.3564601605, -1.43136322126;07/2018;106
la rénovation de l'éclairage public -72 -  COMMUNE DE PEZÉ LE ROBERT - CTR 2020 DU PAYS DE LA HAUTE SARTHE;Sarthe;PEZE-LE-ROBERT;19I03617;18I09952;18560;10000;10000;72234;COMMUNE DE PEZE LE ROBERT;2019-04-05;00045840;10000;;;;;;;;;;;72234;72;2019_04559;48.202501305, -0.0424195278143;;
La mise en oeuvre du PACMA : liaison douce bourg - rue du Moulin neuf à Vigneux de Bretagne;Loire-Atlantique;VIGNEUX-DE-BRETAGNE;19I06313;17I04913;129800;36720;36720;44217;COMMUNE DE VIGNEUX DE BRETAGNE;2019-06-06;00047636;40000;Erdre et Gesvres;13;166735.21638325;44;509712555.822317;Mai 2017;sig.territoires.pdl_ctr.13;Communauté de communes d'Erdre et Gesvres;Erdre et Gesvres;CTR;44217;44;2019_06494_00;47.3196231868, -1.72042944177;05/2017;113
La mise en oeuvre du Plan d'actions communales pour les mobilités actives à Petit-Mars;Loire-Atlantique;PETIT-MARS;19I06317;17I04913;210386;40000;40000;44122;COMMUNE DE PETIT MARS;2019-06-06;00046983;40000;Erdre et Gesvres;13;166735.21638325;44;509712555.822317;Mai 2017;sig.territoires.pdl_ctr.13;Communauté de communes d'Erdre et Gesvres;Erdre et Gesvres;CTR;44122;44;2019_06502;47.4051549703, -1.45655214384;05/2017;113
Le projet de liaison douce  Bourg - Bérangerie Commune de Saint-Mars-Du-Désert;Loire-Atlantique;SAINT-MARS-DU-DESERT;19I06321;17I04913;159525;40000;40000;44179;COMMUNE DE SAINT MARS DU DESERT;2019-06-06;00047373;0;Erdre et Gesvres;13;166735.21638325;44;509712555.822317;Mai 2017;sig.territoires.pdl_ctr.13;Communauté de communes d'Erdre et Gesvres;Erdre et Gesvres;CTR;44179;44;2019_06510_00;47.357199355, -1.44530337399;05/2017;113
La réhabilitation de l'ancienne cantine en bibliothèque et espace culturel;Vendée;SAINT-AUBIN-DES-ORMEAUX;19I06182;17I09578;248039;50011;50011;85198;SAINT AUBIN DES ORMEAUX;2019-06-06;85000394;50011;Pays de Mortagne;18;126807.36564022;85;228566018.366052;Novembre 2017;sig.territoires.pdl_ctr.18;Pays de Mortagne;Pays de Mortagne;CTR;85198;85;2019_06452;46.9958175597, -1.04216568722;11/2017;95
La rénovation d'un ancien pont de pierre et son raccordement routier;Vendée;AUCHAY SUR VENDEE;19I06207;17I10745;507175;204855;204854;85009;MAIRIE AUCHAY SUR VENDEE;2019-06-06;85000412;0;Pays de Fontenay Vendée;39;127878.18274983;85;464973283.791542;Novembre 2017;sig.territoires.pdl_ctr.39;Pays de Fontenay Vendée;Pays de Fontenay Vendée;CTR;85009;85;2019_06570;46.4474386161, -0.876574265149;11/2017;98
La création d'une centrale photovoltaïque au sol pour l'autoconsommation de la piscine intercommunale;;;19I06181;18I06679;167359;29596;29596;;COMMUNAUTE DE COMMUNES DU PAYS DES HERBIERS;2019-06-06;85000401;;Pays des Herbiers;17;117942.86919888;85;250332696.371675;Juillet 2018;sig.territoires.pdl_ctr.17;Pays des Herbiers;Pays des Herbiers;CTR;;;2019_06450_00;;07/2018;104
L'extension du complexe sportif de la commune du Pallet;Loire-Atlantique;LE PALLET;19I06326;19I00785;1454009;92857;92857;44117;COMMUNE DE LE PALLET;2019-06-06;00047652;0;Sèvre et Loire;24;96321.1295473;44;277438576.414423;Février 2019;sig.territoires.pdl_ctr.24;"Communauté de communes de Sèvre et Loire
 Communauté de communes de Sèvre et Loire";Sèvre et Loire;CTR;44117;44;2019_06554;47.1439366329, -1.34541765527;02/2019;134
L'acquisition d'un véhicule utilitaire électrique par la Commune de Nort-sur-Erdre;Loire-Atlantique;NORT-SUR-ERDRE;19I07536;17I04913;13055;10444;10444;44110;COMMUNE DE NORT SUR ERDRE;2019-07-12;00048847;10444;Erdre et Gesvres;13;166735.21638325;44;509712555.822317;Mai 2017;sig.territoires.pdl_ctr.13;Communauté de communes d'Erdre et Gesvres;Erdre et Gesvres;CTR;44110;44;2019_08644_00;47.447122285, -1.51824792558;05/2017;113
Les travaux d'aménagement paysager, la revitalisation du centre-bourg de Saint Saturnin sur Loire;Maine-et-Loire;BRISSAC LOIRE AUBANCE;19I07477;17I08581;101985;22500;22500;49050;COMMUNE DE BRISSAC LOIRE AUBANCE;2019-07-12;00047658;0;Loire Layon Aubance;29;220718.82914478;49;613435516.735679;Septembre 2017;sig.territoires.pdl_ctr.29;Loire Layon Aubance;Loire Layon Aubance;CTR;49050;49;2019_07843;47.3416678749, -0.441366325976;09/2017;121
L'achat d'un véhicule électrique;Mayenne;LASSAY-LES-CHATEAUX;19I07508;18I00723;28226;13758;13758;53127;COMMUNE DE LASSAY LES CHATEAUX;2019-07-12;00048553;13758;Mayenne Communauté;3;193726.21308398;53;626754357.991273;Février 2018;sig.territoires.pdl_ctr.3;Mayenne Communauté;Mayenne Communauté;CTR;53127;53;2019_08609;48.4421089808, -0.498821106653;02/2018;79
Le réaménagement de la Place Jean Yole;Vendée;SOULLANS;19I07997;18I02799;771687;50000;50000;85284;COMMUNE DE SOULLANS;2019-07-12;85000418;0;Océan Marais de Monts;43;97448.69013118;85;184686424.300016;Avril 2018;sig.territoires.pdl_ctr.43;Océan Marais de Monts;Océan Marais de Monts;CTR;85284;85;2019_08342;46.7951288466, -1.91392699457;04/2018;101
Le village d'artisans à Nozay - Acquisition et études;Loire-Atlantique;NOZAY;19I07537;18I03759;390145;200000;200000;44113;COMMUNAUTE DE COMMUNES REGION DE NOZAY;2019-07-12;00048625;0;Région de Nozay;23;98766.52204624;44;275618396.875015;Avril 2018;sig.territoires.pdl_ctr.23;Région de Nozay;Région de Nozay;CTR;44113;44;2019_09481;47.5728858483, -1.60097664616;04/2018;130
La Farandole - La construction d'un bâtiment à usage scolaire, périscolaire et culturel;Maine-et-Loire;FENEU;19I07496;18I06680;708816;239167;239167;49135;COMMUNE DE FENEU;2019-07-12;00047868;0;Angers Loire Métropole;10;192445.630446;49;676496020.936854;Juillet 2018;sig.territoires.pdl_ctr.10;Angers Loire Métropole;Angers Loire Métropole;CDM;49135;49;2019_08320;47.5840201404, -0.600831621131;07/2018;116
La construction de deux ateliers-relais à Durtal;Maine-et-Loire;DURTAL (49127);19I08997;17I06491;384926;96232;96232;49347;ANJOU LOIR ET SARTHE;2019-09-27;00049055;0;Anjou Loir et Sarthe;26;172077.9474839;49;457111657.097573;Juillet 2017;sig.territoires.pdl_ctr.26;Communauté de Communes Anjou Loir et Sarthe;Anjou Loir et Sarthe;CTR;49347;49;2019_10961;47.6245599519, -0.44344301136;07/2017;119
La construction de deux ateliers relais à Tiercé;Maine-et-Loire;TIERCE;19I08998;17I06491;374110;93528;93528;49347;ANJOU LOIR ET SARTHE;2019-09-27;00049063;0;Anjou Loir et Sarthe;26;172077.9474839;49;457111657.097573;Juillet 2017;sig.territoires.pdl_ctr.26;Communauté de Communes Anjou Loir et Sarthe;Anjou Loir et Sarthe;CTR;49347;49;2019_10962;47.6245599519, -0.44344301136;07/2017;119
L'aménagement d'une aire de jeux au parc de l'Europe;Maine-et-Loire;LA POSSONNIERE;19I09008;17I08581;15140;10000;10000;49247;COMMUNE DE LA POSSONNIERE;2019-09-27;00049467;0;Loire Layon Aubance;29;220718.82914478;49;613435516.735679;Septembre 2017;sig.territoires.pdl_ctr.29;Loire Layon Aubance;Loire Layon Aubance;CTR;49247;49;2019_12076;47.3814407983, -0.708738811093;09/2017;121
La création d'une piste d'athlétisme;Vendée;MONTAIGU;19I08942;17I08583;1090000;485000;485000;85146;TERRES DE MONTAIGU COMMUNAUTE D AGGLOMERATION;2019-09-27;85000464;0;Terres-de-Montaigu;38;167747.72730024;85;383219163.87398;Septembre 2017;sig.territoires.pdl_ctr.38;Terres de Montaigu - Montaigu Rocheservière;Terres-de-Montaigu;CTR;85146;85;2019_11056;46.9759800852, -1.31364530268;09/2017;92
La rénovation énergétique et thermique de l'école de Parcay-les-Pins;Maine-et-Loire;NOYANT-VILLAGES;19I09009;17I09576;591522;207032;207032;49228;COMMUNE DE NOYANT VILLAGES;2019-09-27;00049504;207032;Baugeois Vallée;27;204904.66931563;49;738271608.292046;Novembre 2017;sig.territoires.pdl_ctr.27;Baugeois Vallée;Baugeois Vallée;CTR;49228;49;2019_12078;47.5070164198, 0.109706678066;11/2017;120
L'animation d'une stratégie territoriale Energie-climat;Sarthe;INTERCOMMUNALE;19I08928;17I09882;73333;50000;50000;72179;SYNDICAT MIXTE DU PAYS VALLEE DE LA SARTHE;2019-09-27;00048466;50000;;;;;;;;;;;72179;72;2019_10383;47.8125544281, -0.0874543104248;;
La réalisation plateau multi sports - parcours nature;;;19I08901;18I00770;47784;12783;12783;;COMMUNE DE LA BRULATTE;2019-09-27;00049677;;Pays de Loiron;63;104558.05453473;53;256504826.222709;Février 2018;sig.territoires.pdl_ctr.63;Pays de Loiron;Pays de Loiron;CTR;;;2019_10315_00;;02/2018;80
L'animation territoriale tourisme;Sarthe;INTERCOMMUNALE;19I08922;19I03413;130000;65000;65000;72181;SYNDICAT MIXTE DU PAYS DU MANS;2019-09-27;00049297;0;Pays du Mans;55;211770.96933046;72;515795064.742766;;sig.territoires.pdl_ctr.55;Pays du Mans;Pays du Mans;CTR;72181;72;2019_10368;47.9885256718, 0.200030493539;;89
L'extension de la maison de santé pluri-professionnelle de Morannes;Maine-et-Loire;MORANNES SUR SARTHE DAUMERAY;19I10532;17I06491;210000;42000;42000;49220;COMMUNE DE MORANNES SUR SARTHE DAUMERAY;2019-11-15;00050984;0;Anjou Loir et Sarthe;26;172077.9474839;49;457111657.097573;Juillet 2017;sig.territoires.pdl_ctr.26;Communauté de Communes Anjou Loir et Sarthe;Anjou Loir et Sarthe;CTR;49220;49;2019_15592;47.725500783, -0.403190245491;07/2017;119
La création d'un immobilier d'entreprises tertiaires sur la zone d'activités du Val Saint Martin;Loire-Atlantique;PORNIC;19I10728;17I08233;2361584;263285;263285;44131;PORNIC AGGLO PAYS DE RETZ;2019-11-15;00052059;0;Pornic Agglo Pays de Retz;33;137060.38656142;44;451066582.29291;Septembre 2017;sig.territoires.pdl_ctr.33;Communauté d'Agglomération de Pornic Cœur Pays de Retz;Pornic Agglo Pays de Retz;CTR;44131;44;2019_15534_00;47.1223972452, -2.05182334479;09/2017;127
La réhabilitation de la salle de théâtre;Loire-Atlantique;SAINTE PAZANNE;19I10729;17I08233;1457188;221486;221486;44186;COMMUNE DE SAINTE PAZANNE;2019-11-15;00049719;120000;Pornic Agglo Pays de Retz;33;137060.38656142;44;451066582.29291;Septembre 2017;sig.territoires.pdl_ctr.33;Communauté d'Agglomération de Pornic Cœur Pays de Retz;Pornic Agglo Pays de Retz;CTR;44186;44;2019_15536;47.0839938747, -1.81814462702;09/2017;127
La réfection de la salle des fêtes de St Georges du bois;Maine-et-Loire;LES BOIS D ANJOU;19I10533;17I09576;150000;42000;42000;49138;COMMUNE DES BOIS D ANJOU;2019-11-15;00051757;42000;Baugeois Vallée;27;204904.66931563;49;738271608.292046;Novembre 2017;sig.territoires.pdl_ctr.27;Baugeois Vallée;Baugeois Vallée;CTR;49138;49;2019_15593;47.4829167789, -0.174198642479;11/2017;120
La construction de deux Ateliers-relais 6 et 7 jumelés à Doué en Anjou;Maine-et-Loire;DOUE EN ANJOU;19I10538;18I05643;585000;113441;113441;49125;CA SAUMUR VAL DE LOIRE;2019-11-15;00050816;0;Saumur Val de Loire;28;222936.82254543;49;1244790494.62575;Mai 2018;sig.territoires.pdl_ctr.28;Saumur Val de Loire;Saumur Val de Loire;CTR;49125;49;2019_15606;47.1914715686, -0.278336056087;05/2018;123
Le déploiement d'une offre d'autopartage électromobile en territoires peu denses;Sarthe;MAROLLES LES BRAULTS;19I10558;18I06858;41997;30725;30725;72189;MAIRIE DE MAROLLES LES BRAULTS;2019-11-15;00051708;30725;CC Maine Saosnois;31;160838.92939288;72;582200983.266689;Juillet 2018;sig.territoires.pdl_ctr.31;CC Maine Saosnois;CC Maine Saosnois;CTR;72189;72;2019_15781;48.2539587745, 0.320191786224;07/2018;86
L'aménagement d'une salle d'activités;Sarthe;SAINT-SYMPHORIEN;19I10560;18I09952;27910;11048;11048;72321;COMMUNE DE SAINT SYMPHORIEN;2019-11-15;00048895;0;;;;;;;;;;;72321;72;2019_15783_00;48.0785627545, -0.140972858304;;
L'aménagement d'un parking à la gare;Sarthe;CONLIE;19I10561;18I09952;34709;12100;12100;72089;COMMUNE DE CONLIE;2019-11-15;00049482;0;;;;;;;;;;;72089;72;2019_15784;48.1222946721, -0.0126744450375;;
La restructuration d'un bâtiment BBC en hôtel communautaire;Sarthe;JOUE L'ABBE;19I10566;19I03413;327000;117500;117500;72150;COMMUNAUTE DE COMMUNES MAINE COEUR DE SARTHE;2019-11-15;00052447;0;Pays du Mans;55;211770.96933046;72;515795064.742766;;sig.territoires.pdl_ctr.55;Pays du Mans;Pays du Mans;CTR;72150;72;2019_15790_01;48.1075710093, 0.229853801099;;89
Campus Numérique à Redon;Ille-et-Vilaine;REDON;19I10744;19I06781;262052;75000;75000;35236;CAMPUS ESPRIT INDUSTRIES;2019-11-15;00049885;0;Redon Bretagne Sud;58;222098.45592879;44;975206076.430979;Juillet 2019;sig.territoires.pdl_ctr.58;Redon Bretagne Sud;Redon Bretagne Sud;CTR;35236;35;2019_16172_00;47.6609734327, -2.08008568692;07/2019;136
Le réaménagement de bâti ancien existant;Loire-Atlantique;SION LES MINES;20I02227;17I04914;506180;250000;167800;44197;COMMUNE DE SION LES MINES;2020-02-14;00051578;0;Châteaubriant-Derval;19;192160.53583929;44;884476807.089572;Mai 2017;sig.territoires.pdl_ctr.19;Communauté de communes Châteaubriant Derval;Châteaubriant-Derval;CTR;44197;44;2020_00910;47.7291886842, -1.58109954157;05/2017;114
L'aménagement de la carrière en terrain de loisirs;Sarthe;ROEZE SUR SARTHE;20I02312;17I09882;274577;25000;25000;72253;COMMUNE DE ROEZE SUR SARTHE;2020-02-14;00054081;0;;;;;;;;;;;72253;72;2020_01376;47.8935298702, 0.0716892654727;;
L' installation de panneaux photovoltaïques sur le toit de la garderie;Mayenne;PORT BRILLET;20I02292;18I00770;13897;11118;11118;53182;COMMUNE DE PORT BRILLET;2020-02-14;00052495;11118;Pays de Loiron;63;104558.05453473;53;256504826.222709;Février 2018;sig.territoires.pdl_ctr.63;Pays de Loiron;Pays de Loiron;CTR;53182;53;2020_01293;48.1212899945, -0.963949064008;02/2018;80
La réhabilitation du Foyer d'Animation Rural;Maine-et-Loire;ERDRE EN ANJOU;20I02270;18I02797;1132281;123000;123000;49367;CC DES VALLEES DU HAUT ANJOU;2020-02-14;00054041;123000;Vallées du Haut-Anjou;30;216414.19412737;49;658684300.095436;Avril 2018;sig.territoires.pdl_ctr.30;Vallées du Haut-Anjou;Vallées du Haut-Anjou;CTR;49367;49;2020_01080;47.5882203908, -0.849650865368;04/2018;124
La rénovation du complexe sportif de la Montparrière;Vendée;LE POIRE-SUR-VIE;20I02257;18I02800;2276119;405200;405200;85178;LE POIRE SUR VIE;2020-02-14;85000540;405200;Vie et Boulogne;37;148814.1881539;85;492534760.430236;Avril 2018;sig.territoires.pdl_ctr.37;Vie et Boulogne;Vie et Boulogne;CTR;85178;85;2020_01774;46.769919754, -1.50488626452;04/2018;102
La construction de trois bâtiments-relais;Maine-et-Loire;SEGRE EN ANJOU BLEU;20I02273;18I05642;968512;390000;390000;49331;CC ANJOU BLEU COMMUNAUTE;2020-02-14;00053262;0;Anjou Bleu Communauté;57;184223.75006092;49;654967768.886332;Mai 2018;sig.territoires.pdl_ctr.57;Anjou Bleu Communauté;Anjou Bleu Communauté;CTR;49331;49;2020_01084;47.7016654227, -0.863354104119;05/2018;118
La construction d'une Maison de Santé Pluridisciplinaire;Maine-et-Loire;DOUE EN ANJOU;20I02277;18I05643;3900072;667276;667276;49125;COMMUNE DE DOUE EN ANJOU;2020-02-14;00054197;0;Saumur Val de Loire;28;222936.82254543;49;1244790494.62575;Mai 2018;sig.territoires.pdl_ctr.28;Saumur Val de Loire;Saumur Val de Loire;CTR;49125;49;2020_01098;47.1914715686, -0.278336056087;05/2018;123
L'extension de la mairie en écoconstruction;Maine-et-Loire;VIVY;20I02281;18I05643;452550;84820;84820;49378;COMMUNE DE VIVY;2020-02-14;00052873;84820;Saumur Val de Loire;28;222936.82254543;49;1244790494.62575;Mai 2018;sig.territoires.pdl_ctr.28;Saumur Val de Loire;Saumur Val de Loire;CTR;49378;49;2020_01110;47.3228206835, -0.0669608639815;05/2018;123
L'aménagement de la zone d'activités du Bois Joly Ouest;Vendée;LES HERBIERS;20I02256;18I06679;224973;107783;98793;85109;COMMUNAUTE DE COMMUNES DU PAYS DES HERBIERS;2020-02-14;85000595;0;Pays des Herbiers;17;117942.86919888;85;250332696.371675;Juillet 2018;sig.territoires.pdl_ctr.17;Pays des Herbiers;Pays des Herbiers;CTR;85109;85;2020_01772_00;46.8666125813, -1.02216086186;07/2018;104
La création d'un centre d'interprétation de la pêche;Vendée;SAINT GILLES CROIX DE VIE;20I02259;18I07458;1107700;190000;190000;85222;OFFICE DE TOURISME INTERCOMMUNAL DU PAYS DE SAINT GILLES CROIX DE VIE;2020-02-14;85000560;190000;Pays de St Gilles-Croix-de-Vie;4;126534.03790467;85;293800477.999917;Avril 2018;sig.territoires.pdl_ctr.4;Communauté de communes du Pays de St Gilles-Croix-de-Vie;Pays de St Gilles-Croix-de-Vie;CTR;85222;85;2020_01404_00;46.6904708814, -1.91946363327;04/2018;105
L'aménagement du centre-bourg;Vendée;SAINT-DENIS-DU-PAYRE;20I02260;18I07459;52500;22902;22902;85207;COMMUNE DE SAINT DENIS DU PAYRE;2020-02-14;85000587;0;Sud Vendée Littoral;48;297801.82823589;85;950717267.472634;Juillet 2018;sig.territoires.pdl_ctr.48;CC Sud Vendée Littoral;Sud Vendée Littoral;CTR;85207;85;2020_01405;46.4118936776, -1.27222282402;07/2018;106
L'installation d'une centrale photovoltaïque en autoconsommation;;;20I02242;19I00785;47030;35020;35020;;COMMUNE DE LA REMAUDIERE;2020-02-14;00053789;;Sèvre et Loire;24;96321.1295473;44;277438576.414423;Février 2019;sig.territoires.pdl_ctr.24;"Communauté de communes de Sèvre et Loire
 Communauté de communes de Sèvre et Loire";Sèvre et Loire;CTR;;;2020_00929_00;;02/2019;134
L'achat de deux véhicules de service électriques;Sarthe;MONTVAL SUR LOIR;20I02305;19I03414;27007;20000;20000;72071;COMMUNAUTE DE COMMUNES LOIR LUCE BERCE;2020-02-14;00054373;20000;CC du Pays Fléchois;49;306001.78232882;72;1427230046.65579;;sig.territoires.pdl_ctr.49;PETR Pays Vallée du Loir;Pays Vallée du Loir;CTR;72071;72;2020_01345;47.702207042, 0.430642762781;;90
Confluence 2030;;;20I02246;19I06781;500000;109173;109173;;CA REDON AGGLOMERATION;2020-02-14;00053832;;Redon Bretagne Sud;58;222098.45592879;44;975206076.430979;Juillet 2019;sig.territoires.pdl_ctr.58;Redon Bretagne Sud;Redon Bretagne Sud;CTR;;;2020_00949_00;;07/2019;136
La construction d'un équipement aquatique à Aigrefeuille sur Maine;Loire-Atlantique;AIGREFEUILLE SUR MAINE;20I02249;19I06782;8826595;1344500;1344500;44002;CA CLISSON SEVRE ET MAINE AGGLO;2020-02-14;00051830;109010;Clisson Sèvre et Maine Agglo;32;154889.26072837;44;311525382.618971;Juillet 2019;sig.territoires.pdl_ctr.32;Clisson Sèvre et Maine Agglo;Clisson Sèvre et Maine Agglo;CTR;44002;44;2020_00962_00;47.0719256611, -1.41556455507;07/2019;135
L'achat de vélos à assistance électrique;Loire-Atlantique;GRANDCHAMPS-DES-FONTAINES;20I04517;17I04913;121604;31000;31000;44066;COMMUNAUTE DE COMMUNES D ERDRE GESVRES;2020-04-30;00056286;31000;Erdre et Gesvres;13;166735.21638325;44;509712555.822317;Mai 2017;sig.territoires.pdl_ctr.13;Communauté de communes d'Erdre et Gesvres;Erdre et Gesvres;CTR;44066;44;2020_04715;47.3606796643, -1.61754475868;05/2017;113
L'installation de panneaux photovoltaïques sur le groupe scolaire;Mayenne;CRAON;20I04545;17I09006;33852;10155;10155;53084;COMMUNE DE CRAON;2020-04-30;00056039;10155;Pays de Craon;62;169901.29669863;53;646041148.74744;Septembre 2017;sig.territoires.pdl_ctr.62;Pays de Craon;Pays de Craon;CTR;53084;53;2020_04648;47.8454412251, -0.943066490216;09/2017;77
La création d'un restaurant scolaire au 'Clos Lavau';Maine-et-Loire;SAVENNIERES;20I04491;18I06680;999220;300000;300000;49329;COMMUNE DE SAVENNIERES;2020-04-30;00054706;0;Angers Loire Métropole;10;192445.630446;49;676496020.936854;Juillet 2018;sig.territoires.pdl_ctr.10;Angers Loire Métropole;Angers Loire Métropole;CDM;49329;49;2020_04427;47.405865718, -0.667155831696;07/2018;116
La construction d'un équipement d'intérêt collectif et services publics à la Perrine;Mayenne;LAVAL;20I04541;19I00770;254620;148000;148000;53130;COMMUNE DE LAVAL;2020-04-30;00054191;0;Laval Agglomération;53;160270.39281569;53;438471285.378152;Février 2019;sig.territoires.pdl_ctr.53;Laval Agglomération;Laval Agglomération;CTR;53130;53;2020_04643_00;48.0608565468, -0.766005687142;02/2019;84
La rénovation de l'éclairage public et la mise en valeur du patrimoine communal;Sarthe;COGNERS;20I04547;19I00771;67680;7745;7745;72085;COMMUNE DE COGNERS;2020-04-30;00057317;10000;CC du Pays de l'Huisne Sarthoise;35;265241.4780676;72;1290421266.50866;Février 2019;sig.territoires.pdl_ctr.35;Pays du Perche Sarthois;Pays du Perche Sarthois;CTR;72085;72;2020_04735_00;47.8617807064, 0.654044888377;02/2019;88
L'extension du gymnase Jean Launay et la construction de deux salles sportives multi-activités;Sarthe;ALLONNES;20I04496;19I04948;2070251;300000;300000;72003;COMMUNE D ALLONNES;2020-04-30;00055417;0;CU Le Mans Métropole;20;141570.43537983;72;268048561.841433;Juin 2019;sig.territoires.pdl_ctr.20;CU Le Mans Métropole;CU Le Mans Métropole;CDM;72003;72;2020_04659;47.9589683966, 0.143770981533;06/2019;91
La construction d'un siège communautaire et d'une maison de l'économie;;;20I04516;19I06782;3246500;123500;123500;;CA CLISSON SEVRE ET MAINE AGGLO;2020-04-30;00056285;;Clisson Sèvre et Maine Agglo;32;154889.26072837;44;311525382.618971;Juillet 2019;sig.territoires.pdl_ctr.32;Clisson Sèvre et Maine Agglo;Clisson Sèvre et Maine Agglo;CTR;;;2020_04575_00;;07/2019;135
Le poste de chargé de mission développement économique;;;20I04716;20I03660;144855;61657;61657;;TERRES DE MONTAIGU COMMUNAUTE D AGGLOMERATION;2020-04-30;85000625;;;;;;;;;;;;;;2020_07100_00;;;
L'acquisition et l'aménagement d'un camping-car pour l'Office de tourisme communautaire;Maine-et-Loire;SAINT GEORGES SUR LOIRE;20I05931;17I08581;49250;32910;32910;49283;CC LOIRE LAYON AUBANCE;2020-05-29;00057603;0;Loire Layon Aubance;29;220718.82914478;49;613435516.735679;Septembre 2017;sig.territoires.pdl_ctr.29;Loire Layon Aubance;Loire Layon Aubance;CTR;49283;49;2020_06894_00;47.4024678993, -0.756078071904;09/2017;121
La rénovation de la salle de sports du Petit Lay;;;20I05952;18I06679;1029700;44814;44814;;COMMUNE DE MOUCHAMPS;2020-05-29;85000664;;Pays des Herbiers;17;117942.86919888;85;250332696.371675;Juillet 2018;sig.territoires.pdl_ctr.17;Pays des Herbiers;Pays des Herbiers;CTR;;;2020_06994_00;;07/2018;104
La création de vestiaires au stade Jean LEFLOUR;Loire-Atlantique;BLAIN;20I07240;17I04912;50000;40000;40000;44015;COMMUNE DE BLAIN;2020-07-10;00052440;0;Région de Blain;12;104466.22577119;44;214288660.02636;Mai 2017;sig.territoires.pdl_ctr.12;Communauté de communes de la Région de Blain;Région de Blain;CTR;44015;44;2020_08424;47.4628210409, -1.76789479614;05/2017;112
La rénovation de la salle de spectacles du Centre culturel André Voisin;Sarthe;FRESNAY SUR SARTHE;20I07267;18I09842;79563;19890;19890;72138;COMMUNE DE FRESNAY SUR SARTHE;2020-07-10;00058138;0;CC Haute Sarthe Alpes Mancelles;46;208876.08303841;72;922846721.323114;Novembre 2018;sig.territoires.pdl_ctr.46;Pays de la Haute Sarthe;Pays de la Haute Sarthe;CTR;72138;72;2020_08338;48.2817396551, 0.0228368822752;11/2018;87
La rénovation de l'éclairage public;Sarthe;COULOMBIERS;20I07269;18I09842;19210;10000;10000;72097;COMMUNE DE FRESNAY SUR SARTHE;2020-07-10;00058133;10000;CC Haute Sarthe Alpes Mancelles;46;208876.08303841;72;922846721.323114;Novembre 2018;sig.territoires.pdl_ctr.46;Pays de la Haute Sarthe;Pays de la Haute Sarthe;CTR;72138;72;2020_08340;48.2947714312, 0.12688051263;11/2018;87
L'acqusition d'un véhicule hybride;Loire-Atlantique;TREILLIERES;20I09332;17I04913;0;0;;44209;COMMUNE DE TREILLIERES;2020-09-25;00073582;0;Erdre et Gesvres;13;166735.21638325;44;509712555.822317;Mai 2017;sig.territoires.pdl_ctr.13;Communauté de communes d'Erdre et Gesvres;Erdre et Gesvres;CTR;44209;44;2020_10150_00;47.3178218372, -1.62577302041;05/2017;113
L'installation d'une pompe à chaleur dans la Mairie de Notre Dame des Landes;Loire-Atlantique;NOTRE DAME DES LANDES;20I09334;17I04913;29133;15000;15000;44111;COMMUNE DE NOTRE DAME DES LANDES;2020-09-25;00073639;15000;Erdre et Gesvres;13;166735.21638325;44;509712555.822317;Mai 2017;sig.territoires.pdl_ctr.13;Communauté de communes d'Erdre et Gesvres;Erdre et Gesvres;CTR;44111;44;2020_10160;47.3753590043, -1.71598291146;05/2017;113
La construction d'un atelier relais 28 à Beaufort-en-Anjou;;;20I09134;17I09576;625000;186867;186867;;COMMUNAUTE DE COMMUNES BAUGEOIS VALLEE;2020-09-25;00068896;;Baugeois Vallée;27;204904.66931563;49;738271608.292046;Novembre 2017;sig.territoires.pdl_ctr.27;Baugeois Vallée;Baugeois Vallée;CTR;;;2020_09906_00;;11/2017;120
L'acquisition d'un camion pour le service déchets;Mayenne;MAYENNE;20I09156;18I00723;200000;160000;160000;53147;MAYENNE COMMUNAUTE;2020-09-25;00072295;0;Mayenne Communauté;3;193726.21308398;53;626754357.991273;Février 2018;sig.territoires.pdl_ctr.3;Mayenne Communauté;Mayenne Communauté;CTR;53147;53;2020_09850;48.3074609449, -0.614799950799;02/2018;79
Le relamping de bâtiments communaux;;;20I09141;18I06834;63347;38636;38636;;COMMUNE DE BRAINS;2020-09-25;00071439;;Nantes Métropole;6;181264.28832122;44;534212730.160229;Juillet 2018;sig.territoires.pdl_ctr.6;Nantes Métropole;Nantes Métropole;CDM;;;2020_10201_00;;07/2018;132
La construction du siège communautaire;Vendée;TALMONT-SAINT-HILAIRE;20I09151;19I06843;5091695;779900;623920;85288;COMMUNAUTE DE COMMUNES VENDEE GRAND LITTORAL;2020-09-25;85000659;779900;Vendée Grand Littoral;50;130718.72390863;85;506742589.437246;Juillet 2019;sig.territoires.pdl_ctr.50;Vendée Grand Littoral;Vendée Grand Littoral;CTR;85288;85;2020_10765;46.475786445, -1.62751498166;07/2019;111
Les travaux de réhabilitation de l'église Saint-Sauveur;Loire-Atlantique;BOUVRON;20I11972;17I04912;472083;98099;98099;44023;COMMUNE DE BOUVRON;2020-11-13;00121615;0;Région de Blain;12;104466.22577119;44;214288660.02636;Mai 2017;sig.territoires.pdl_ctr.12;Communauté de communes de la Région de Blain;Région de Blain;CTR;44023;44;2020_13637;47.4171698448, -1.87739194688;05/2017;112
La construction d'une salle omnisports;Maine-et-Loire;VERRIERES EN ANJOU;20I11764;18I06680;2469163;600000;600000;49323;COMMUNE DE VERRIERES EN ANJOU;2020-11-13;00122162;0;Angers Loire Métropole;10;192445.630446;49;676496020.936854;Juillet 2018;sig.territoires.pdl_ctr.10;Angers Loire Métropole;Angers Loire Métropole;CDM;49323;49;2020_13380;47.5123317726, -0.475837998559;07/2018;116
L'Installation d'une borne de recharge électrique;Sarthe;BOURG LE ROI;20I12020;18I09842;14460;11568;;72043;COMMUNE DE BOURG LE ROI;2020-11-13;00074046;11568;CC Haute Sarthe Alpes Mancelles;46;208876.08303841;72;922846721.323114;Novembre 2018;sig.territoires.pdl_ctr.46;Pays de la Haute Sarthe;Pays de la Haute Sarthe;CTR;72043;72;2020_13704;48.3460739531, 0.132093521683;11/2018;87
L'aménagement et extension de l'aire d'accueil des gens du voyage;Loire-Atlantique;TREILLIERES;23I03182;17I04913;432405;60000;60000;44209;COMMUNAUTE DE COMMUNES D ERDRE GESVRES;2021-02-12;00139625;;Erdre et Gesvres;13;166735.21638325;44;509712555.822317;Mai 2017;sig.territoires.pdl_ctr.13;Communauté de communes d'Erdre et Gesvres;Erdre et Gesvres;CTR;44209;44;2021_04325_01;47.3178218372, -1.62577302041;05/2017;113
Le plan d'équipement des piscines du Pays d'Ancenis Tranche 1;;;23I05199;17I09762;3510000;417772;50759;;COMMUNAUTE DE COMMUNES DU PAYS D ANCENIS;2021-02-12;00139817;;Pays d'Ancenis;56;189953.08705022;44;865594442.852705;Novembre 2017;sig.territoires.pdl_ctr.56;Pays d'Ancenis;Pays d'Ancenis;CTR;;;2021_04248_01;;11/2017;126
la rénovation de l'éclairage public - Programme 2020;Mayenne;L'HUISSERIE;21I02628;19I00770;78877;63102;63102;53119;COMMUNE DE L HUISSERIE;2021-02-12;00132556;63102;Laval Agglomération;53;160270.39281569;53;438471285.378152;Février 2019;sig.territoires.pdl_ctr.53;Laval Agglomération;Laval Agglomération;CTR;53119;53;2021_04341;48.0167338344, -0.766387903128;02/2019;84
La création d'une maison de l'enfance;Sarthe;CHERRE AU;21I02635;19I00771;2453479;244380;244380;72080;COMMUNE DE CHERRE AU;2021-02-12;00126210;0;CC du Pays de l'Huisne Sarthoise;35;265241.4780676;72;1290421266.50866;Février 2019;sig.territoires.pdl_ctr.35;Pays du Perche Sarthois;Pays du Perche Sarthois;CTR;72080;72;2021_04348;48.1549219183, 0.657321436354;02/2019;88
La création d'une salle intergénérationnelle;;;23I05100;19I00771;376500;0;;;COMMUNE DE VIBRAYE;2021-02-12;00128310;;CC du Pays de l'Huisne Sarthoise;35;265241.4780676;72;1290421266.50866;Février 2019;sig.territoires.pdl_ctr.35;Pays du Perche Sarthois;Pays du Perche Sarthois;CTR;;;2021_04350_02;;02/2019;88
L'implantation d'équipements de loisirs;Vendée;SAINT-HILAIRE-DES-LOGES;21I02584;19I00773;73000;21682;21682;85227;MAIRIE DE SAINT HILAIRE DES LOGES;2021-02-12;85000800;0;Vendée Sèvre Autise;22;164911.17006129;85;300390165.394669;Février 2019;sig.territoires.pdl_ctr.22;Communauté de communes de Vendée Sèvre Autise;Vendée Sèvre Autise;CTR;85227;85;2021_04273;46.4747117878, -0.650611151998;02/2019;109
La réhabilitation et l'extension de la mairie;;;23I04998;19I03414;542391;96000;96000;;COMMUNE DE LUCHE PRINGE;2021-02-12;00120756;;CC du Pays Fléchois;49;306001.78232882;72;1427230046.65579;;sig.territoires.pdl_ctr.49;PETR Pays Vallée du Loir;Pays Vallée du Loir;CTR;;;2021_04357_01;;;90
La rénovation thermique et énergétique de la salle des Lilas;Mayenne;COMMER;23I05002;18I00723;168000;20744;;53072;COMMUNE DE COMMER;2021-03-31;00147141;;Mayenne Communauté;3;193726.21308398;53;626754357.991273;Février 2018;sig.territoires.pdl_ctr.3;Mayenne Communauté;Mayenne Communauté;CTR;53072;53;2021_05350_01;48.2352391072, -0.620245484503;02/2018;79
L'achat et l'aménagement d'un bien en commerce de proximité circuit court et boutiques éphémères;;;23I05122;18I06858;103698;34124;34124;;COMMUNE DE SAINT COSME EN VAIRAIS;2021-03-31;00147022;;CC Maine Saosnois;31;160838.92939288;72;582200983.266689;Juillet 2018;sig.territoires.pdl_ctr.31;CC Maine Saosnois;CC Maine Saosnois;CTR;;;2021_05383_02;;07/2018;86
La création d'un espace culturel et associatif;Vendée;SAINTE HERMINE;21I04119;18I07459;521471;90896;90896;85223;COMMUNE DE SAINTE HERMINE;2021-03-31;85000246;90896;Sud Vendée Littoral;48;297801.82823589;85;950717267.472634;Juillet 2018;sig.territoires.pdl_ctr.48;CC Sud Vendée Littoral;Sud Vendée Littoral;CTR;85223;85;2021_05373;46.5572659953, -1.07210861039;07/2018;106
La rénovation de la salle associative Henri IV;;;21I04121;18I07459;162900;15964;15964;;COMMUNE DE SAINT MARTIN LARS EN STE HERMINE;2021-03-31;85000796;;Sud Vendée Littoral;48;297801.82823589;85;950717267.472634;Juillet 2018;sig.territoires.pdl_ctr.48;CC Sud Vendée Littoral;Sud Vendée Littoral;CTR;;;2021_05377_00;;07/2018;106
Le remplacement de la chaudière de la mairie;Sarthe;LHOMME;21I04140;19I03414;19677;12000;12000;72161;COMMUNE DE LHOMME;2021-03-31;00147197;;CC du Pays Fléchois;49;306001.78232882;72;1427230046.65579;;sig.territoires.pdl_ctr.49;PETR Pays Vallée du Loir;Pays Vallée du Loir;CTR;72161;72;2021_05388;47.7605490341, 0.563670508119;;90
La mise en oeuvre d'un programme en faveur de la mobilité bas carbone;Loire-Atlantique;CHATEAUBRIANT;23I05214;17I04914;200000;100000;;44036;COMMUNAUTE DE COMMUNES CHATEAUBRIANT DERVAL;2021-05-21;00148578;;Châteaubriant-Derval;19;192160.53583929;44;884476807.089572;Mai 2017;sig.territoires.pdl_ctr.19;Communauté de communes Châteaubriant Derval;Châteaubriant-Derval;CTR;44036;44;2021_07610_01;47.7221583524, -1.38664809937;05/2017;114
L'aménagement de la médiathèque, du restaurant scolaire et de sa cour;;;23I05071;17I08584;148750;46000;46000;;COMMUNE DE LA GUERINIERE;2021-05-21;85000819;;Ile de Noirmoutier;42;58228.61267806;85;49215409.8708768;Septembre 2017;sig.territoires.pdl_ctr.42;Ile de Noirmoutier;Ile de Noirmoutier;CTR;;;2021_08061_01;;09/2017;93
L'aménagement du centre bourg 3ème tranche;;;23I02685;18I00770;439534;67744;67744;;COMMUNE DE BEAULIEU SUR OUDON;2021-05-21;00148546;;Pays de Loiron;63;104558.05453473;53;256504826.222709;Février 2018;sig.territoires.pdl_ctr.63;Pays de Loiron;Pays de Loiron;CTR;;;2021_08355_02;;02/2018;80
Espace Dauphins - travaux préparatoires à la rénovation énergétique;Loire-Atlantique;CHATEAUBRIANT;23I04992;17I04914;80000;21800;21800;44036;COMMUNAUTE DE COMMUNES CHATEAUBRIANT DERVAL;2021-09-23;00150391;;Châteaubriant-Derval;19;192160.53583929;44;884476807.089572;Mai 2017;sig.territoires.pdl_ctr.19;Communauté de communes Châteaubriant Derval;Châteaubriant-Derval;CTR;44036;44;2021_11400_01;47.7221583524, -1.38664809937;05/2017;114
L'amélioration de l'accessibilité du site de la Hunaudière - secteur 2;Loire-Atlantique;SION LES MINES;23I04993;17I04914;54250;14182;14182;44197;COMMUNAUTE DE COMMUNES CHATEAUBRIANT DERVAL;2021-09-23;00150575;;Châteaubriant-Derval;19;192160.53583929;44;884476807.089572;Mai 2017;sig.territoires.pdl_ctr.19;Communauté de communes Châteaubriant Derval;Châteaubriant-Derval;CTR;44197;44;2021_14250_01;47.7291886842, -1.58109954157;05/2017;114
La construction d'un éco-bâtiment de stockage sur le site de la déchetterie;;;23I05074;17I08584;1400000;73400;;;COMMUNAUTE DE COMMUNES DE L ILE DE NOIRMOUTIER;2021-09-23;85000937;;Ile de Noirmoutier;42;58228.61267806;85;49215409.8708768;Septembre 2017;sig.territoires.pdl_ctr.42;Ile de Noirmoutier;Ile de Noirmoutier;CTR;;;2021_11116_01;;09/2017;93
L'extension et l'aménagement de la bibliothèque municipale;;;23I02743;17I09578;511380;123732;123732;;COMMUNE DE MORTAGNE SUR SEVRE;2021-09-23;85000914;;Pays de Mortagne;18;126807.36564022;85;228566018.366052;Novembre 2017;sig.territoires.pdl_ctr.18;Pays de Mortagne;Pays de Mortagne;CTR;;;2021_11168_02;;11/2017;95
La reprise de biens communaux;Loire-Atlantique;BOUEE;21I10741;17I09760;18057;14338;14338;44019;COMMUNE DE BOUEE;2021-09-23;00150340;;Estuaire et Sillon;61;112337.65867316;44;313121598.740399;Novembre 2017;sig.territoires.pdl_ctr.61;Communauté de communes d'Estuaire et Sillon;Estuaire et Sillon;CTR;44019;44;2021_12239;47.304903513, -1.91266951692;11/2017;129
L' installation de panneaux photovoltaïques sur la couverture d'un bâtiment communal;Mayenne;MONTREUIL POULAY;23I05003;18I00723;24300;17010;17010;53160;COMMUNE DE MONTREUIL POULAY;2021-09-23;00150446;;Mayenne Communauté;3;193726.21308398;53;626754357.991273;Février 2018;sig.territoires.pdl_ctr.3;Mayenne Communauté;Mayenne Communauté;CTR;53160;53;2021_14167_01;48.385896935, -0.535818668483;02/2018;79
L'amélioration de la signalétique (zones d'activités et chemins de randonnée);;;23I04877;18I03759;60000;48000;;;COMMUNAUTE DE COMMUNES REGION DE NOZAY;2021-09-23;00150280;;Région de Nozay;23;98766.52204624;44;275618396.875015;Avril 2018;sig.territoires.pdl_ctr.23;Région de Nozay;Région de Nozay;CTR;;;2021_11404_01;;04/2018;130
La construction d'un gymnase à Base Goulaine sur le site de la Herdrie - La Chesnaie;;;23I02804;18I06834;3872072;65340;65340;;COMMUNE DE BASSE GOULAINE;2021-09-23;00150275;;Nantes Métropole;6;181264.28832122;44;534212730.160229;Juillet 2018;sig.territoires.pdl_ctr.6;Nantes Métropole;Nantes Métropole;CDM;;;2021_11395_01;;07/2018;132
La rénovation de l'espace jeunesse;Sarthe;SAINT COSME EN VAIRAIS;21I10747;18I06858;31666;12600;12600;72276;COMMUNAUTE DE COMMUNES MAINE SAOSNOIS;2021-09-23;00150523;;CC Maine Saosnois;31;160838.92939288;72;582200983.266689;Juillet 2018;sig.territoires.pdl_ctr.31;CC Maine Saosnois;CC Maine Saosnois;CTR;72276;72;2021_12418;48.2744377482, 0.457973879241;07/2018;86
La création d'un espace de coworking à Mamers et Bonnétable;;;23I05124;18I06858;63600;50878;50878;;COMMUNAUTE DE COMMUNES MAINE SAOSNOIS;2021-09-23;00150667;;CC Maine Saosnois;31;160838.92939288;72;582200983.266689;Juillet 2018;sig.territoires.pdl_ctr.31;CC Maine Saosnois;CC Maine Saosnois;CTR;;;2021_12419_01;;07/2018;86
L'installation de systèmes de contrôle d'accès aux déchèteries;;;23I05217;18I07457;186680;75000;;;COMMUNAUTE DE COMMUNES DU BOCAGE MAYENNAIS;2021-09-23;00150019;;Bocage Mayennais;9;189865.43542796;53;529745022.271069;Juillet 2018;sig.territoires.pdl_ctr.9;Communauté de communes du Bocage Mayennais;Bocage Mayennais;CTR;;;2021_12435_01;;07/2018;83
La rénovation des vestiaires et des sanitaires du gymnase;Sarthe;BEAUMONT SUR SARTHE;23I00477;18I09842;313100;165000;165000;72029;CC HAUTE SARTHE ALPES MANCELLES;2021-09-23;00131871;165000;CC Haute Sarthe Alpes Mancelles;46;208876.08303841;72;922846721.323114;Novembre 2018;sig.territoires.pdl_ctr.46;Pays de la Haute Sarthe;Pays de la Haute Sarthe;CTR;72029;72;2021_12409_00;48.2246887958, 0.112408293978;11/2018;87
La réhabilitation d'une friche commerciale;;;23I05110;18I09952;829378;159000;159000;;COMMUNAUTE DE COMMUNES DE LA CHAMPAGNE CONLINOISE ET DU PAYS DE SILLE;2021-09-23;00132451;;;;;;;;;;;;;;2021_12414_01;;;
La construction d'un complexe sportif évènementiel;;;23I05235;19I00772;15618734;1085400;119936;;CA LES SABLES D OLONNE AGGLOMERATION;2021-09-23;85000926;;Les Sables d’Olonnes Agglomération;64;68286.96593903;85;173467589.879851;Février 2019;sig.territoires.pdl_ctr.64;Les Sables d’Olonnes Agglomération;Les Sables d’Olonnes Agglomération;CTR;;;2021_12442_02;;02/2019;108
La construction d'un bâtiment multi-accueil à Changé;;;23I05097;19I03413;1266138;365000;;;COMMUNAUTE DE COMMUNES SUD EST PAYS MANCEAU;2021-09-23;00150572;;Pays du Mans;55;211770.96933046;72;515795064.742766;;sig.territoires.pdl_ctr.55;Pays du Mans;Pays du Mans;CTR;;;2021_12639_01;;;89
Les travaux d'aménagement des annexes de la Grange Dimière;;;23I04995;19I03414;146137;20176;7695;;COMMUNE DE CHENU;2021-09-23;00149839;;CC du Pays Fléchois;49;306001.78232882;72;1427230046.65579;;sig.territoires.pdl_ctr.49;PETR Pays Vallée du Loir;Pays Vallée du Loir;CTR;;;2021_12390_01;;;90
La création d'une Maison des vins et du tourisme;;;23I05001;19I03414;563380;371000;236772;;COMMUNAUTE DE COMMUNES LOIR LUCE BERCE;2021-09-23;00150686;;CC du Pays Fléchois;49;306001.78232882;72;1427230046.65579;;sig.territoires.pdl_ctr.49;PETR Pays Vallée du Loir;Pays Vallée du Loir;CTR;;;2021_12396_01;;;90
La création d'une déchèterie et la réalisation d'un quai de transfert;;;23I04997;19I03414;1922000;779446;623556;;COMMUNAUTE DE COMMUNES DU PAYS FLECHOIS;2021-09-23;00150058;;CC du Pays Fléchois;49;306001.78232882;72;1427230046.65579;;sig.territoires.pdl_ctr.49;PETR Pays Vallée du Loir;Pays Vallée du Loir;CTR;;;2021_12397_01;;;90
L'aménagement de liaisons piétonnes sécurisées et modérateur de vitesse rue Pasteur, Jean Gourav et St Cadoc - CTR 2020 - CC de Pont Château Saint Gildas des Bois;Loire-Atlantique;SAINTE-REINE-DE-BRETAGNE;17I09764;17I06805;143645;87860;87860;44189;COMMUNE DE SAINTE REINE DE BRETAGNE;2017-11-17;00042495;87860;Pays de Pontchâteau St Gildas des Bois;1;130121.86476614;44;327059918.271195;Juillet 2017;sig.territoires.pdl_ctr.1;Communauté de communes de Pont Château Saint Gildas des Bois;Pays de Pontchâteau St Gildas des Bois;CTR;44189;44;2017_09968;47.4437503517, -2.18092999441;07/2017;115
Le développement d'un concept de fabrication et de vente de chaussures customisables pour femmes - CTR 2020 - CC de Pont Château St Gildas des Bois;;;17I09765;17I06805;41525;6201;6201;;MALEFIC;2017-11-17;;;Pays de Pontchâteau St Gildas des Bois;1;130121.86476614;44;327059918.271195;Juillet 2017;sig.territoires.pdl_ctr.1;Communauté de communes de Pont Château Saint Gildas des Bois;Pays de Pontchâteau St Gildas des Bois;CTR;;;2017_09972_01;;07/2017;115
La rénovation du centre culturel Jean Vannier - CTR 2020 - CA Pornic Coeur Pays de Retz;Loire-Atlantique;LES MOUTIERS-EN-RETZ;17I10803;17I08233;50518;36915;36915;44106;COMMUNE DES MOUTIERS EN RETZ;2017-11-17;00036917;0;Pornic Agglo Pays de Retz;33;137060.38656142;44;451066582.29291;Septembre 2017;sig.territoires.pdl_ctr.33;Communauté d'Agglomération de Pornic Cœur Pays de Retz;Pornic Agglo Pays de Retz;CTR;44106;44;2017_09943;47.0616219129, -1.99001867615;09/2017;127
La reconstruction de l'école maternelle Marie Laurencin;Maine-et-Loire;TIERCE;18I01089;17I06491;1707211;250000;250000;49347;COMMUNE DE TIERCE;2018-02-16;00040118;0;Anjou Loir et Sarthe;26;172077.9474839;49;457111657.097573;Juillet 2017;sig.territoires.pdl_ctr.26;Communauté de Communes Anjou Loir et Sarthe;Anjou Loir et Sarthe;CTR;49347;49;2018_01424;47.6245599519, -0.44344301136;07/2017;119
La construction d'un espace festif et culturel sur le site du parc Saint-Fiacre - COMMUNE DE CHATEAU-GONTIER - 53 - CTR CC CHATEAU-GONTIER -;Mayenne;CHATEAU-GONTIER;18I00887;17I06727;1312958;650000;650000;53062;COMMUNE DE CHATEAU GONTIER SUR MAYENNE;2018-02-16;00041084;200000;Pays de Château-Gontier;14;165987.88106709;53;454517702.401146;Juillet 2017;sig.territoires.pdl_ctr.14;Pays de Château-Gontier;Pays de Château-Gontier;CTR;53062;53;2018_00987_00;47.8290067122, -0.738721767875;07/2017;76
La mise en conformité des déchetteries de la Baule et du Croisic - CTR 2020 - CA de CAP ATLANTIQUE;Loire-Atlantique;LA BAULE-ESCOUBLAC;18I00840;17I09003;294789;57448;57448;44055;COMMUNAUTE D AGGLOMERATION DE LA PRESQU ILE DE GUERANDE ATLANTIQUE;2018-02-16;00043673;0;Cap Atlantique;41;145725.47329518;44;395838108.965296;Septembre 2017;sig.territoires.pdl_ctr.41;Cap Atlantique;Cap Atlantique;CTR;44055;44;2018_00936;47.2909720179, -2.3538291745;09/2017;125
Eau et paysage - destination estuaire : promenade du port et de la pointe de l'Ile - CTR 2020 - CC Estuaire et Sillon;Loire-Atlantique;CORDEMAIS;18I00839;17I09760;500000;47890;47890;44045;COMMUNE DE CORDEMAIS;2018-02-16;00044022;0;Estuaire et Sillon;61;112337.65867316;44;313121598.740399;Novembre 2017;sig.territoires.pdl_ctr.61;Communauté de communes d'Estuaire et Sillon;Estuaire et Sillon;CTR;44045;44;2018_00190;47.2968036073, -1.8357108105;11/2017;129
Conseil de développement - Contrat territoire Région 2020 - Communauté de communes d'Erdre et Gesvres;Loire-Atlantique;GRANDCHAMPS-DES-FONTAINES;18I03728;17I04913;157120;75000;75000;44066;COMMUNAUTE DE COMMUNES D ERDRE GESVRES;2018-04-20;00041374;0;Erdre et Gesvres;13;166735.21638325;44;509712555.822317;Mai 2017;sig.territoires.pdl_ctr.13;Communauté de communes d'Erdre et Gesvres;Erdre et Gesvres;CTR;44066;44;2018_04381;47.3606796643, -1.61754475868;05/2017;113
La construction d'un centre aquatique;Vendée;CHALLANS;18I02801;17I09577;15208000;1785000;1785000;85047;CC CHALLANS GOIS COMMUNAUTE;2018-04-20;85000027;250000;Challans Gois Communauté;47;136267.76513018;85;445042641.491996;Novembre 2017;sig.territoires.pdl_ctr.47;Challans Gois Communauté;Challans Gois Communauté;CTR;85047;85;2018_02951_00;46.8354416653, -1.84036683139;11/2017;94
72 - LOUE-BRULON-NOYEN - CC LOUE - BRULON- NOYEN - Création d'une zone d'activités sur la commune de Poillé-sur-Vègre;Sarthe;POILLE SUR VEGRE;19I00433;17I09880;288030;86409;86409;72239;COMMUNAUTE DE COMMUNES LOUE BRULON NOYEN;2018-05-25;00039412;0;CC Loué - Brûlon - Noyen;52;226944.40757679;72;1117349894.39695;Novembre 2017;sig.territoires.pdl_ctr.52;Pays Vallée de la Sarthe;Pays Vallée de la Sarthe;CTR;72239;72;2018_06901_01;47.9162913627, -0.271498760066;11/2017;74
53 - MESLAY GREZ - COMMUNAUTE DE COMMUNES DU PAYS DE MESLAY GREZ - Rénovation énergétique de la salle de tennis intercommunale de Meslay du Maine;Mayenne;MESLAY-DU-MAINE;18I07153;17I09585;971335;200000;200000;53152;COMMUNAUTE DE COMMUNES DU PAYS DE MESLAY GREZ;2018-07-13;00040097;200000;Pays de Meslay-Grez;11;168628.2873103;53;425452603.464578;Novembre 2017;sig.territoires.pdl_ctr.11;Pays de Meslay-Grez;Pays de Meslay-Grez;CTR;53152;53;2018_08658;47.9469156243, -0.558693863131;11/2017;78
La construction d'une salle de sports - COMMUNE DE RIAILLE - 44 - CTR 2020 - PAYS ANCENIS (COMPA);Loire-Atlantique;RIAILLE;18I07140;17I09762;1594050;350000;350000;44144;COMMUNE DE RIAILLE;2018-07-13;00040355;0;Pays d'Ancenis;56;189953.08705022;44;865594442.852705;Novembre 2017;sig.territoires.pdl_ctr.56;Pays d'Ancenis;Pays d'Ancenis;CTR;44144;44;2018_08365;47.5209726669, -1.31205698332;11/2017;126
la création d'une voie verte;Sarthe;SAINT-JEAN-DU-BOIS;18I07152;17I09882;177070;24617;24617;72293;COMMUNE DE SAINT JEAN DU BOIS;2018-07-13;;;;;;;;;;;;;72293;72;2018_08587_00;47.8649273014, -0.0337210880136;;
la construction d'un équipement sportif - Evron - 53- CTR de la CC des Coëvrons;Mayenne;EVRON;18I07150;18I01923;3325000;500000;500000;53097;COMMUNE D EVRON;2018-07-13;00040062;0;Les Coëvrons;2;193924.72196165;53;788955843.049511;Février 2018;sig.territoires.pdl_ctr.2;Les Coëvrons;Les Coëvrons;CTR;53097;53;2018_08557_00;48.1520198351, -0.389270176708;02/2018;81
l'élaboration du Plan Climat Air Energie Terrritorial des Coëvrons53 - CC des COEVRONS -53 -CTR CC Coëvrons;Mayenne;EVRON;18I07151;18I01923;38730;16137;12909;53097;COMMUNAUTE DE COMMUNES DES COEVRONS;2018-07-13;00040074;16137;Les Coëvrons;2;193924.72196165;53;788955843.049511;Février 2018;sig.territoires.pdl_ctr.2;Les Coëvrons;Les Coëvrons;CTR;53097;53;2018_08558;48.1520198351, -0.389270176708;02/2018;81
La requalification de la rue du Calvaire et de la rue de Blain - Commune de la Chevallerais - 44 -  CTR 2020 de la Communauté de communes de Blain;Loire-Atlantique;LA CHEVALLERAIS;18I08839;17I04912;344191;49320;49320;44221;COMMUNE DE LA CHEVALLERAIS;2018-09-28;00041263;0;Région de Blain;12;104466.22577119;44;214288660.02636;Mai 2017;sig.territoires.pdl_ctr.12;Communauté de communes de la Région de Blain;Région de Blain;CTR;44221;44;2018_10162;47.477183891, -1.66493224738;05/2017;112
La création d'une liaison cyclable en site propre Bouvron - Blain - Le Gâvre - Communauté de communes de la Région de Blain - 44 - CTR 2020 de la Communauté de Communes de la Région de Blain;Loire-Atlantique;BLAIN;18I08849;17I04912;905000;69330;69330;44015;COMMUNAUTE DE COMMUNES DE LA REGION DE BLAIN;2018-09-28;00041318;0;Région de Blain;12;104466.22577119;44;214288660.02636;Mai 2017;sig.territoires.pdl_ctr.12;Communauté de communes de la Région de Blain;Région de Blain;CTR;44015;44;2018_10220_00;47.4628210409, -1.76789479614;05/2017;112
La construction d'une salle de sports intercommunale - COMMUNAUTE DE COMMUNES DES VALLEES DU HAUT ANJOU - 49 - CTR 2020 CC VALLEES DU HAUT ANJOU;Maine-et-Loire;LE LION-D'ANGERS;18I08795;18I02797;3193329;600000;600000;49176;CC DES VALLEES DU HAUT ANJOU;2018-09-28;00041363;0;Vallées du Haut-Anjou;30;216414.19412737;49;658684300.095436;Avril 2018;sig.territoires.pdl_ctr.30;Vallées du Haut-Anjou;Vallées du Haut-Anjou;CTR;49176;49;2018_10125_00;47.6307737346, -0.749881925184;04/2018;124
la rénovation énergétique et structurelle de la Maison de la Cour- 85 - Commune de Givrand - CTR de la CC Pays de Saint-Gilles Croix de Vie;Vendée;GIVRAND;18I08790;18I07458;187032;53035;53035;85100;GIVRAND;2018-09-28;85000201;53035;Pays de St Gilles-Croix-de-Vie;4;126534.03790467;85;293800477.999917;Avril 2018;sig.territoires.pdl_ctr.4;Communauté de communes du Pays de St Gilles-Croix-de-Vie;Pays de St Gilles-Croix-de-Vie;CTR;85100;85;2018_11092;46.6822701061, -1.8787272243;04/2018;105
la stratégie, communication et promotion touristique (investissements liés à la création de la SPL)-SOCIETE PUBLIQUE LOCALE  SUD VENDEE LITTORAL TOURISME - 85 - CTR CC Sud Vendée Littoral;Vendée;LUCON;18I08792;18I07459;126226;95000;95000;85128;SPL SUD VENDEE LITTORAL TOURISME;2018-09-28;85000181;0;Sud Vendée Littoral;48;297801.82823589;85;950717267.472634;Juillet 2018;sig.territoires.pdl_ctr.48;CC Sud Vendée Littoral;Sud Vendée Littoral;CTR;85128;85;2018_11485;46.4510564854, -1.16449285012;07/2018;106
Le réaménagement de l'espace associatif Léa Beaugé - COMMUNE DE NOIRMOUTIER EN L'ILE - 85 - CTR 2020 CC Île de Noirmoutier;Vendée;NOIRMOUTIER-EN-L'ILE;18I10394;17I08584;192304;75000;75000;85163;COMMUNE DE NOIRMOUTIER EN L ILE;2018-11-23;85000099;0;Ile de Noirmoutier;42;58228.61267806;85;49215409.8708768;Septembre 2017;sig.territoires.pdl_ctr.42;Ile de Noirmoutier;Ile de Noirmoutier;CTR;85163;85;2018_13314;47.0086655085, -2.26243620205;09/2017;93
L'aménagement du coeur de Bourg de La Limouzinière - COMMUNE DE LA LIMOUZINIERE - 44 - CTR 2020 - CC GRAND LIEU;Loire-Atlantique;LA LIMOUZINIERE;18I10729;18I06807;302518;67950;67950;44083;COMMUNE DE LA LIMOUZINIERE;2018-11-23;00043097;0;Grand Lieu;7;107565.11514829;44;300535663.006993;Juillet 2018;sig.territoires.pdl_ctr.7;Grand Lieu;Grand Lieu;CTR;44083;44;2018_12818;46.9872257466, -1.64166009462;07/2018;131
l'aménagement urbain et paysager du Quai Gorin et du Boulevard Pompidou - Saint-Gilles Croix de Vie -85- CTR 2020 CC PAYS ST GILLES CROIX DE VIE;;;18I10400;18I07458;690000;39102;39102;;COMMUNE DE SAINT GILLES CROIX DE VIE;2018-11-23;85000217;;Pays de St Gilles-Croix-de-Vie;4;126534.03790467;85;293800477.999917;Avril 2018;sig.territoires.pdl_ctr.4;Communauté de communes du Pays de St Gilles-Croix-de-Vie;Pays de St Gilles-Croix-de-Vie;CTR;;;2018_13074_00;;04/2018;105
l'aménagement du nouveau groupescolaire et accueil périscolaire - COMMUNE DE LA REORTHE - 85- CTR 2020 CC Sud Vendée Littoral;Vendée;LA REORTHE;18I10405;18I07459;193201;53002;53002;85188;MAIRIE DE LA REORTHE;2018-11-23;85000225;0;Sud Vendée Littoral;48;297801.82823589;85;950717267.472634;Juillet 2018;sig.territoires.pdl_ctr.48;CC Sud Vendée Littoral;Sud Vendée Littoral;CTR;85188;85;2018_13168;46.6113748938, -1.04881036553;07/2018;106
la réfection des vestiaires du stade de foot et aménagement d'un parking - COMMUNE DES PINEAUX-85-CTR 2020 CC Sud Vendée Littoral;Vendée;LES PINEAUX;18I10409;18I07459;31394;24102;24102;85175;COMMUNE DES PINEAUX;2018-11-23;85000244;0;Sud Vendée Littoral;48;297801.82823589;85;950717267.472634;Juillet 2018;sig.territoires.pdl_ctr.48;CC Sud Vendée Littoral;Sud Vendée Littoral;CTR;85175;85;2018_13172_00;46.599225902, -1.17865799724;07/2018;106
La recentralisation des activités commerciales - COMMUNE DE SAINT-HILAIRE-CHALEONS - 44 - CTR 2020 - CA DE PORNIC AGGLO;Loire-Atlantique;SAINT-HILAIRE-DE-CHALEONS;19I01593;17I08233;532700;45079;45079;44164;COMMUNE DE SAINT HILAIRE DE CHALEONS;2019-02-08;00044224;0;Pornic Agglo Pays de Retz;33;137060.38656142;44;451066582.29291;Septembre 2017;sig.territoires.pdl_ctr.33;Communauté d'Agglomération de Pornic Cœur Pays de Retz;Pornic Agglo Pays de Retz;CTR;44164;44;2019_01261;47.0958948849, -1.87983637967;09/2017;127
la construction d'un terrain de football synthétique au sate Marcel Boulanger - COMMUNE D'ERNEE - 53- CTR 2020 CC ERNEE;Mayenne;ERNEE;19I01619;18I04046;976794;140460;140460;53096;COMMUNE D ERNEE;2019-02-08;00044715;0;L'Ernée;8;134446.67084716;53;485109090.730026;Avril 2018;sig.territoires.pdl_ctr.8;L'Ernée;L'Ernée;CTR;53096;53;2019_01103_00;48.3039992806, -0.93628278715;04/2018;82
L'aménagement de la place de l'Eglise - COMMUNE D'ARMAILLE - 49 - CTR 2020 CC Anjou Bleu Communauté;Maine-et-Loire;ARMAILLE;19I01571;18I05642;36975;10791;10791;49010;COMMUNE D ARMAILLE;2019-02-08;00044748;0;Anjou Bleu Communauté;57;184223.75006092;49;654967768.886332;Mai 2018;sig.territoires.pdl_ctr.57;Anjou Bleu Communauté;Anjou Bleu Communauté;CTR;49010;49;2019_00874_00;47.7134820734, -1.137864787;05/2018;118
L'extension d'un gîte équestre - COMMUNE DE LA BREILLE LES PINS - CTR 2020 Saumur Val de Loire;Maine-et-Loire;LA BREILLE-LES-PINS;19I01573;18I05643;600000;89669;89669;49045;LA BREILLE LES PINS;2019-02-08;00043972;0;Saumur Val de Loire;28;222936.82254543;49;1244790494.62575;Mai 2018;sig.territoires.pdl_ctr.28;Saumur Val de Loire;Saumur Val de Loire;CTR;49045;49;2019_01162;47.3510849572, 0.0835955334414;05/2018;123
la rénovation éclairage public - COMMUNE DE MONT SAINT JEAN - 72 - CTR 2020 CC CHAMPAGNE CONLINOISE ET PAYS DE SILLE -;Sarthe;MONT-SAINT-JEAN;19I01622;18I09952;12627;10000;10000;72211;COMMUNE DE MONT SAINT JEAN;2019-02-08;00044812;10000;;;;;;;;;;;72211;72;2019_01123;48.2435955785, -0.113254973959;;
La modernisation et le développement des équipements sportifs;Loire-Atlantique;SAINT-JULIEN-DE-CONCELLES;19I01600;19I00785;253000;92857;92857;44169;COMMUNE DE SAINT JULIEN DE CONCELLES;2019-02-08;00045749;0;Sèvre et Loire;24;96321.1295473;44;277438576.414423;Février 2019;sig.territoires.pdl_ctr.24;"Communauté de communes de Sèvre et Loire
 Communauté de communes de Sèvre et Loire";Sèvre et Loire;CTR;44169;44;2019_01474_01;47.246301757, -1.40639571844;02/2019;134
L'aménagement d'un espace culturel - bibliothèque / auditorium / espace multi-activités - Commune de Jarzé Villages;Maine-et-Loire;JARZE VILLAGES;19I03595;17I06491;414898;79693;79693;49163;COMMUNE NOUVELLE JARZE VILLAGES;2019-04-05;00044664;82980;Anjou Loir et Sarthe;26;172077.9474839;49;457111657.097573;Juillet 2017;sig.territoires.pdl_ctr.26;Communauté de Communes Anjou Loir et Sarthe;Anjou Loir et Sarthe;CTR;49163;49;2019_04131_00;47.5576434301, -0.24007574412;07/2017;119
La restructuration des loges du Centre culturel des Salorges - Commune de Noirmoutier en l'île;Vendée;NOIRMOUTIER-EN-L'ILE;19I03831;17I08584;650000;88200;88200;85163;COMMUNE DE NOIRMOUTIER EN L ILE;2019-04-05;85000100;0;Ile de Noirmoutier;42;58228.61267806;85;49215409.8708768;Septembre 2017;sig.territoires.pdl_ctr.42;Ile de Noirmoutier;Ile de Noirmoutier;CTR;85163;85;2019_04155;47.0086655085, -2.26243620205;09/2017;93
la construction de vestiaires et d'un club house au stade de football -  Commune de Doix Lès Fontaines - CTR 2020 du Pays de Fontenay Vendée;Vendée;DOIX LES FONTAINES;19I03623;17I10745;350000;111900;111900;85080;COMMUNE DE DOIX LES FONTAINES;2019-04-05;85000335;0;Pays de Fontenay Vendée;39;127878.18274983;85;464973283.791542;Novembre 2017;sig.territoires.pdl_ctr.39;Pays de Fontenay Vendée;Pays de Fontenay Vendée;CTR;85080;85;2019_04567;46.3849492327, -0.806840287485;11/2017;98
l'acquisition pour la création d'une Maison des associations-85- Commune de l'Hermenault - CTR 2020 du Pays de Fontenay Vendée;Vendée;L'HERMENAULT;19I03624;17I10745;80000;31500;31500;85110;COMMUNE DE LHERMENAULT;2019-04-05;85000345;0;Pays de Fontenay Vendée;39;127878.18274983;85;464973283.791542;Novembre 2017;sig.territoires.pdl_ctr.39;Pays de Fontenay Vendée;Pays de Fontenay Vendée;CTR;85110;85;2019_04570;46.5156262822, -0.898430664265;11/2017;98
La mise en oeuvre du Plan d'actions communales pour les mobilités actives à Les Touches;Loire-Atlantique;LES TOUCHES;19I06316;17I04913;85821;40000;40000;44205;COMMUNE DES TOUCHES;2019-06-06;00047403;40000;Erdre et Gesvres;13;166735.21638325;44;509712555.822317;Mai 2017;sig.territoires.pdl_ctr.13;Communauté de communes d'Erdre et Gesvres;Erdre et Gesvres;CTR;44205;44;2019_06501;47.4523563976, -1.42756883238;05/2017;113
Le plan d'actions communales en faveur des mobilités actives (PACMA) à Treillières;Loire-Atlantique;TREILLIERES;19I06318;17I04913;160086;38128;38128;44209;COMMUNE DE TREILLIERES;2019-06-06;00047401;0;Erdre et Gesvres;13;166735.21638325;44;509712555.822317;Mai 2017;sig.territoires.pdl_ctr.13;Communauté de communes d'Erdre et Gesvres;Erdre et Gesvres;CTR;44209;44;2019_06504_00;47.3178218372, -1.62577302041;05/2017;113
La rénovation patrimoniale du château du Haut-Gesvres;Loire-Atlantique;TREILLIERES;19I06329;17I04913;729166;114248;;44209;COMMUNE DE TREILLIERES;2019-06-06;00046123;0;Erdre et Gesvres;13;166735.21638325;44;509712555.822317;Mai 2017;sig.territoires.pdl_ctr.13;Communauté de communes d'Erdre et Gesvres;Erdre et Gesvres;CTR;44209;44;2019_06604_00;47.3178218372, -1.62577302041;05/2017;113
La création de liaisons douces ' Les Rives de l'Yon  ';Vendée;INTERCOMMUNALE;19I06183;17I09579;344534;275627;275627;85191;LA ROCHE SUR YON AGGLOMERATION;2019-06-06;85000392;275627;La Roche Sur Yon Agglomération;16;155815.38916483;85;500779101.845023;Novembre 2017;sig.territoires.pdl_ctr.16;La Roche Sur Yon Agglomération;La Roche Sur Yon Agglomération;CTR;85191;85;2019_06455;46.6675261644, -1.4077954093;11/2017;96
Le pôle de commerces et de services communautaire;;;19I06206;17I09608;500000;240750;240750;;COMMUNAUTE DE COMMUNES DU PAYS DE LA CHATAIGNERAIE;2019-06-06;85000397;;Pays de la Châtaigneraie;45;135086.67917683;85;317950472.872367;Novembre 2017;sig.territoires.pdl_ctr.45;Pays de la Châtaigneraie;Pays de la Châtaigneraie;CTR;;;2019_06568_00;;11/2017;97
La création d'un réseau numérique pour la gestion de l'administration publique locale;Vendée;LA CHATAIGNERAIE;19I06220;17I09608;136600;69280;69280;85059;COMMUNAUTE DE COMMUNES DU PAYS DE LA CHATAIGNERAIE;2019-06-06;85000390;0;Pays de la Châtaigneraie;45;135086.67917683;85;317950472.872367;Novembre 2017;sig.territoires.pdl_ctr.45;Pays de la Châtaigneraie;Pays de la Châtaigneraie;CTR;85059;85;2019_06595;46.6416143401, -0.739561966419;11/2017;97
Le déploiement de bornes de recharges électriques pour L'E-Busway;Loire-Atlantique;NANTES;19I06185;18I06834;15325000;1000000;1000000;44109;NANTES METROPOLE - SIEGE;2019-06-06;00046570;1000000;Nantes Métropole;6;181264.28832122;44;534212730.160229;Juillet 2018;sig.territoires.pdl_ctr.6;Nantes Métropole;Nantes Métropole;CDM;44109;44;2019_06599;47.2316356767, -1.54831008605;07/2018;132
L'acquisition d'un véhicule électrique par la Commune de Héric;Loire-Atlantique;HERIC;19I07527;17I04913;14713;11770;11770;44073;COMMUNE D HERIC;2019-07-12;00048586;11770;Erdre et Gesvres;13;166735.21638325;44;509712555.822317;Mai 2017;sig.territoires.pdl_ctr.13;Communauté de communes d'Erdre et Gesvres;Erdre et Gesvres;CTR;44073;44;2019_08519_00;47.4207936826, -1.63717757742;05/2017;113
L'acquisition de véhicules électriques par la Commune de Grandchamp-des-Fontaines;Loire-Atlantique;GRANDCHAMPS-DES-FONTAINES;19I07538;17I04913;14080;11264;11264;44066;COMMUNE DE GRANDCHAMP DES FONTAINES;2019-07-12;00048562;11264;Erdre et Gesvres;13;166735.21638325;44;509712555.822317;Mai 2017;sig.territoires.pdl_ctr.13;Communauté de communes d'Erdre et Gesvres;Erdre et Gesvres;CTR;44066;44;2019_09486_00;47.3606796643, -1.61754475868;05/2017;113
La déploiement de la fibre optique sur le territoire de la Communauté de communes Loué-Brûlon-Noyen;Sarthe;INTERCOMMUNALE;19I07515;17I09880;1635000;182750;182750;72168;COMMUNAUTE DE COMMUNES LOUE BRULON NOYEN;2019-07-12;00044174;0;CC Loué - Brûlon - Noyen;52;226944.40757679;72;1117349894.39695;Novembre 2017;sig.territoires.pdl_ctr.52;Pays Vallée de la Sarthe;Pays Vallée de la Sarthe;CTR;72168;72;2019_08738_00;47.9976308821, -0.138237768355;11/2017;74
Le déploiement d'une offre d'autopartage électromobile en territoires peu denses;Sarthe;MAMERS;19I07797;18I06858;39225;31380;31380;72180;COMMUNE DE MAMERS;2019-07-12;00048598;31380;CC Maine Saosnois;31;160838.92939288;72;582200983.266689;Juillet 2018;sig.territoires.pdl_ctr.31;CC Maine Saosnois;CC Maine Saosnois;CTR;72180;72;2019_08735_00;48.3545313197, 0.370783494811;07/2018;86
La création d'un city-stade et d'un skate-park;;;19I07516;18I07459;131014;36550;36550;;COMMUNE DE CHAMPAGNE LES MARAIS;2019-07-12;85000446;;Sud Vendée Littoral;48;297801.82823589;85;950717267.472634;Juillet 2018;sig.territoires.pdl_ctr.48;CC Sud Vendée Littoral;Sud Vendée Littoral;CTR;;;2019_08739_00;;07/2018;106
L'immersion en Brière - le belvédère;Loire-Atlantique;SAINT MALO DE GUERSAC;19I07523;18I08406;793031;200000;200000;44176;COMMUNAUTE D AGGLO DE LA REGION NAZAIRIENNE ET DE L ESTUAIRE;2019-07-12;00048293;0;CARENE;59;128866.92125478;44;316957860.724649;Septembre 2018;sig.territoires.pdl_ctr.59;CARENE;CARENE;CTR;44176;44;2019_08512;47.3561985163, -2.17203654541;09/2018;133
La création d'une salle municipale au Clion-sur-Mer;Loire-Atlantique;PORNIC;19I09026;17I08233;2750000;313828;313828;44131;COMMUNE DE PORNIC;2019-09-27;00049514;0;Pornic Agglo Pays de Retz;33;137060.38656142;44;451066582.29291;Septembre 2017;sig.territoires.pdl_ctr.33;Communauté d'Agglomération de Pornic Cœur Pays de Retz;Pornic Agglo Pays de Retz;CTR;44131;44;2019_10078;47.1223972452, -2.05182334479;09/2017;127
L'aménagement d'un chemin piétonnier entre le bourg et la base de loisirs à Fontaine Guérin;Maine-et-Loire;LES BOIS D'ANJOU;19I08992;17I09576;59346;11000;11000;49138;COMMUNE DES BOIS D ANJOU;2019-09-27;00049515;0;Baugeois Vallée;27;204904.66931563;49;738271608.292046;Novembre 2017;sig.territoires.pdl_ctr.27;Baugeois Vallée;Baugeois Vallée;CTR;49138;49;2019_10953;47.4829167789, -0.174198642479;11/2017;120
L'aménagement d'un local accueil périscolaire;Maine-et-Loire;LA MENITRE;19I08994;17I09576;135745;33936;33936;49201;COMMUNE DE LA MENITRE;2019-09-27;00049621;0;Baugeois Vallée;27;204904.66931563;49;738271608.292046;Novembre 2017;sig.territoires.pdl_ctr.27;Baugeois Vallée;Baugeois Vallée;CTR;49201;49;2019_10955;47.4070050575, -0.256671293231;11/2017;120
La construction d'un complexe cinématographique (tranche 2);;;19I09028;17I09762;4092722;525240;525240;;COMMUNAUTE DE COMMUNES DU PAYS D ANCENIS;2019-09-27;00048493;;Pays d'Ancenis;56;189953.08705022;44;865594442.852705;Novembre 2017;sig.territoires.pdl_ctr.56;Pays d'Ancenis;Pays d'Ancenis;CTR;;;2019_10090_01;;11/2017;126
L'extension de la Zone du Grand-Bois à Allonnes;Maine-et-Loire;ALLONNES (49002);19I09003;18I05643;328602;40520;40520;49328;CA SAUMUR VAL DE LOIRE;2019-09-27;00049459;0;Saumur Val de Loire;28;222936.82254543;49;1244790494.62575;Mai 2018;sig.territoires.pdl_ctr.28;Saumur Val de Loire;Saumur Val de Loire;CTR;49328;49;2019_10975;47.2673853525, -0.0830410591988;05/2018;123
Les travaux d'extension de l'Actipôle de Bel Air;Vendée;SAINTE-CECILE (85110);19I08940;18I06678;150000;60000;60000;85051;COMMUNAUTE DE COMMUNES DU PAYS DE CHANTONNAY;2019-09-27;85000491;0;Pays de Chantonnay;44;130417.27851046;85;319474713.690402;Avril 2018;sig.territoires.pdl_ctr.44;Pays de Chantonnay;Pays de Chantonnay;CTR;85051;85;2019_11053;46.6690167793, -1.04372588019;04/2018;103
L'extension de l'espace Saugonna;Sarthe;MAMERS;19I08911;18I06858;653752;361801;361801;72180;COMMUNAUTE DE COMMUNES MAINE SAOSNOIS;2019-09-27;00049397;0;CC Maine Saosnois;31;160838.92939288;72;582200983.266689;Juillet 2018;sig.territoires.pdl_ctr.31;CC Maine Saosnois;CC Maine Saosnois;CTR;72180;72;2019_10343;48.3545313197, 0.370783494811;07/2018;86
La rénovation énergétique de la salle de l'Entracte;Sarthe;SAINT-SYMPHORIEN;19I08919;18I09952;70839;25500;25500;72321;COMMUNE DE SAINT SYMPHORIEN;2019-09-27;00048898;25500;;;;;;;;;;;72321;72;2019_10363;48.0785627545, -0.140972858304;;
La création d'un parc environnemental;Mayenne;CHANGE;19I08906;19I00770;235000;22113;22113;53054;COMMUNE DE CHANGE;2019-09-27;00049190;0;Laval Agglomération;53;160270.39281569;53;438471285.378152;Février 2019;sig.territoires.pdl_ctr.53;Laval Agglomération;Laval Agglomération;CTR;53054;53;2019_10330;48.1079801148, -0.800104772023;02/2019;84
La rénovation des cuisines de la salle communale Abbé Saget;Mayenne;LA CHAPELLE-ANTHENAISE;19I08909;19I00770;29902;11960;11960;53056;COMMUNE DE LA CHAPELLE ANTHENAISE;2019-09-27;00048826;0;Laval Agglomération;53;160270.39281569;53;438471285.378152;Février 2019;sig.territoires.pdl_ctr.53;Laval Agglomération;Laval Agglomération;CTR;53056;53;2019_10333_00;48.1320145418, -0.660149410464;02/2019;84
Le plan de conservation des collections patrimoniales de la Médiathèque Louis Aragon;Sarthe;LE MANS;19I08900;19I04948;347858;70000;70000;72181;COMMUNE DU MANS;2019-09-27;00049339;0;CU Le Mans Métropole;20;141570.43537983;72;268048561.841433;Juin 2019;sig.territoires.pdl_ctr.20;CU Le Mans Métropole;CU Le Mans Métropole;CDM;72181;72;2019_10338;47.9885256718, 0.200030493539;06/2019;91
L'aménagements de sécurité routière rues de Nantes, Châteaubriant et Avenue Burel;Loire-Atlantique;SAINT-NICOLAS-DE-REDON;19I09035;19I06781;475506;207223;207223;44185;COMMUNE DE SAINT NICOLAS DE REDON;2019-09-27;00049124;0;Redon Bretagne Sud;58;222098.45592879;44;975206076.430979;Juillet 2019;sig.territoires.pdl_ctr.58;Redon Bretagne Sud;Redon Bretagne Sud;CTR;44185;44;2019_11482;47.6362405155, -2.05685289452;07/2019;136
La réfection de la chaufferie du complexe sportif et culturel des 100 Sillons;Loire-Atlantique;GRANDCHAMPS DES FONTAINES;19I10718;17I04913;62000;30000;30000;44066;COMMUNE DE GRANDCHAMP DES FONTAINES;2019-11-15;00050621;0;Erdre et Gesvres;13;166735.21638325;44;509712555.822317;Mai 2017;sig.territoires.pdl_ctr.13;Communauté de communes d'Erdre et Gesvres;Erdre et Gesvres;CTR;44066;44;2019_15522;47.3606796643, -1.61754475868;05/2017;113
Le projet de remplacement des huisseries simple vitrage;Loire-Atlantique;CASSON;19I10832;17I04913;38049;30000;30000;44027;COMMUNE DE CASSON;2019-11-15;00051822;0;Erdre et Gesvres;13;166735.21638325;44;509712555.822317;Mai 2017;sig.territoires.pdl_ctr.13;Communauté de communes d'Erdre et Gesvres;Erdre et Gesvres;CTR;44027;44;2019_16040;47.3920308092, -1.55573718805;05/2017;113
La requalification du site du Champ de Foire de Béré;Loire-Atlantique;CHATEAUBRIANT;19I10723;17I04914;1100000;400000;400000;44036;COMMUNE DE CHATEAUBRIANT;2019-11-15;00051534;0;Châteaubriant-Derval;19;192160.53583929;44;884476807.089572;Mai 2017;sig.territoires.pdl_ctr.19;Communauté de communes Châteaubriant Derval;Châteaubriant-Derval;CTR;44036;44;2019_15529;47.7221583524, -1.38664809937;05/2017;114
L'installation de bornes de recharges et l'acquisition de véhicules électriques;Maine-et-Loire;SAINT GEORGES SUR LOIRE;19I10539;17I08581;255000;143500;143500;49283;CC LOIRE LAYON AUBANCE;2019-11-15;00051816;143500;Loire Layon Aubance;29;220718.82914478;49;613435516.735679;Septembre 2017;sig.territoires.pdl_ctr.29;Loire Layon Aubance;Loire Layon Aubance;CTR;49283;49;2019_15613;47.4024678993, -0.756078071904;09/2017;121
L'extension et aménagement de l'ensemble immobilier du pôle aménagement à Beaupréau-en-Mauges;Maine-et-Loire;BEAUPREAU-EN-MAUGES;19I10530;17I08582;759169;607335;607335;49023;MAUGES COMMUNAUTE;2019-11-15;00051115;0;Mauges Communauté;5;274965.40485114;49;1318044533.54153;Septembre 2017;sig.territoires.pdl_ctr.5;Mauges Communauté;Mauges Communauté;CTR;49023;49;2019_14931;47.2125984545, -0.983619028639;09/2017;122
La réhabilitation de l'Ecole de Musique Intercommunale;Loire-Atlantique;PAIMBŒUF;19I10733;17I09761;538892;328000;328000;44116;COMMUNAUTE DE COMMUNES DU SUD ESTUAIRE;2019-11-15;00049703;0;Sud Estuaire;40;69676.17445778;44;202807972.29704;Novembre 2017;sig.territoires.pdl_ctr.40;Sud Estuaire;Sud Estuaire;CTR;44116;44;2019_15541;47.2863992883, -2.02807425552;11/2017;128
L'extension et la restructuration du restaurant scolaire de Saint-Cyr-en-Retz;Loire-Atlantique;VILLENEUVE EN RETZ;19I10738;18I05377;127807;90000;90000;44021;COMMUNE DE VILLENEUVE EN RETZ;2019-11-15;00051950;0;Sud Retz Atlantique;25;169463.38998873;44;425092538.170903;Mai 2018;sig.territoires.pdl_ctr.25;Sud Retz Atlantique;Sud Retz Atlantique;CTR;44021;44;2019_15546;47.0381472853, -1.92586734325;05/2018;75
La construction d'un centre aquatique intercommunal;Vendée;CHANTONNAY;19I10526;18I06678;2000000;683820;683820;85051;COMMUNAUTE DE COMMUNES DU PAYS DE CHANTONNAY;2019-11-15;85000512;98200;Pays de Chantonnay;44;130417.27851046;85;319474713.690402;Avril 2018;sig.territoires.pdl_ctr.44;Pays de Chantonnay;Pays de Chantonnay;CTR;85051;85;2019_15624_00;46.6690167793, -1.04372588019;04/2018;103
L'extension et la rénovation de l'Ecole Bellevue;Maine-et-Loire;MURS-ERIGNE;19I10523;18I06680;1771577;105000;105000;49223;COMMUNE DE MURS ERIGNE;2019-11-15;00049795;105000;Angers Loire Métropole;10;192445.630446;49;676496020.936854;Juillet 2018;sig.territoires.pdl_ctr.10;Angers Loire Métropole;Angers Loire Métropole;CDM;49223;49;2019_14926;47.3952383531, -0.553551118702;07/2018;116
L'acquisition foncière pour l'extension de la ZA des Cytises;;;19I10555;18I06858;96853;35212;35212;;COMMUNAUTE DE COMMUNES MAINE SAOSNOIS;2019-11-15;00051764;;CC Maine Saosnois;31;160838.92939288;72;582200983.266689;Juillet 2018;sig.territoires.pdl_ctr.31;CC Maine Saosnois;CC Maine Saosnois;CTR;;;2019_15777_00;;07/2018;86
La rénovation d'un bâtiment de l'école élémentaire 'Catherine Paysan';Sarthe;BONNETABLE;19I10966;18I06858;464718;179401;179401;72039;COMMUNE DE BONNETABLE;2019-11-15;00051709;179401;CC Maine Saosnois;31;160838.92939288;72;582200983.266689;Juillet 2018;sig.territoires.pdl_ctr.31;CC Maine Saosnois;CC Maine Saosnois;CTR;72039;72;2019_15779_00;48.18474164, 0.452449305895;07/2018;86
Les équipements de production d'énergies renouvelables à l'EHPAD 'Résidence Fleurie';Vendée;NALLIERS;19I10843;18I07459;411193;160000;160000;85159;EHPAD RESIDENCE FLEURIE;2019-11-15;85000511;160000;Sud Vendée Littoral;48;297801.82823589;85;950717267.472634;Juillet 2018;sig.territoires.pdl_ctr.48;CC Sud Vendée Littoral;Sud Vendée Littoral;CTR;85159;85;2019_15812;46.4658962703, -1.03958611312;07/2018;106
L'extension de la salle des fêtes du bourg;Vendée;CHATEAU-GUIBERT;19I10844;18I07459;184944;68358;68358;85061;COMMUNE DE CHATEAU GUIBERT;2019-11-15;85000502;0;Sud Vendée Littoral;48;297801.82823589;85;950717267.472634;Juillet 2018;sig.territoires.pdl_ctr.48;CC Sud Vendée Littoral;Sud Vendée Littoral;CTR;85061;85;2019_15813;46.5741109302, -1.25524886228;07/2018;106
La réhabilitation du centre aquatique intercommunal;Vendée;POUZAUGES;19I10527;18I08141;2000000;162670;162670;85182;COMMUNAUTE DE COMMUNES DU PAYS DE POUZAUGES;2019-11-15;85000515;0;Pays de Pouzauges;60;109218.55751266;85;320861396.374744;Septembre 2018;sig.territoires.pdl_ctr.60;Communauté de communes du Pays de Pouzauges;Pays de Pouzauges;CTR;85182;85;2019_15625_00;46.7812581702, -0.828778359084;09/2018;107
L'extension et l'aménagement de la place du Vendée Globe;;;19I10847;19I00772;4896693;446445;446445;;CA LES SABLES D OLONNE AGGLOMERATION;2019-11-15;85000513;;Les Sables d’Olonnes Agglomération;64;68286.96593903;85;173467589.879851;Février 2019;sig.territoires.pdl_ctr.64;Les Sables d’Olonnes Agglomération;Les Sables d’Olonnes Agglomération;CTR;;;2019_16074_01;;02/2019;108
Le marketing territorial;Sarthe;INTERCOMMUNALE;21I02939;19I03414;100000;80000;80000;72364;SPL VALLEE DU LOIR TOURISME;2019-11-15;00051284;0;CC du Pays Fléchois;49;306001.78232882;72;1427230046.65579;;sig.territoires.pdl_ctr.49;PETR Pays Vallée du Loir;Pays Vallée du Loir;CTR;72364;72;2019_15798_00;47.6723014522, 0.315373744758;;90
Les travaux sur le pignon de l'ancienne mairie de St Emilien de Blain;Loire-Atlantique;BLAIN;20I02234;17I04912;33200;12350;12350;44015;COMMUNE DE BLAIN;2020-02-14;00052443;;Région de Blain;12;104466.22577119;44;214288660.02636;Mai 2017;sig.territoires.pdl_ctr.12;Communauté de communes de la Région de Blain;Région de Blain;CTR;44015;44;2020_00920_00;47.4628210409, -1.76789479614;05/2017;112
Le réaménagement du commerce;Loire-Atlantique;NOYAL SUR BRUTZ;20I02228;17I04914;368028;75000;75000;44112;COMMUNE DE NOYAL SUR BRUTZ;2020-02-14;00053152;0;Châteaubriant-Derval;19;192160.53583929;44;884476807.089572;Mai 2017;sig.territoires.pdl_ctr.19;Communauté de communes Châteaubriant Derval;Châteaubriant-Derval;CTR;44112;44;2020_00911;47.7711430561, -1.343155162;05/2017;114
Les travaux d'amélioration énergétique d'un bâtiment de six logements;Loire-Atlantique;JANS;20I02229;17I04914;169578;75000;75000;44076;COMMUNE DE JANS;2020-02-14;00053847;75000;Châteaubriant-Derval;19;192160.53583929;44;884476807.089572;Mai 2017;sig.territoires.pdl_ctr.19;Communauté de communes Châteaubriant Derval;Châteaubriant-Derval;CTR;44076;44;2020_00912;47.6241270257, -1.60441413686;05/2017;114
L'acquisition d'un Véhicule à Assistance Electrique;Maine-et-Loire;SAINT GEORGES SUR LOIRE;20I02264;17I08581;20000;14000;14000;49283;COMMUNE DE SAINT GEORGES SUR LOIRE;2020-02-14;00053047;14000;Loire Layon Aubance;29;220718.82914478;49;613435516.735679;Septembre 2017;sig.territoires.pdl_ctr.29;Loire Layon Aubance;Loire Layon Aubance;CTR;49283;49;2020_01061;47.4024678993, -0.756078071904;09/2017;121
L'extension de la piscine communale Les Nautiles;Maine-et-Loire;SEGRE EN ANJOU BLEU;20I02274;18I05642;2000000;400000;400000;49331;COMMUNE DE SEGRE EN ANJOU BLEU;2020-02-14;00050944;0;Anjou Bleu Communauté;57;184223.75006092;49;654967768.886332;Mai 2018;sig.territoires.pdl_ctr.57;Anjou Bleu Communauté;Anjou Bleu Communauté;CTR;49331;49;2020_01089;47.7016654227, -0.863354104119;05/2018;118
L'aménagement de la place des diligences à Montsoreau;Maine-et-Loire;MONTSOREAU;20I02279;18I05643;1120938;128414;128414;49219;COMMUNE DE MONTSOREAU;2020-02-14;00053387;0;Saumur Val de Loire;28;222936.82254543;49;1244790494.62575;Mai 2018;sig.territoires.pdl_ctr.28;Saumur Val de Loire;Saumur Val de Loire;CTR;49219;49;2020_01104;47.2135013304, 0.0519492185178;05/2018;123
L'amélioration des conditions d'accueil du service enfance-jeunesse : installation d'une climatisation;;;20I02297;18I06858;28020;21642;21642;;COMMUNAUTE DE COMMUNES MAINE SAOSNOIS;2020-02-14;00053860;;CC Maine Saosnois;31;160838.92939288;72;582200983.266689;Juillet 2018;sig.territoires.pdl_ctr.31;CC Maine Saosnois;CC Maine Saosnois;CTR;;;2020_01324_00;;07/2018;86
La construction du pôle culturel de Laval;;;20I02293;19I00770;21977005;1000000;1000000;;LAVAL AGGLOMERATION;2020-02-14;00051283;;Laval Agglomération;53;160270.39281569;53;438471285.378152;Février 2019;sig.territoires.pdl_ctr.53;Laval Agglomération;Laval Agglomération;CTR;;;2020_01297_01;;02/2019;84
L'acquisition de véhicules électriques;Mayenne;LAVAL;20I02294;19I00770;82032;65626;65626;53130;COMMUNE DE LAVAL;2020-02-14;00053080;65626;Laval Agglomération;53;160270.39281569;53;438471285.378152;Février 2019;sig.territoires.pdl_ctr.53;Laval Agglomération;Laval Agglomération;CTR;53130;53;2020_01298_01;48.0608565468, -0.766005687142;02/2019;84
L'extension et la réhabilitation de la mairie;;;20I02559;19I04948;362193;72315;72315;;COMMUNE D AIGNE;2020-02-14;00053926;;CU Le Mans Métropole;20;141570.43537983;72;268048561.841433;Juin 2019;sig.territoires.pdl_ctr.20;CU Le Mans Métropole;CU Le Mans Métropole;CDM;;;2020_01843_00;;06/2019;91
La requalification du parc d'activités des Mandeliers à la Guérinière;Vendée;LA GUERINIERE;20I04637;17I08584;405556;242700;224424;85106;COMMUNAUTE DE COMMUNES DE L ILE DE NOIRMOUTIER;2020-04-30;85000645;0;Ile de Noirmoutier;42;58228.61267806;85;49215409.8708768;Septembre 2017;sig.territoires.pdl_ctr.42;Ile de Noirmoutier;Ile de Noirmoutier;CTR;85106;85;2020_04388;46.9669962053, -2.2302799245;09/2017;93
L'installation de panneaux photovoltaïques sur la toiture du futur commerce multi-services;;;20I04478;18I05642;15045;11665;11665;;COMMUNE DE LOIRE;2020-04-30;00055506;;Anjou Bleu Communauté;57;184223.75006092;49;654967768.886332;Mai 2018;sig.territoires.pdl_ctr.57;Anjou Bleu Communauté;Anjou Bleu Communauté;CTR;;;2020_04332_00;;05/2018;118
L'équipement mobilier du pôle de formations supérieures du Saumurois;Maine-et-Loire;SAUMUR;20I04488;18I05643;237612;79582;79582;49328;CA SAUMUR VAL DE LOIRE;2020-04-30;00055295;0;Saumur Val de Loire;28;222936.82254543;49;1244790494.62575;Mai 2018;sig.territoires.pdl_ctr.28;Saumur Val de Loire;Saumur Val de Loire;CTR;49328;49;2020_04359;47.2673853525, -0.0830410591988;05/2018;123
L'extension de l'espace culturel Paul Bouin;Loire-Atlantique;BASSE GOULAINE;20I04500;18I06834;0;0;;44009;COMMUNE DE BASSE GOULAINE;2020-04-30;00056253;0;Nantes Métropole;6;181264.28832122;44;534212730.160229;Juillet 2018;sig.territoires.pdl_ctr.6;Nantes Métropole;Nantes Métropole;CDM;44009;44;2020_04701_00;47.2120137336, -1.46246852595;07/2018;132
La rénovation de l'ancien presbytère;Loire-Atlantique;SAINT AIGNAN GRANDLIEU;20I04503;18I06834;904933;60000;60000;44150;COMMUNE DE SAINT AIGNAN DE GRAND LIEU;2020-04-30;00055082;0;Nantes Métropole;6;181264.28832122;44;534212730.160229;Juillet 2018;sig.territoires.pdl_ctr.6;Nantes Métropole;Nantes Métropole;CDM;44150;44;2020_04708;47.1331072085, -1.62317141788;07/2018;132
La rénovation de l'éclairage public;Sarthe;TENNIE;20I04548;18I09952;23998;10000;10000;72351;COMMUNE DE TENNIE;2020-04-30;00057231;10000;;;;;;;;;;;72351;72;2020_04874;48.1097279005, -0.0864881845663;;
La rénovation partielle de la salle des fêtes;Mayenne;MONTIGNE LE BRILLANT;20I04549;19I00770;157880;39919;1772;53157;COMMUNE DE MONTIGNE LE BRILLANT;2020-04-30;00055356;30000;Laval Agglomération;53;160270.39281569;53;438471285.378152;Février 2019;sig.territoires.pdl_ctr.53;Laval Agglomération;Laval Agglomération;CTR;53157;53;2020_05206;48.013438147, -0.816955445143;02/2019;84
La construction d'un équipement aquatique à Lys Haut Layon;;;20I04481;19I03361;7984674;1295374;1295374;;CA AGGLOMERATION DU CHOLETAIS;2020-04-30;00054840;;Agglomération du Choletais;34;229029.73988845;49;785712045.648911;Avril 2019;sig.territoires.pdl_ctr.34;Communauté d'Agglomération de l'Agglomération du Choletais;Agglomération du Choletais;CTR;;;2020_04342_00;;04/2019;117
La conception pour la construction d'une piscine couverte à la Pommeraye (Mauges sur Loire);Maine-et-Loire;MAUGES SUR LOIRE;20I05936;17I08582;1019030;778428;778428;49244;COMMUNE DE MAUGES SUR LOIRE;2020-05-29;00057607;0;Mauges Communauté;5;274965.40485114;49;1318044533.54153;Septembre 2017;sig.territoires.pdl_ctr.5;Mauges Communauté;Mauges Communauté;CTR;49244;49;2020_06899;47.3429800481, -0.869186945487;09/2017;122
La création d'un city-stade;Vendée;MOREILLES;20I05946;18I07459;51436;39184;39184;85149;MAIRIE DE MOREILLES;2020-05-29;85000648;0;Sud Vendée Littoral;48;297801.82823589;85;950717267.472634;Juillet 2018;sig.territoires.pdl_ctr.48;CC Sud Vendée Littoral;Sud Vendée Littoral;CTR;85149;85;2020_06568;46.4218721314, -1.09404530407;07/2018;106
L'aménagement de l'entrée de Trignac;Loire-Atlantique;TRIGNAC;20I05915;18I08406;1372700;274540;274540;44210;COMMUNE DE TRIGNAC;2020-05-29;00056793;0;CARENE;59;128866.92125478;44;316957860.724649;Septembre 2018;sig.territoires.pdl_ctr.59;CARENE;CARENE;CTR;44210;44;2020_06827;47.3125328416, -2.20700045585;09/2018;133
La création d'un lieu culturel;Loire-Atlantique;LE LANDREAU;20I05916;19I00785;434000;92928;5910;44079;COMMUNE DE LE LANDREAU;2020-05-29;00056626;0;Sèvre et Loire;24;96321.1295473;44;277438576.414423;Février 2019;sig.territoires.pdl_ctr.24;"Communauté de communes de Sèvre et Loire
 Communauté de communes de Sèvre et Loire";Sèvre et Loire;CTR;44079;44;2020_06828;47.2077664835, -1.29844309328;02/2019;134
La mise en place du 'Cartable numérique' à destination des élus de Cap Atlantique et de ses communes membres;Loire-Atlantique;LA BAULE ESCOUBLAC;20I07235;17I09003;159572;55850;55850;44055;COMMUNAUTE D AGGLOMERATION DE LA PRESQU ILE DE GUERANDE ATLANTIQUE;2020-07-10;00058477;0;Cap Atlantique;41;145725.47329518;44;395838108.965296;Septembre 2017;sig.territoires.pdl_ctr.41;Cap Atlantique;Cap Atlantique;CTR;44055;44;2020_08329;47.2909720179, -2.3538291745;09/2017;125
La construction d'un atelier-relais pour CEROP 53;Mayenne;MESLAY DU MAINE;20I07264;17I09585;680500;350209;350209;53152;COMMUNAUTE DE COMMUNES DU PAYS DE MESLAY GREZ;2020-07-10;00058281;0;Pays de Meslay-Grez;11;168628.2873103;53;425452603.464578;Novembre 2017;sig.territoires.pdl_ctr.11;Pays de Meslay-Grez;Pays de Meslay-Grez;CTR;53152;53;2020_08315_00;47.9469156243, -0.558693863131;11/2017;78
L'aménagement d'un citystade;Loire-Atlantique;LA CHAPELLE LAUNAY;20I07236;17I09760;101172;47890;47890;44033;COMMUNE DE LA CHAPELLE LAUNAY;2020-07-10;00058549;0;Estuaire et Sillon;61;112337.65867316;44;313121598.740399;Novembre 2017;sig.territoires.pdl_ctr.61;Communauté de communes d'Estuaire et Sillon;Estuaire et Sillon;CTR;44033;44;2020_08330;47.3530614373, -1.98191491086;11/2017;129
L'aménagement du pôle de loisirs et de tourisme du nord Saumurois;Maine-et-Loire;BRAIN SUR ALLONNES;20I07263;18I05643;1533230;345800;185452;49041;COMMUNE DE BRAIN SUR ALLONNES;2020-07-10;00058171;0;Saumur Val de Loire;28;222936.82254543;49;1244790494.62575;Mai 2018;sig.territoires.pdl_ctr.28;Saumur Val de Loire;Saumur Val de Loire;CTR;49041;49;2020_08292;47.3056918695, 0.0710549100336;05/2018;123
La rénovation d'un bâtiment communal en espace de vie sociale;;;20I07233;18I07459;118410;51324;51324;;COMMUNE DE MOUTIERS SUR LE LAY;2020-07-10;85000683;;Sud Vendée Littoral;48;297801.82823589;85;950717267.472634;Juillet 2018;sig.territoires.pdl_ctr.48;CC Sud Vendée Littoral;Sud Vendée Littoral;CTR;;;2020_08314_00;;07/2018;106
Le projet de liaison cyclable Férel-Herbignac;Loire-Atlantique;LA BAULE ESCOUBLAC;20I09336;17I09003;177500;55732;55732;44055;COMMUNAUTE D AGGLOMERATION DE LA PRESQU ILE DE GUERANDE ATLANTIQUE;2020-09-25;00062367;;Cap Atlantique;41;145725.47329518;44;395838108.965296;Septembre 2017;sig.territoires.pdl_ctr.41;Cap Atlantique;Cap Atlantique;CTR;44055;44;2020_10190_00;47.2909720179, -2.3538291745;09/2017;125
La réhabiliation de la salle de l'Escale;Mayenne;RENAZE;20I09168;17I09006;800850;80085;80085;53188;COMMUNE DE RENAZE;2020-09-25;00071427;39473;Pays de Craon;62;169901.29669863;53;646041148.74744;Septembre 2017;sig.territoires.pdl_ctr.62;Pays de Craon;Pays de Craon;CTR;53188;53;2020_10772;47.7843103989, -1.040222995;09/2017;77
La construction d'un atelier relais n°25;;;20I09135;17I09576;755000;195144;195144;;COMMUNAUTE DE COMMUNES BAUGEOIS VALLEE;2020-09-25;00068887;;Baugeois Vallée;27;204904.66931563;49;738271608.292046;Novembre 2017;sig.territoires.pdl_ctr.27;Baugeois Vallée;Baugeois Vallée;CTR;;;2020_09907_00;;11/2017;120
La rénovation du terrain de tennis;Vendée;MALLIEVRE;20I09328;17I09578;34331;23720;23720;85134;COMMUNE DE MALLIEVRE;2020-09-25;85000722;0;Pays de Mortagne;18;126807.36564022;85;228566018.366052;Novembre 2017;sig.territoires.pdl_ctr.18;Pays de Mortagne;Pays de Mortagne;CTR;85134;85;2020_09837;46.9112847287, -0.864977836096;11/2017;95
Le réaménagement du Parc de l'Europe;;;20I09140;18I06680;2054488;333849;333849;;COMMUNE DE SAINT BARTHELEMY D ANJOU;2020-09-25;00071273;;Angers Loire Métropole;10;192445.630446;49;676496020.936854;Juillet 2018;sig.territoires.pdl_ctr.10;Angers Loire Métropole;Angers Loire Métropole;CDM;;;2020_09915_00;;07/2018;116
Le développement de la Cité du cirque Marcel Marceau : implantation d'un chapiteau permanent;Sarthe;LE MANS;20I09145;19I04948;2040400;300000;300000;72181;COMMUNE DU MANS;2020-09-25;00061815;0;CU Le Mans Métropole;20;141570.43537983;72;268048561.841433;Juin 2019;sig.territoires.pdl_ctr.20;CU Le Mans Métropole;CU Le Mans Métropole;CDM;72181;72;2020_10656;47.9885256718, 0.200030493539;06/2019;91
Le développement de la dématérialisation et les équipements de modernisation des services;Maine-et-Loire;TIERCE;20I11792;17I06491;87018;69031;69031;49347;ANJOU LOIR ET SARTHE;2020-11-13;00121196;0;Anjou Loir et Sarthe;26;172077.9474839;49;457111657.097573;Juillet 2017;sig.territoires.pdl_ctr.26;Communauté de Communes Anjou Loir et Sarthe;Anjou Loir et Sarthe;CTR;49347;49;2020_14032;47.6245599519, -0.44344301136;07/2017;119
La construction de la maison du parc;Maine-et-Loire;LES GARENNES SUR LOIRE;20I11784;17I08581;353585;97206;97206;49167;COMMUNES DES GARENNES SUR LOIRE;2020-11-13;00120458;0;Loire Layon Aubance;29;220718.82914478;49;613435516.735679;Septembre 2017;sig.territoires.pdl_ctr.29;Loire Layon Aubance;Loire Layon Aubance;CTR;49167;49;2020_13344;47.40011602, -0.484584915233;09/2017;121
Les travaux de construction du centre technique - secteur 1;Maine-et-Loire;SAINT GEORGES SUR LOIRE;20I11785;17I08581;1135942;123169;;49283;CC LOIRE LAYON AUBANCE;2020-11-13;00121239;0;Loire Layon Aubance;29;220718.82914478;49;613435516.735679;Septembre 2017;sig.territoires.pdl_ctr.29;Loire Layon Aubance;Loire Layon Aubance;CTR;49283;49;2020_13346;47.4024678993, -0.756078071904;09/2017;121
La création d'un nouvel équipement périscolaire et la construction d'un bâtiment à vocation mixte à St Rémy en Mauges (Montrevault sur Evre);Maine-et-Loire;MONTREVAULT SUR EVRE;20I11790;17I08582;869000;442028;225920;49218;MONTREVAULT SUR EVRE;2020-11-13;00072756;0;Mauges Communauté;5;274965.40485114;49;1318044533.54153;Septembre 2017;sig.territoires.pdl_ctr.5;Mauges Communauté;Mauges Communauté;CTR;49218;49;2020_13376;47.255395404, -1.05160971025;09/2017;122
Les travaux d'aménagement du centre de stages;Loire-Atlantique;LA BAULE ESCOUBLAC;20I11975;17I09003;125903;44066;44066;44055;COMMUNE DE LA BAULE ESCOUBLAC;2020-11-13;00112120;0;Cap Atlantique;41;145725.47329518;44;395838108.965296;Septembre 2017;sig.territoires.pdl_ctr.41;Cap Atlantique;Cap Atlantique;CTR;44055;44;2020_13641;47.2909720179, -2.3538291745;09/2017;125
La réhabilitation du port avec le renforcement du quai et des deux piliers;Sarthe;MALICORNE SUR SARTHE;20I12022;17I09882;58269;15000;15000;72179;COMMUNE DE MALICORNE SUR SARTHE;2020-11-13;00094804;0;;;;;;;;;;;72179;72;2020_13706;47.8125544281, -0.0874543104248;;
La rénovation du camping du Gué Saint Léonard;Mayenne;MAYENNE;20I12011;18I00723;1081250;616000;492800;53147;MAYENNE COMMUNAUTE;2020-11-13;00121606;0;Mayenne Communauté;3;193726.21308398;53;626754357.991273;Février 2018;sig.territoires.pdl_ctr.3;Mayenne Communauté;Mayenne Communauté;CTR;53147;53;2020_13693;48.3074609449, -0.614799950799;02/2018;79
La rénovation énergétique de l'école primaire;Sarthe;SAINT COSME EN VAIRAIS;20I12016;18I06858;93526;74820;74820;72276;COMMUNE DE SAINT COSME EN VAIRAIS;2020-11-13;00120736;74820;CC Maine Saosnois;31;160838.92939288;72;582200983.266689;Juillet 2018;sig.territoires.pdl_ctr.31;CC Maine Saosnois;CC Maine Saosnois;CTR;72276;72;2020_13700;48.2744377482, 0.457973879241;07/2018;86
La déconstruction de 10 bâtiments sur le site de la Croix Gaudin;Loire-Atlantique;SAINT ETIENNE DE MONTLUC;21I02592;17I09760;937200;470845;470845;44158;COMMUNAUTE DE COMMUNES ESTUAIRE ET SILLON;2021-02-12;00058525;0;Estuaire et Sillon;61;112337.65867316;44;313121598.740399;Novembre 2017;sig.territoires.pdl_ctr.61;Communauté de communes d'Estuaire et Sillon;Estuaire et Sillon;CTR;44158;44;2021_04298;47.265112989, -1.78426879748;11/2017;129
L'aménagement rue du Marché Neuf;;;21I02589;18I05377;206894;39605;39605;;COMMUNE DE PAULX;2021-02-12;00138022;;Sud Retz Atlantique;25;169463.38998873;44;425092538.170903;Mai 2018;sig.territoires.pdl_ctr.25;Sud Retz Atlantique;Sud Retz Atlantique;CTR;;;2021_04249_00;;05/2018;75
La rénovation et la mise en sécurité du stade;Vendée;MONTOURNAIS;21I02731;18I08141;50497;25000;25000;85147;COMMUNE DE MONTOURNAIS;2021-02-12;85000759;0;Pays de Pouzauges;60;109218.55751266;85;320861396.374744;Septembre 2018;sig.territoires.pdl_ctr.60;Communauté de communes du Pays de Pouzauges;Pays de Pouzauges;CTR;85147;85;2021_04260_00;46.7502937556, -0.770013941158;09/2018;107
La restauration d'une structure d'accueil et de rencontre;;;21I02640;19I00771;33056;7854;7854;;COMMUNE DE BOULOIRE;2021-02-12;00136972;;CC du Pays de l'Huisne Sarthoise;35;265241.4780676;72;1290421266.50866;Février 2019;sig.territoires.pdl_ctr.35;Pays du Perche Sarthois;Pays du Perche Sarthois;CTR;;;2021_04354_00;;02/2019;88
La construction d'un équipement dédié aux activités enfance et jeunesse;Sarthe;YVRE L EVEQUE;23I00479;19I04948;1238700;217596;217596;72386;COMMUNE DE YVRE L EVEQUE;2021-03-31;00138485;;CU Le Mans Métropole;20;141570.43537983;72;268048561.841433;Juin 2019;sig.territoires.pdl_ctr.20;CU Le Mans Métropole;CU Le Mans Métropole;CDM;72386;72;2021_05354_00;48.0234127838, 0.282137902604;06/2019;91
La construction d'un pôle commerces, phase 2;;;23I02680;18I00770;707701;122742;98193;;COMMUNE DE SAINT OUEN DES TOITS;2021-05-21;00147824;;Pays de Loiron;63;104558.05453473;53;256504826.222709;Février 2018;sig.territoires.pdl_ctr.63;Pays de Loiron;Pays de Loiron;CTR;;;2021_08353_03;;02/2018;80
Les travaux d'aménagement de la rue Yves Ramoz;;;23I05080;18I06679;209982;37500;37500;;COMMUNE DE ST PAUL EN PAREDS;2021-05-21;85000895;;Pays des Herbiers;17;117942.86919888;85;250332696.371675;Juillet 2018;sig.territoires.pdl_ctr.17;Pays des Herbiers;Pays des Herbiers;CTR;;;2021_08056_01;;07/2018;104
L'installation de deux bornes de recharge pour véhicules électriques;;;23I05108;18I09842;14250;9916;9916;;COMMUNE DE FRESNAY SUR SARTHE;2021-05-21;00147352;;CC Haute Sarthe Alpes Mancelles;46;208876.08303841;72;922846721.323114;Novembre 2018;sig.territoires.pdl_ctr.46;Pays de la Haute Sarthe;Pays de la Haute Sarthe;CTR;;;2021_08433_02;;11/2018;87
La construction d'une salle polyvalente;;;23I05107;18I09952;600000;64500;21233;;COMMUNE DE ROUESSE VASSE;2021-05-21;00136736;;;;;;;;;;;;;;2021_08431_01;;;
Création d'une plateforme de transport combiné rail-route;Mayenne;SAINT BERTHEVIN;21I07881;19I00770;0;0;;53201;LAVAL AGGLOMERATION;2021-05-21;00148510;;Laval Agglomération;53;160270.39281569;53;438471285.378152;Février 2019;sig.territoires.pdl_ctr.53;Laval Agglomération;Laval Agglomération;CTR;53201;53;2021_08336_00;48.0702234162, -0.845217269922;02/2019;84
L'aménagement du centre-bourg;;;23I05098;19I00771;940000;188073;188073;;COMMUNE DE SAINT MARS LA BRIERE;2021-05-21;00052864;;CC du Pays de l'Huisne Sarthoise;35;265241.4780676;72;1290421266.50866;Février 2019;sig.territoires.pdl_ctr.35;Pays du Perche Sarthois;Pays du Perche Sarthois;CTR;;;2021_08434_01;;02/2019;88
L'aménagement d'un réseau de chaleur avec chaufferies à bois granulés;;;23I05099;19I00771;219999;0;;;COMMUNE DE TORCE EN VALLEE;2021-05-21;00147004;;CC du Pays de l'Huisne Sarthoise;35;265241.4780676;72;1290421266.50866;Février 2019;sig.territoires.pdl_ctr.35;Pays du Perche Sarthois;Pays du Perche Sarthois;CTR;;;2021_08435_02;;02/2019;88
L'étude de programmation pour la construction du siège du Pays de Blain;Loire-Atlantique;BLAIN;21I10733;17I04912;29758;23807;23807;44015;COMMUNAUTE DE COMMUNES DE LA REGION DE BLAIN;2021-09-23;00150402;;Région de Blain;12;104466.22577119;44;214288660.02636;Mai 2017;sig.territoires.pdl_ctr.12;Communauté de communes de la Région de Blain;Région de Blain;CTR;44015;44;2021_11415;47.4628210409, -1.76789479614;05/2017;112
La construction de cellules commerciales;;;23I05072;17I09578;539648;58816;58816;;COMMUNE DE CHANVERRIE;2021-09-23;85000950;;Pays de Mortagne;18;126807.36564022;85;228566018.366052;Novembre 2017;sig.territoires.pdl_ctr.18;Pays de Mortagne;Pays de Mortagne;CTR;;;2021_14270_01;;11/2017;95
La restructuration et l'agrandissement du Pôle santé;Sarthe;BRULON;23I05201;17I09880;700000;270000;;72050;LBN COMMUNAUTE;2021-09-23;00150470;;CC Loué - Brûlon - Noyen;52;226944.40757679;72;1117349894.39695;Novembre 2017;sig.territoires.pdl_ctr.52;Pays Vallée de la Sarthe;Pays Vallée de la Sarthe;CTR;72050;72;2021_12388_02;47.9808104506, -0.230196324503;11/2017;74
Les travaux de modification de l'éclairage de la salle de sports 'Les Alleneaux'x;Vendée;FOUSSAIS PAYRE;21I10794;17I10745;21183;16947;16947;85094;COMMUNAUTE DE COMMUNES PAYS DE FONTENAY VENDEE;2021-09-23;85000915;16947;Pays de Fontenay Vendée;39;127878.18274983;85;464973283.791542;Novembre 2017;sig.territoires.pdl_ctr.39;Pays de Fontenay Vendée;Pays de Fontenay Vendée;CTR;85094;85;2021_12441;46.5230750581, -0.687135962627;11/2017;98
La création du parc d'activités des Chevreuils sur la commune d'Aron;Mayenne;ARON;23I02688;18I00723;2100000;897958;632611;53008;MAYENNE COMMUNAUTE;2021-09-23;00150487;;Mayenne Communauté;3;193726.21308398;53;626754357.991273;Février 2018;sig.territoires.pdl_ctr.3;Mayenne Communauté;Mayenne Communauté;CTR;53008;53;2021_14165_02;48.3036694505, -0.549695026744;02/2018;79
L'extension des zones d'activités des Vallées et de la Route de Cigné à Ambrières-les-Vallées;Mayenne;AMBRIERES LES VALLEES;21I10788;18I07457;154830;90000;90000;53003;COMMUNAUTE DE COMMUNES DU BOCAGE MAYENNAIS;2021-09-23;00149372;;Bocage Mayennais;9;189865.43542796;53;529745022.271069;Juillet 2018;sig.territoires.pdl_ctr.9;Communauté de communes du Bocage Mayennais;Bocage Mayennais;CTR;53003;53;2021_12434;48.4227200634, -0.624160085775;07/2018;83
La création de vestiaires au stade de football François Praud;;;23I05119;18I07458;147230;53035;;;COMMUNE DE NOTRE DAME DE RIEZ;2021-09-23;85000949;;Pays de St Gilles-Croix-de-Vie;4;126534.03790467;85;293800477.999917;Avril 2018;sig.territoires.pdl_ctr.4;Communauté de communes du Pays de St Gilles-Croix-de-Vie;Pays de St Gilles-Croix-de-Vie;CTR;;;2021_12444_01;;04/2018;105
L'aménagement d'un îlot en centre-bourg pour de futurs logements intergénérationnels - Phase 1;;;23I05046;18I07459;73768;38388;35608;;MAIRIE DE LA CHAPELLE THEMER;2021-09-23;85000938;;Sud Vendée Littoral;48;297801.82823589;85;950717267.472634;Juillet 2018;sig.territoires.pdl_ctr.48;CC Sud Vendée Littoral;Sud Vendée Littoral;CTR;;;2021_12486_02;;07/2018;106
Les travaux d'aménagement des espaces publics;;;23I05181;18I07459;33037;25129;25129;;COMMUNE DE LA COUTURE;2021-09-23;85000924;;Sud Vendée Littoral;48;297801.82823589;85;950717267.472634;Juillet 2018;sig.territoires.pdl_ctr.48;CC Sud Vendée Littoral;Sud Vendée Littoral;CTR;;;2021_12489_01;;07/2018;106
L'extension de la Zone d'activités économiques 'Champ Marotte';;;23I05047;18I07459;235960;101185;13498;;COMMUNAUTE DE COMMUNES SUD VENDEE LITTORAL;2021-09-23;85000925;;Sud Vendée Littoral;48;297801.82823589;85;950717267.472634;Juillet 2018;sig.territoires.pdl_ctr.48;CC Sud Vendée Littoral;Sud Vendée Littoral;CTR;;;2021_12490_01;;07/2018;106
La construction d'une médiathèque;;;23I02739;18I08141;1104752;50000;8460;;COMMUNE DE SEVREMONT;2021-09-23;85000944;;Pays de Pouzauges;60;109218.55751266;85;320861396.374744;Septembre 2018;sig.territoires.pdl_ctr.60;Communauté de communes du Pays de Pouzauges;Pays de Pouzauges;CTR;;;2021_11117_01;;09/2018;107
Le remplacement des ouvertures du 'Manoir des Sciences';Vendée;REAUMUR;21I11233;18I08141;50000;25000;25000;85187;COMMUNAUTE DE COMMUNES DU PAYS DE POUZAUGES;2021-09-23;85000930;;Pays de Pouzauges;60;109218.55751266;85;320861396.374744;Septembre 2018;sig.territoires.pdl_ctr.60;Communauté de communes du Pays de Pouzauges;Pays de Pouzauges;CTR;85187;85;2021_11121;46.7145137269, -0.816742537248;09/2018;107
La construction d'une gendarmerie;;;23I05104;18I09842;4207839;1212479;;;CC HAUTE SARTHE ALPES MANCELLES;2021-09-23;00150347;;CC Haute Sarthe Alpes Mancelles;46;208876.08303841;72;922846721.323114;Novembre 2018;sig.territoires.pdl_ctr.46;Pays de la Haute Sarthe;Pays de la Haute Sarthe;CTR;;;2021_12412_01;;11/2018;87
La construction d'une gendarmerie;;;23I05106;18I09952;2524000;310350;50431;;COMMUNE DE SILLE LE GUILLAUME;2021-09-23;00134159;;;;;;;;;;;;;;2021_12416_01;;;
La construction d'un équipement aquatique;;;23I02397;19I00771;5102173;1601584;1601584;;COMMUNAUTE DE COMMUNES DU PAYS DE L HUISNE SARTHOISE;2021-09-23;00058207;;CC du Pays de l'Huisne Sarthoise;35;265241.4780676;72;1290421266.50866;Février 2019;sig.territoires.pdl_ctr.35;Pays du Perche Sarthois;Pays du Perche Sarthois;CTR;;;2021_12406_02;;02/2019;88
Les travaux de sécurisation des déchèteries;;;23I05451;19I03413;84136;41248;41248;;COMMUNAUTE DE COMMUNES DE L OREE DE BERCE BELINOIS;2021-09-23;00148728;;Pays du Mans;55;211770.96933046;72;515795064.742766;;sig.territoires.pdl_ctr.55;Pays du Mans;Pays du Mans;CTR;;;2021_12407_02;;;89
La création d'une liaison douce;;;23I05096;19I03413;256402;29997;;;COMMUNE DE TELOCHE;2021-09-23;00150307;;Pays du Mans;55;211770.96933046;72;515795064.742766;;sig.territoires.pdl_ctr.55;Pays du Mans;Pays du Mans;CTR;;;2021_12408_01;;;89
La sécurisation de déchèteries;;;21I10766;19I03414;145622;9603;9603;;SYNDICAT MIXTE DU VAL DE LOIR POUR LA COLLECTE ET LE TRAITEMENT DES DECHETS;2021-09-23;00149108;;CC du Pays Fléchois;49;306001.78232882;72;1427230046.65579;;sig.territoires.pdl_ctr.49;PETR Pays Vallée du Loir;Pays Vallée du Loir;CTR;;;2021_12391_00;;;90
La rénovation du complexe sportif;;;23I05129;19I06842;426980;150000;;;MAIRIE DE SAINT PIERRE DES NIDS;2021-09-23;00140977;;Mont des Avaloirs;54;160156.70260044;53;546971565.364143;Juillet 2019;sig.territoires.pdl_ctr.54;Mont des Avaloirs;Mont des Avaloirs;CTR;;;2021_12425_01;;07/2019;85
le renforcement du tri sélectif par le développement de la conteneurisation dans tous les foyers de la CC de Craon-CTR 2020 de la Communauté de Communes du Pays de Craon;Mayenne;CRAON;17I09653;17I09006;300000;100000;100000;53084;CC DU PAYS DE CRAON;2017-11-17;00041042;0;Pays de Craon;62;169901.29669863;53;646041148.74744;Septembre 2017;sig.territoires.pdl_ctr.62;Pays de Craon;Pays de Craon;CTR;53084;53;2017_10089;47.8454412251, -0.943066490216;09/2017;77
La voie douce entre les rues des Canaris et du Prince Bois (percée de la Touchelais) - COMMUNE DE SAVENAY - CTR 2020 -  44 - ESTUAIRE ET SILLON -;Loire-Atlantique;SAVENAY;17I09766;17I09760;200356;47890;47890;44195;MAIRIE DE SAVENAY;2017-11-17;00041306;47890;Estuaire et Sillon;61;112337.65867316;44;313121598.740399;Novembre 2017;sig.territoires.pdl_ctr.61;Communauté de communes d'Estuaire et Sillon;Estuaire et Sillon;CTR;44195;44;2017_10131_00;47.3570647854, -1.91842119102;11/2017;129
La construction d'un terrain multisports - CTR - CA Pornic Coeur Pays de Retz;Loire-Atlantique;CHEIX-EN-RETZ;18I02013;17I08233;41559;33000;33000;44039;COMMUNE DE CHEIX EN RETZ;2018-02-16;00036922;0;Pornic Agglo Pays de Retz;33;137060.38656142;44;451066582.29291;Septembre 2017;sig.territoires.pdl_ctr.33;Communauté d'Agglomération de Pornic Cœur Pays de Retz;Pornic Agglo Pays de Retz;CTR;44039;44;2018_00938;47.1811170912, -1.79840995834;09/2017;127
L'aménagement de l'étang de Choizeau - CTR 2020 - Communauté de communes d'Erdre et Gesvres;Loire-Atlantique;VIGNEUX DE BRETAGNE;18I03729;17I04913;152983;62500;62500;44217;COMMUNAUTE DE COMMUNES D ERDRE GESVRES;2018-04-20;00044047;0;Erdre et Gesvres;13;166735.21638325;44;509712555.822317;Mai 2017;sig.territoires.pdl_ctr.13;Communauté de communes d'Erdre et Gesvres;Erdre et Gesvres;CTR;44217;44;2018_04387;47.3196231868, -1.72042944177;05/2017;113
l'extension de l'accueil périscolaire et construction d'une classe élémentaire;Maine-et-Loire;JARZE VILLAGES;18I03723;17I06491;532157;106431;106431;49163;COMMUNE NOUVELLE JARZE VILLAGES;2018-04-20;00039760;0;Anjou Loir et Sarthe;26;172077.9474839;49;457111657.097573;Juillet 2017;sig.territoires.pdl_ctr.26;Communauté de Communes Anjou Loir et Sarthe;Anjou Loir et Sarthe;CTR;49163;49;2018_04334;47.5576434301, -0.24007574412;07/2017;119
La requalification du quai Jules SANDEAU - CTR 2020 - Communauté d'Agglomération de CAP ATLANTIQUE;Loire-Atlantique;LE POULIGUEN;18I03757;17I09003;1499999;150000;150000;44135;COMMUNE DU POULIGUEN;2018-04-20;00042372;0;Cap Atlantique;41;145725.47329518;44;395838108.965296;Septembre 2017;sig.territoires.pdl_ctr.41;Cap Atlantique;Cap Atlantique;CTR;44135;44;2018_03827;47.2716208982, -2.43210265977;09/2017;125
Le nouvel hôtel d'agglomération;Vendée;LA ROCHE-SUR-YON;18I02802;17I09579;2815956;580000;580000;85191;LA ROCHE SUR YON AGGLOMERATION;2018-04-20;85000044;209850;La Roche Sur Yon Agglomération;16;155815.38916483;85;500779101.845023;Novembre 2017;sig.territoires.pdl_ctr.16;La Roche Sur Yon Agglomération;La Roche Sur Yon Agglomération;CTR;85191;85;2018_02953_00;46.6675261644, -1.4077954093;11/2017;96
72 - LOUE-BRULON-NOYEN - CC LOUE - BRULON- NOYEN - Requalification de la zone industrielle Est 'Les Fourneaux' à Brûlon;Sarthe;BRULON;18I05640;17I09880;234238;70271;70271;72050;COMMUNAUTE DE COMMUNES LOUE BRULON NOYEN;2018-05-25;00039417;0;CC Loué - Brûlon - Noyen;52;226944.40757679;72;1117349894.39695;Novembre 2017;sig.territoires.pdl_ctr.52;Pays Vallée de la Sarthe;Pays Vallée de la Sarthe;CTR;72050;72;2018_07030_00;47.9808104506, -0.230196324503;11/2017;74
L'acquisition d'une propriété et réalisation de voies douces en centre bourg pour dynamiser le commerce local - COMMUNE DE LA CHAPELLE-GLAIN - 44 - CTR 2020 -  CC Châteaubriant - Derval;Loire-Atlantique;LA CHAPELLE-GLAIN;18I07157;17I04914;60000;36100;36100;44031;COMMUNE DE LA CHAPELLE GLAIN;2018-07-13;00039474;0;Châteaubriant-Derval;19;192160.53583929;44;884476807.089572;Mai 2017;sig.territoires.pdl_ctr.19;Communauté de communes Châteaubriant Derval;Châteaubriant-Derval;CTR;44031;44;2018_09260;47.6202560031, -1.19540234544;05/2017;114
La réhabilitation du gymnase - COMMUNE DE PAIMBOEUF - 44 - CTR 2020 - SUD ESTUAIRE;Loire-Atlantique;PAIMBŒUF;18I07136;17I09761;1924490;78042;78042;44116;COMMUNE DE PAIMBOEUF;2018-07-13;00041086;0;Sud Estuaire;40;69676.17445778;44;202807972.29704;Novembre 2017;sig.territoires.pdl_ctr.40;Sud Estuaire;Sud Estuaire;CTR;44116;44;2018_08347;47.2863992883, -2.02807425552;11/2017;128
la mise en accessibilité complexe au terrain de foot et extension des vestiaires sportifs- COMMUNE DE SAINT MICHEL LE CLOUCQ - 85- CTR 2020 de la CC Pays de Fontenay Vendée;Vendée;SAINT-MICHEL-LE-CLOUCQ;18I07155;17I10745;90700;31745;31745;85256;COMMUNE DE SAINT MICHEL LE CLOUCQ;2018-07-13;85000141;0;Pays de Fontenay Vendée;39;127878.18274983;85;464973283.791542;Novembre 2017;sig.territoires.pdl_ctr.39;Pays de Fontenay Vendée;Pays de Fontenay Vendée;CTR;85256;85;2018_08922;46.4861591475, -0.743056336646;11/2017;98
les travaux d'aménagement de la place des Halles et rue du Marchiou-Commune de MAREUIL SUR LAY DISSAIS -85- CTR 2020 Sud Vendée Littoral;Vendée;MAREUIL-SUR-LAY-DISSAIS;18I07630;18I07459;403776;92154;92154;85135;COMMUNE DE MAREUIL SUR LAY DISSAIS;2018-07-13;85000153;0;Sud Vendée Littoral;48;297801.82823589;85;950717267.472634;Juillet 2018;sig.territoires.pdl_ctr.48;CC Sud Vendée Littoral;Sud Vendée Littoral;CTR;85135;85;2018_08927_00;46.5335825488, -1.22688907859;07/2018;106
L'aménagement de la rue des 27 Otages favorisant la mobilité douce -  Commune de Châteaubriant - 44 - CTR de la CC de CHATEAUBRIANT DERVAL;Loire-Atlantique;CHATEAUBRIANT;18I08850;17I04914;1113741;300000;300000;44036;COMMUNE DE CHATEAUBRIANT;2018-09-28;00041380;0;Châteaubriant-Derval;19;192160.53583929;44;884476807.089572;Mai 2017;sig.territoires.pdl_ctr.19;Communauté de communes Châteaubriant Derval;Châteaubriant-Derval;CTR;44036;44;2018_11219;47.7221583524, -1.38664809937;05/2017;114
la réalisation d'un terrain de football synthétique et la création d'un ouvrage hydraulique au stade Conotte - COMMUNE DE MONTREUIL JUIGNE - 49 - CDM Angers Loire Métropole;Maine-et-Loire;MONTREUIL-JUIGNE;18I08787;18I06680;792559;231000;231000;49214;COMMUNE DE MONTREUIL JUIGNE;2018-09-28;00041474;0;Angers Loire Métropole;10;192445.630446;49;676496020.936854;Juillet 2018;sig.territoires.pdl_ctr.10;Angers Loire Métropole;Angers Loire Métropole;CDM;49214;49;2018_11432;47.5411858548, -0.616472796467;07/2018;116
Aménagement de la rue des Mottes et aménagement paysager d'un parking -SAINT JEAN DE BEUGNE-85-CTR de la CC Sud Vendée Littoral;Vendée;SAINT-JEAN-DE-BEUGNE;18I08791;18I07459;188979;34261;34261;85233;SAINT JEAN DE BEUGNE;2018-09-28;85000183;0;Sud Vendée Littoral;48;297801.82823589;85;950717267.472634;Juillet 2018;sig.territoires.pdl_ctr.48;CC Sud Vendée Littoral;Sud Vendée Littoral;CTR;85233;85;2018_11095_00;46.5196817523, -1.10826075013;07/2018;106
La desserte numérique - dorsale d'Herbignac - CAP ATLANTIQUE - 44 - CTR 2020;Loire-Atlantique;INTERCOMMUNALE;18I10719;17I09003;290000;58100;58100;44055;COMMUNAUTE D AGGLOMERATION DE LA PRESQU ILE DE GUERANDE ATLANTIQUE;2018-11-23;00041960;0;Cap Atlantique;41;145725.47329518;44;395838108.965296;Septembre 2017;sig.territoires.pdl_ctr.41;Cap Atlantique;Cap Atlantique;CTR;44055;44;2018_12727;47.2909720179, -2.3538291745;09/2017;125
La mise en accessibilité du tour du lac de Savenay - COMMUNAUTE DE COMMUNES ESTUAIRE ET SILLON  - 44 - CTR 2020 - CC ESTUAIRE ET SILLON;Loire-Atlantique;SAVENAY;18I10725;17I09760;474216;222055;222055;44195;COMMUNAUTE DE COMMUNES ESTUAIRE ET SILLON;2018-11-23;00043102;0;Estuaire et Sillon;61;112337.65867316;44;313121598.740399;Novembre 2017;sig.territoires.pdl_ctr.61;Communauté de communes d'Estuaire et Sillon;Estuaire et Sillon;CTR;44195;44;2018_12790;47.3570647854, -1.91842119102;11/2017;129
Les travaux des abords de la Chapelle de Planté - COMMUNE DE QUILLY - 44 - CTR 2020 - CC ESTUAIRE ET SILLON;Loire-Atlantique;QUILLY;18I10731;17I09760;131900;46443;46443;44139;COMMUNE DE QUILLY;2018-11-23;00043124;0;Estuaire et Sillon;61;112337.65867316;44;313121598.740399;Novembre 2017;sig.territoires.pdl_ctr.61;Communauté de communes d'Estuaire et Sillon;Estuaire et Sillon;CTR;44139;44;2018_12850_00;47.4618178033, -1.9408388462;11/2017;129
L'implantation d'un terrain multisports - COMMUNE DE FROSSAY - 44 - CTR 2020 - CC SUD ESTUAIRE;Loire-Atlantique;FROSSAY;18I10723;17I09761;73282;58626;58626;44061;COMMUNE DE FROSSAY;2018-11-23;00043122;0;Sud Estuaire;40;69676.17445778;44;202807972.29704;Novembre 2017;sig.territoires.pdl_ctr.40;Sud Estuaire;Sud Estuaire;CTR;44061;44;2018_12780;47.2455073631, -1.93405826107;11/2017;128
la rénovation de l'éclairage public -72 - COMMUNE DE TASSILLÉ - CC LOUE-BRULON-NOYEN;Sarthe;TASSILLE;18I10387;17I09880;39084;10000;10000;72348;COMMUNE DE TASSILLE;2018-11-23;00042787;10000;CC Loué - Brûlon - Noyen;52;226944.40757679;72;1117349894.39695;Novembre 2017;sig.territoires.pdl_ctr.52;Pays Vallée de la Sarthe;Pays Vallée de la Sarthe;CTR;72348;72;2018_12885;47.9881765912, -0.0946992624258;11/2017;74
La rénovation énergétique de l'Hôtel de Ville - COMMUNE DE L'ILE D'YEU - 85 - CTR 2020 ILE D'YEU;Vendée;L'ILE-D'YEU;18I10707;18I02798;2565225;300000;300000;85113;COMMUNE DE L ILE D YEU;2018-11-23;85000241;300000;L'Ile d'Yeu;51;32302.30182464;85;24658739.0;Avril 2018;sig.territoires.pdl_ctr.51;Communauté de communes de l'Île d'Yeu;L'Ile d'Yeu;CTR;85113;85;2018_13312;46.7093514816, -2.34712702345;04/2018;100
La réhabilitation énergétique de la Médiathèque de Doué la Fontaine - 49 - SAUMUR VAL DE LOIRE - CTR 2020 SAUMUR VAL DE LOIRE;Maine-et-Loire;DOUE EN ANJOU (49125);18I10418;18I05643;331434;41631;41631;49328;CA SAUMUR VAL DE LOIRE;2018-11-23;00043304;41631;Saumur Val de Loire;28;222936.82254543;49;1244790494.62575;Mai 2018;sig.territoires.pdl_ctr.28;Saumur Val de Loire;Saumur Val de Loire;CTR;49328;49;2018_13299;47.2673853525, -0.0830410591988;05/2018;123
La réhabilitation de l'école Maremaillette en éco-construction - COMMUNE DE SAUMUR - 49 - CTR 2020 Saumur Val de Loire;Maine-et-Loire;SAUMUR;18I10421;18I05643;1436487;250800;250800;49328;COMMUNE DE SAUMUR;2018-11-23;00043699;257575;Saumur Val de Loire;28;222936.82254543;49;1244790494.62575;Mai 2018;sig.territoires.pdl_ctr.28;Saumur Val de Loire;Saumur Val de Loire;CTR;49328;49;2018_13797_00;47.2673853525, -0.0830410591988;05/2018;123
La construction d'une salle multisports à dynamique Tir à l'Arc - CARQUEFOU - 44 - CDM Nantes Métropole;Loire-Atlantique;CARQUEFOU;18I10608;18I06834;1516678;144612;144612;44026;COMMUNE DE CARQUEFOU;2018-11-23;00043328;0;Nantes Métropole;6;181264.28832122;44;534212730.160229;Juillet 2018;sig.territoires.pdl_ctr.6;Nantes Métropole;Nantes Métropole;CDM;44026;44;2018_14049;47.3017191833, -1.47277200095;07/2018;132
"la fourniture et installation de conteneurs à déchets ménagers semi-enterrés - 72 - COMMUNAUTE DE COMMUNES ""MAINE SAOSNOIS""";Sarthe;MAROLLES-LES-BRAULTS;18I10752;18I06858;110000;88000;88000;72189;COMMUNAUTE DE COMMUNES MAINE SAOSNOIS;2018-11-23;00042732;0;CC Maine Saosnois;31;160838.92939288;72;582200983.266689;Juillet 2018;sig.territoires.pdl_ctr.31;CC Maine Saosnois;CC Maine Saosnois;CTR;72189;72;2018_12867;48.2539587745, 0.320191786224;07/2018;86
la réhabilitation de bâtiments pour les nouveaux locaux du centre social CASCADE - 72 - COMMUNAUTE DE COMMUNES 'MAINE SAOSNOIS';Sarthe;MAROLLES-LES-BRAULTS;18I10753;18I06858;1627495;363752;363752;72189;COMMUNAUTE DE COMMUNES MAINE SAOSNOIS;2018-11-23;00042731;43354;CC Maine Saosnois;31;160838.92939288;72;582200983.266689;Juillet 2018;sig.territoires.pdl_ctr.31;CC Maine Saosnois;CC Maine Saosnois;CTR;72189;72;2018_12868_00;48.2539587745, 0.320191786224;07/2018;86
la prolongation de la voie douce -72 - COMMUNE DE SAINT RÉMY DE SILLÉ - CC CHAMPAGNE CONLINOISE ET PAYS DE SILLE;Sarthe;SAINT-REMY-DE-SILLE;18I10389;18I09952;293954;88185;88185;72315;COMMUNE DE SAINT REMY DE SILLE;2018-11-23;00043966;88185;;;;;;;;;;;72315;72;2018_13064;48.1814893411, -0.102928256564;;
L'acquisition d'une salle multifonctions - COMMUNE DE PONTCHÂTEAU - 44 - CTR 2020 - CC DU PAYS DE PONT CHATEAU ST GILDAS DES BOIS;Loire-Atlantique;PONTCHATEAU;19I01594;17I06805;509586;137472;137472;44129;COMMUNE DE PONT CHATEAU;2019-02-08;00044877;0;Pays de Pontchâteau St Gildas des Bois;1;130121.86476614;44;327059918.271195;Juillet 2017;sig.territoires.pdl_ctr.1;Communauté de communes de Pont Château Saint Gildas des Bois;Pays de Pontchâteau St Gildas des Bois;CTR;44129;44;2019_01263;47.433636363, -2.09556089039;07/2017;115
La réhabilitation de 3 terrains de football - COMMUNE D'ORVAULT - CDM  DE NANTES METROPOLE;Loire-Atlantique;ORVAULT;19I01611;18I06834;1289848;194444;194444;44114;COMMUNE D ORVAULT;2019-02-08;00044550;0;Nantes Métropole;6;181264.28832122;44;534212730.160229;Juillet 2018;sig.territoires.pdl_ctr.6;Nantes Métropole;Nantes Métropole;CDM;44114;44;2019_01955;47.2739815478, -1.62323898524;07/2018;132
l'élaboration du Plan Climat Air Energie Territorial - COMMUNAUTE DE COMMUNES 'MAINE SAOSNOIS' -72- CTR 2020 CC MAINE SAOSNOIS -;Sarthe;MAROLLES-LES-BRAULTS;19I01620;18I06858;70000;48406;48406;72189;COMMUNAUTE DE COMMUNES MAINE SAOSNOIS;2019-02-08;00045009;56000;CC Maine Saosnois;31;160838.92939288;72;582200983.266689;Juillet 2018;sig.territoires.pdl_ctr.31;CC Maine Saosnois;CC Maine Saosnois;CTR;72189;72;2019_01115_00;48.2539587745, 0.320191786224;07/2018;86
l'aménagement d'une aire de covoiturage  - COMMUNE D'AMBRIERES-LES-VALLEES - 53 -CTR 2020 de la CC BOCAGE MAYENNAIS;Mayenne;AMBRIERES-LES-VALLEES;19I01614;18I07457;39675;28000;28000;53003;COMMUNE D AMBRIERES LES VALLEES;2019-02-08;00044014;0;Bocage Mayennais;9;189865.43542796;53;529745022.271069;Juillet 2018;sig.territoires.pdl_ctr.9;Communauté de communes du Bocage Mayennais;Bocage Mayennais;CTR;53003;53;2019_01053;48.4227200634, -0.624160085775;07/2018;83
l'aménagement du centre-bourg  - COMMUNE DE CHASNAIS - 85 - CTR 2020 CC Sud Vendée Littoral;;;19I01605;18I07459;278124;39202;39202;;COMMUNE DE CHASNAIS;2019-02-08;85000297;;Sud Vendée Littoral;48;297801.82823589;85;950717267.472634;Juillet 2018;sig.territoires.pdl_ctr.48;CC Sud Vendée Littoral;Sud Vendée Littoral;CTR;;;2019_01153_00;;07/2018;106
Les travaux de rénovation de la salle Ferchault - COMMUNE DE REAUMUR - 85 - CTR 2020 CC du Pays de Pouzauges;Vendée;REAUMUR;19I01575;18I08141;212385;50000;50000;85187;COMMUNE DE REAUMUR;2019-02-08;85000333;50000;Pays de Pouzauges;60;109218.55751266;85;320861396.374744;Septembre 2018;sig.territoires.pdl_ctr.60;Communauté de communes du Pays de Pouzauges;Pays de Pouzauges;CTR;85187;85;2019_00878;46.7145137269, -0.816742537248;09/2018;107
la rénovation de l'éclairage public - COMMUNE DE FRESNAY SUR SARTHE -  72 - CTR 2020 de la CC HAUTE SARTHE ALPES MANCELLES;Sarthe;SAINT-GERMAIN-SUR-SARTHE;19I01629;18I09842;19000;9942;9942;72284;COMMUNE DE FRESNAY SUR SARTHE;2019-02-08;00044854;10000;CC Haute Sarthe Alpes Mancelles;46;208876.08303841;72;922846721.323114;Novembre 2018;sig.territoires.pdl_ctr.46;Pays de la Haute Sarthe;Pays de la Haute Sarthe;CTR;72138;72;2019_01630_00;48.2796531655, 0.0781088012686;11/2018;87
la rénovation de l'éclairage public- COMMUNE DE NEUVILLALAIS - 72 - CTR 2020 CC CHAMPAGNE CONLINOISE ET PAYS DE SILLE -;Sarthe;NEUVILLALAIS;19I01623;18I09952;67165;10000;10000;72216;COMMUNE DE NEUVILLALAIS;2019-02-08;00044055;10000;;;;;;;;;;;72216;72;2019_01125;48.1540701215, -0.00726100705973;;
l'installation de panneaux photovoltaïques sur les vestiaires du stade de la commune - 53 -  ASTILLE - CTR 2020 PAYS DE CRAON;Mayenne;ASTILLE;19I03615;17I09006;68012;19419;19419;53011;COMMUNE D ASTILLE;2019-04-05;00045272;20403;Pays de Craon;62;169901.29669863;53;646041148.74744;Septembre 2017;sig.territoires.pdl_ctr.62;Pays de Craon;Pays de Craon;CTR;53011;53;2019_04557_00;47.9617911116, -0.846376343167;09/2017;77
L'aménagement de nouveaux ateliers municipaux - Commune de Saint Malô du Bois;Vendée;SAINT-MALO-DU-BOIS;19I03830;17I09578;159775;56583;56583;85240;COMMUNE DE SAINT MALO DU BOIS;2019-04-05;85000315;0;Pays de Mortagne;18;126807.36564022;85;228566018.366052;Novembre 2017;sig.territoires.pdl_ctr.18;Pays de Mortagne;Pays de Mortagne;CTR;85240;85;2019_04154;46.9248120291, -0.914182961099;11/2017;95
la rénovation et extension de l'éclairage public -72 -  COMMUNE DE FYÉ - CTR 2020 DU PAYS DE LA HAUTE SARTHE;Sarthe;FYE;19I03619;18I09842;67973;20000;20000;72139;COMMUNE DE FYE;2019-04-05;00046130;20000;CC Haute Sarthe Alpes Mancelles;46;208876.08303841;72;922846721.323114;Novembre 2018;sig.territoires.pdl_ctr.46;Pays de la Haute Sarthe;Pays de la Haute Sarthe;CTR;72139;72;2019_04562;48.3232043088, 0.081600822719;11/2018;87
L'aménagement de la liaison douce reliant Port-Mulon au centre ville à Nort-sur-Erdre;Loire-Atlantique;NORT-SUR-ERDRE;19I06311;17I04913;61160;40000;40000;44110;COMMUNE DE NORT SUR ERDRE;2019-06-06;00047275;0;Erdre et Gesvres;13;166735.21638325;44;509712555.822317;Mai 2017;sig.territoires.pdl_ctr.13;Communauté de communes d'Erdre et Gesvres;Erdre et Gesvres;CTR;44110;44;2019_06489;47.447122285, -1.51824792558;05/2017;113
La mise en oeuvre du Plan d'action communal pour les mobilités actives à Sucé-sur-Erdre;Loire-Atlantique;SUCE-SUR-ERDRE;19I06315;17I04913;261000;40000;40000;44201;COMMUNE DE SUCE SUR ERDRE;2019-06-06;00047308;40000;Erdre et Gesvres;13;166735.21638325;44;509712555.822317;Mai 2017;sig.territoires.pdl_ctr.13;Communauté de communes d'Erdre et Gesvres;Erdre et Gesvres;CTR;44201;44;2019_06500_00;47.3536547402, -1.51945689724;05/2017;113
La rénovation et la mise en accessibilité de la mairie;Maine-et-Loire;TIERCE;19I06171;17I06491;1568873;249650;249650;49347;COMMUNE DE TIERCE;2019-06-06;00046633;0;Anjou Loir et Sarthe;26;172077.9474839;49;457111657.097573;Juillet 2017;sig.territoires.pdl_ctr.26;Communauté de Communes Anjou Loir et Sarthe;Anjou Loir et Sarthe;CTR;49347;49;2019_06277_00;47.6245599519, -0.44344301136;07/2017;119
La revitalisation du centre-bourg de la commune déléguée de Saint Mathurin sur Loire - Commune de Loire-Authion;Maine-et-Loire;LOIRE-AUTHION;19I06191;18I06680;776536;265090;265090;49307;COMMUNE DE LOIRE AUTHION;2019-06-06;00047122;0;Angers Loire Métropole;10;192445.630446;49;676496020.936854;Juillet 2018;sig.territoires.pdl_ctr.10;Angers Loire Métropole;Angers Loire Métropole;CDM;49307;49;2019_06781_00;47.4219645317, -0.319673646947;07/2018;116
L'aménagement et la mise en sécurité de la rue de la Voie;Vendée;SAINTE-RADEGONDE-DES-NOYERS;19I06214;18I07459;455052;52579;52579;85267;COMMUNE DE SAINTE RADEGONDE DES NOYERS;2019-06-06;85000383;0;Sud Vendée Littoral;48;297801.82823589;85;950717267.472634;Juillet 2018;sig.territoires.pdl_ctr.48;CC Sud Vendée Littoral;Sud Vendée Littoral;CTR;85267;85;2019_06577;46.3694246909, -1.06671995264;07/2018;106
La réfection de l'éclairage public;Sarthe;CRISSE;19I06176;18I09952;58291;8965;8965;72109;COMMUNE DE CRISSE;2019-06-06;00047187;10000;;;;;;;;;;;72109;72;2019_06513_00;48.1802737725, -0.0645153355055;;
L'aménagement d'aires de camping-car sur le territoire de la communauté de communes Sud Sarthe;Sarthe;AUBIGNE-RACAN;19I06180;19I03414;181235;93329;93329;72013;COMMUNAUTE DE COMMUNES SUD SARTHE;2019-06-06;00047250;0;CC du Pays Fléchois;49;306001.78232882;72;1427230046.65579;;sig.territoires.pdl_ctr.49;PETR Pays Vallée du Loir;Pays Vallée du Loir;CTR;72013;72;2019_06533;47.6839620406, 0.250420617503;;90
L'acquisition d'un véhicule utilitaire électrique par la Commune des Touches;Loire-Atlantique;LES TOUCHES;19I07533;17I04913;22197;17757;17757;44205;COMMUNE DES TOUCHES;2019-07-12;00048557;17757;Erdre et Gesvres;13;166735.21638325;44;509712555.822317;Mai 2017;sig.territoires.pdl_ctr.13;Communauté de communes d'Erdre et Gesvres;Erdre et Gesvres;CTR;44205;44;2019_08530_00;47.4523563976, -1.42756883238;05/2017;113
49 - ANJOU LOIR ET SARTHE - COMMUNE DE MORANNES SUR SARTHE-DAUMERAY - Les travaux de réhabilitation énergétique, d'aménagement et de mise aux normes de la salle des fêtes;Maine-et-Loire;MORANNES SUR SARTHE-DAUMERAY;19I07476;17I06491;300000;60000;60000;49220;COMMUNE DE MORANNES SUR SARTHE DAUMERAY;2019-07-12;00048502;60000;Anjou Loir et Sarthe;26;172077.9474839;49;457111657.097573;Juillet 2017;sig.territoires.pdl_ctr.26;Communauté de Communes Anjou Loir et Sarthe;Anjou Loir et Sarthe;CTR;49220;49;2019_07841;47.725500783, -0.403190245491;07/2017;119
L'extension et la mise en formes de la déchetterie de Port-Brillet;Mayenne;PORT BRILLET;19I07500;18I00770;356816;49865;49865;53182;LAVAL AGGLOMERATION;2019-07-12;00047864;0;Pays de Loiron;63;104558.05453473;53;256504826.222709;Février 2018;sig.territoires.pdl_ctr.63;Pays de Loiron;Pays de Loiron;CTR;53182;53;2019_08595_00;48.1212899945, -0.963949064008;02/2018;80
L'aménagement du bâtiment du Fief Callard à l'Ecomusée du Daviaud;Vendée;LA BARRE DE MONTS;19I07498;18I02799;162000;11000;11000;85012;COMMUNAUTE DE COMMUNES OCEAN MARAIS DE MONTS;2019-07-12;85000396;11000;Océan Marais de Monts;43;97448.69013118;85;184686424.300016;Avril 2018;sig.territoires.pdl_ctr.43;Océan Marais de Monts;Océan Marais de Monts;CTR;85012;85;2019_08341;46.8722784154, -2.09984018879;04/2018;101
La réfection de la déchèterie de l'Oseraye à Puceul;Loire-Atlantique;PUCEUL;19I07521;18I03759;1286230;350000;350000;44138;COMMUNAUTE DE COMMUNES REGION DE NOZAY;2019-07-12;00048478;0;Région de Nozay;23;98766.52204624;44;275618396.875015;Avril 2018;sig.territoires.pdl_ctr.23;Région de Nozay;Région de Nozay;CTR;44138;44;2019_08505;47.5188688924, -1.61966399474;04/2018;130
La modernisation de la piscine d'Offard;Maine-et-Loire;SAUMUR;19I07478;18I05643;305201;51300;51300;49328;CA SAUMUR VAL DE LOIRE;2019-07-12;00043117;0;Saumur Val de Loire;28;222936.82254543;49;1244790494.62575;Mai 2018;sig.territoires.pdl_ctr.28;Saumur Val de Loire;Saumur Val de Loire;CTR;49328;49;2019_07845;47.2673853525, -0.0830410591988;05/2018;123
La réfection de la route forestière 'La Vallée Layée' en forêt de Perseigne;Sarthe;INTERCOMMUNALE;19I07796;18I06858;63222;25287;25287;72374;COMMUNE DE VILLAINES LA CARELLE;2019-07-12;00048357;0;CC Maine Saosnois;31;160838.92939288;72;582200983.266689;Juillet 2018;sig.territoires.pdl_ctr.31;CC Maine Saosnois;CC Maine Saosnois;CTR;72374;72;2019_08734_00;48.3873561577, 0.294814588667;07/2018;86
L'installation de panneaux photovoltaïques sur la nouvelle mairie;Loire-Atlantique;HERIC;19I09025;17I04913;163250;17970;17970;44073;COMMUNE D HERIC;2019-09-27;00049474;;Erdre et Gesvres;13;166735.21638325;44;509712555.822317;Mai 2017;sig.territoires.pdl_ctr.13;Communauté de communes d'Erdre et Gesvres;Erdre et Gesvres;CTR;44073;44;2019_10069_01;47.4207936826, -1.63717757742;05/2017;113
L'extension du presbytère pour réalisation d'une nouvelle mairie à Les Touches;Loire-Atlantique;LES TOUCHES;19I09039;17I04913;448049;30000;30000;44205;COMMUNE DES TOUCHES;2019-09-27;00049578;0;Erdre et Gesvres;13;166735.21638325;44;509712555.822317;Mai 2017;sig.territoires.pdl_ctr.13;Communauté de communes d'Erdre et Gesvres;Erdre et Gesvres;CTR;44205;44;2019_13146;47.4523563976, -1.42756883238;05/2017;113
Le Pôle d'affaires et la Maison de l'Intercommunalité;Loire-Atlantique;LA BAULE-ESCOUBLAC;19I09037;17I09003;600000;120000;120000;44055;COMMUNAUTE D AGGLOMERATION DE LA PRESQU ILE DE GUERANDE ATLANTIQUE;2019-09-27;00045935;0;Cap Atlantique;41;145725.47329518;44;395838108.965296;Septembre 2017;sig.territoires.pdl_ctr.41;Cap Atlantique;Cap Atlantique;CTR;44055;44;2019_12005;47.2909720179, -2.3538291745;09/2017;125
Le réaménagement du conservatoire de musique intercommunal;Vendée;SAINT-JEAN-DE-MONTS;19I08939;18I02799;175145;87573;87573;85234;COMMUNAUTE DE COMMUNES OCEAN MARAIS DE MONTS;2019-09-27;85000455;0;Océan Marais de Monts;43;97448.69013118;85;184686424.300016;Avril 2018;sig.territoires.pdl_ctr.43;Océan Marais de Monts;Océan Marais de Monts;CTR;85234;85;2019_11052;46.8021968737, -2.04839789308;04/2018;101
La construction d'un atelier-relais à Doué en Anjou;Maine-et-Loire;DOUE EN ANJOU (49125);19I09002;18I05643;818686;204670;204670;49328;CA SAUMUR VAL DE LOIRE;2019-09-27;00049460;0;Saumur Val de Loire;28;222936.82254543;49;1244790494.62575;Mai 2018;sig.territoires.pdl_ctr.28;Saumur Val de Loire;Saumur Val de Loire;CTR;49328;49;2019_10974;47.2673853525, -0.0830410591988;05/2018;123
La rénovation de la salle omnisports;Loire-Atlantique;SAINT-LEGER-LES-VIGNES;19I08946;18I06834;146633;60000;60000;44171;MAIRIE DE SAINT LEGER LES VIGNES;2019-09-27;00049478;0;Nantes Métropole;6;181264.28832122;44;534212730.160229;Juillet 2018;sig.territoires.pdl_ctr.6;Nantes Métropole;Nantes Métropole;CDM;44171;44;2019_10111;47.1429694401, -1.7140364404;07/2018;132
La rénovation et la réhabilitation énergétique d'un bâtiment communal;Vendée;VOUILLE-LES-MARAIS;19I08935;18I07459;506883;147231;147231;85304;COMMUNE DE VOUILLE LES MARAIS;2019-09-27;85000454;147231;Sud Vendée Littoral;48;297801.82823589;85;950717267.472634;Juillet 2018;sig.territoires.pdl_ctr.48;CC Sud Vendée Littoral;Sud Vendée Littoral;CTR;85304;85;2019_10398;46.3891941167, -0.968106001439;07/2018;106
L'amélioration de l'efficacité énergétique de l'éclairage public;Sarthe;CURES;19I08914;18I09952;43816;10000;10000;72111;COMMUNE DE CURES;2019-09-27;00048729;10000;;;;;;;;;;;72111;72;2019_10347;48.0846394961, 0.0166005701727;;
La rénovation de l'éclairage public;;;19I08917;18I09952;43745;21842;21842;;COMMUNE DE CONLIE;2019-09-27;00049485;;;;;;;;;;;;;;2019_10353_01;;;
La rénovation de l'éclairage public;Sarthe;SAINT-SYMPHORIEN;19I08918;18I09952;13850;10000;10000;72321;COMMUNE DE SAINT SYMPHORIEN;2019-09-27;00048890;10000;;;;;;;;;;;72321;72;2019_10361;48.0785627545, -0.140972858304;;
La construction d'une maison d'assistantes maternelles;Sarthe;MULSANNE;19I08898;19I04948;313869;62774;62774;72213;COMMUNE DE MULSANNE;2019-09-27;00049371;0;CU Le Mans Métropole;20;141570.43537983;72;268048561.841433;Juin 2019;sig.territoires.pdl_ctr.20;CU Le Mans Métropole;CU Le Mans Métropole;CDM;72213;72;2019_10336;47.9186376268, 0.244158355853;06/2019;91
Le projet de cabinets médicaux;Loire-Atlantique;ROUGE;19I10724;17I04914;356684;115000;115000;44146;COMMUNE DE ROUGE;2019-11-15;00051437;0;Châteaubriant-Derval;19;192160.53583929;44;884476807.089572;Mai 2017;sig.territoires.pdl_ctr.19;Communauté de communes Châteaubriant Derval;Châteaubriant-Derval;CTR;44146;44;2019_15530_00;47.7704881323, -1.43409809918;05/2017;114
La réhabilitation du réseau de déchetteries;Loire-Atlantique;INTERCOMMUNALE;19I10726;17I06805;230000;40000;40000;44129;COMMUNAUTE DE COMMUNES DU PAYS DE PONTCHATEAU ST GILDAS DES BOIS;2019-11-15;00051769;0;Pays de Pontchâteau St Gildas des Bois;1;130121.86476614;44;327059918.271195;Juillet 2017;sig.territoires.pdl_ctr.1;Communauté de communes de Pont Château Saint Gildas des Bois;Pays de Pontchâteau St Gildas des Bois;CTR;44129;44;2019_15532;47.433636363, -2.09556089039;07/2017;115
Le réaménagement d'un  bâtiment en vue de la création d'une Maison France Services;Maine-et-Loire;BRISSAC LOIRE AUBANCE;19I10535;17I08581;446000;108161;108161;49050;COMMUNE DE BRISSAC LOIRE AUBANCE;2019-11-15;00051820;;Loire Layon Aubance;29;220718.82914478;49;613435516.735679;Septembre 2017;sig.territoires.pdl_ctr.29;Loire Layon Aubance;Loire Layon Aubance;CTR;49050;49;2019_15596_01;47.3416678749, -0.441366325976;09/2017;121
L'aménagement d'un espace jeunesse à St Aubin de Luigné;Maine-et-Loire;VAL DU LAYON;19I10537;17I08581;174900;35733;;49292;COMMUNE DE VAL DU LAYON;2019-11-15;00051811;35733;Loire Layon Aubance;29;220718.82914478;49;613435516.735679;Septembre 2017;sig.territoires.pdl_ctr.29;Loire Layon Aubance;Loire Layon Aubance;CTR;49292;49;2019_15603;47.3002199454, -0.640314853216;09/2017;121
L'aménagement d'une Liaison douce;Loire-Atlantique;CORSEPT;19I10732;17I09761;183000;72000;72000;44046;COMMUNAUTE DE COMMUNES DU SUD ESTUAIRE;2019-11-15;00050359;72000;Sud Estuaire;40;69676.17445778;44;202807972.29704;Novembre 2017;sig.territoires.pdl_ctr.40;Sud Estuaire;Sud Estuaire;CTR;44046;44;2019_15540;47.2600100383, -2.09386404628;11/2017;128
La rénovation de la piste d'athlétisme à Ancenis-Saint-Géréon;Loire-Atlantique;ANCENIS;19I10735;17I09762;1123342;250000;250000;44003;COMMUNE DE ANCENIS SAINT GEREON;2019-11-15;00049692;0;Pays d'Ancenis;56;189953.08705022;44;865594442.852705;Novembre 2017;sig.territoires.pdl_ctr.56;Pays d'Ancenis;Pays d'Ancenis;CTR;44003;44;2019_15543;47.3833270209, -1.18241880879;11/2017;126
La rénovation énergétique d'un bâtiment communal;Sarthe;SAINT REMY DE SILLE;19I10563;18I09952;51255;31778;31778;72315;COMMUNE DE SAINT REMY DE SILLE;2019-11-15;00051542;31778;;;;;;;;;;;72315;72;2019_15786;48.1814893411, -0.102928256564;;
La réhabilitation d'un circuit d'interprétation du patrimoine sur la commune déléguée de Saint Aubin de Luigné;Maine-et-Loire;VAL DU LAYON;20I02265;17I08581;32610;16000;;49292;COMMUNE DE VAL DU LAYON;2020-02-14;00053046;0;Loire Layon Aubance;29;220718.82914478;49;613435516.735679;Septembre 2017;sig.territoires.pdl_ctr.29;Loire Layon Aubance;Loire Layon Aubance;CTR;49292;49;2020_01069;47.3002199454, -0.640314853216;09/2017;121
La rénovation du gîte d'étape;Maine-et-Loire;BEAULIEU SUR LAYON;20I02266;17I08581;91080;15497;;49022;COMMUNE DE BEAULIEU SUR LAYON;2020-02-14;00054018;15497;Loire Layon Aubance;29;220718.82914478;49;613435516.735679;Septembre 2017;sig.territoires.pdl_ctr.29;Loire Layon Aubance;Loire Layon Aubance;CTR;49022;49;2020_01070;47.3187109536, -0.600035399851;09/2017;121
Les travaux de sécurisation des installations électrique du théâtre;Maine-et-Loire;LA POSSONNIERE;20I02269;17I08581;23720;15918;15918;49247;COMMUNE DE LA POSSONNIERE;2020-02-14;00053851;0;Loire Layon Aubance;29;220718.82914478;49;613435516.735679;Septembre 2017;sig.territoires.pdl_ctr.29;Loire Layon Aubance;Loire Layon Aubance;CTR;49247;49;2020_01073_00;47.3814407983, -0.708738811093;09/2017;121
Les travaux d'extension de vestiaires de Football au complexe sportif Calonna;Maine-et-Loire;CHALONNES SUR LOIRE;20I02282;17I08581;152748;98198;98198;49063;COMMUNE DE CHALONNES SUR LOIRE;2020-02-14;00054036;0;Loire Layon Aubance;29;220718.82914478;49;613435516.735679;Septembre 2017;sig.territoires.pdl_ctr.29;Loire Layon Aubance;Loire Layon Aubance;CTR;49063;49;2020_01119;47.3494785235, -0.772675582911;09/2017;121
L'achat de véhicules et vélos électriques sur Mauges Communauté;Maine-et-Loire;BEAUPREAU EN MAUGES;20I02285;17I08582;165000;96097;96097;49023;MAUGES COMMUNAUTE;2020-02-14;00052521;50000;Mauges Communauté;5;274965.40485114;49;1318044533.54153;Septembre 2017;sig.territoires.pdl_ctr.5;Mauges Communauté;Mauges Communauté;CTR;49023;49;2020_02393;47.2125984545, -0.983619028639;09/2017;122
Le réaménagement d'un commerce alimentaire à Belligné;Loire-Atlantique;LOIREAUXENCE;20I02240;17I09762;518825;162145;162145;44213;COMMUNE DE LOIREAUXENCE;2020-02-14;00049812;0;Pays d'Ancenis;56;189953.08705022;44;865594442.852705;Novembre 2017;sig.territoires.pdl_ctr.56;Pays d'Ancenis;Pays d'Ancenis;CTR;44213;44;2020_00927;47.4023133343, -1.0243274407;11/2017;126
La réfection de l'éclairage public;;;20I02299;18I09952;20619;8259;8259;;COMMUNE DE RUILLE EN CHAMPAGNE;2020-02-14;00053767;;;;;;;;;;;;;;2020_01326_00;;;
L'achat d'un véhicule de service électrique;Sarthe;DISSAY SOUS COURCILLON;20I02307;19I03414;13689;10000;10000;72115;COMMUNE DE DISSAY SOUS COURCILLON;2020-02-14;00054369;10000;CC du Pays Fléchois;49;306001.78232882;72;1427230046.65579;;sig.territoires.pdl_ctr.49;PETR Pays Vallée du Loir;Pays Vallée du Loir;CTR;72115;72;2020_01349;47.6664102233, 0.484524622495;;90
72 - LE MANS METROPOLE - VILLE DU MANS - Rénovation énergétique de la Maison George Sand au Mans;Sarthe;LE MANS;20I02560;19I04948;767722;100000;100000;72181;COMMUNE DU MANS;2020-02-14;00052428;100000;CU Le Mans Métropole;20;141570.43537983;72;268048561.841433;Juin 2019;sig.territoires.pdl_ctr.20;CU Le Mans Métropole;CU Le Mans Métropole;CDM;72181;72;2020_01844_00;47.9885256718, 0.200030493539;06/2019;91
La réalisation d'itinéraires cyclables communautaires;Loire-Atlantique;GRANDCHAMPS-DES-FONTAINES;20I04506;17I04913;525000;133750;133750;44066;COMMUNAUTE DE COMMUNES D ERDRE GESVRES;2020-04-30;00056303;133750;Erdre et Gesvres;13;166735.21638325;44;509712555.822317;Mai 2017;sig.territoires.pdl_ctr.13;Communauté de communes d'Erdre et Gesvres;Erdre et Gesvres;CTR;44066;44;2020_04476;47.3606796643, -1.61754475868;05/2017;113
Le plan de signalétique : refonte de la signalisation directionnelle et informative globale de la commune dans un but d'attractivité touristique;Loire-Atlantique;LA PLAINE-SUR-MER;20I04507;17I08233;138797;61293;61293;44126;COMMUNE DE LA PLAINE SUR MER;2020-04-30;00055835;0;Pornic Agglo Pays de Retz;33;137060.38656142;44;451066582.29291;Septembre 2017;sig.territoires.pdl_ctr.33;Communauté d'Agglomération de Pornic Cœur Pays de Retz;Pornic Agglo Pays de Retz;CTR;44126;44;2020_04479;47.1443222693, -2.18345496077;09/2017;127
L'acquisition de véhicules électriques par la commune d'Ombrée d'Anjou;;;20I04479;18I05642;179688;133070;133070;;COMMUNE DE OMBREE D ANJOU;2020-04-30;00055509;;Anjou Bleu Communauté;57;184223.75006092;49;654967768.886332;Mai 2018;sig.territoires.pdl_ctr.57;Anjou Bleu Communauté;Anjou Bleu Communauté;CTR;;;2020_04339_00;;05/2018;118
La construction d'un multi-accueil à la Chabossière;Loire-Atlantique;COUERON;20I04502;18I06834;1777000;153262;153262;44047;COMMUNE DE COUERON;2020-04-30;00056284;0;Nantes Métropole;6;181264.28832122;44;534212730.160229;Juillet 2018;sig.territoires.pdl_ctr.6;Nantes Métropole;Nantes Métropole;CDM;44047;44;2020_04706;47.2309985029, -1.72929002573;07/2018;132
Les études préliminaires à l'aménagement de trois chronolignes;Sarthe;LE MANS;20I04492;19I04948;304404;60880;60880;72181;LE MANS METROPOLE COMMUNAUTE URBAINE;2020-04-30;00055451;0;CU Le Mans Métropole;20;141570.43537983;72;268048561.841433;Juin 2019;sig.territoires.pdl_ctr.20;CU Le Mans Métropole;CU Le Mans Métropole;CDM;72181;72;2020_04649;47.9885256718, 0.200030493539;06/2019;91
Le projet de la Cité des compétences;Loire-Atlantique;MACHECOUL-SAINT-MEME;20I04721;20I03661;75000;43000;43000;44087;COMMUNAUTE DE COMMUNES SUD RETZ ATLANTIQUE;2020-04-30;00056223;0;;;;;;;;;;;44087;44;2020_07140;46.9910784513, -1.82345670327;;
Attractivité du territoire - marque employeur;Mayenne;CRAON;20I04715;20I03662;41151;30000;30000;53084;CC DU PAYS DE CRAON;2020-04-30;00056177;0;;;;;;;;;;;53084;53;2020_07103;47.8454412251, -0.943066490216;;
La mise hors d'eau du bâtiment de la gare de Torfou-Le longeron-Tiffauges en vue de son aménagement futur;;;20I05938;17I08582;238919;171558;171558;;COMMUNE DE SEVREMOINE;2020-05-29;00057601;;Mauges Communauté;5;274965.40485114;49;1318044533.54153;Septembre 2017;sig.territoires.pdl_ctr.5;Mauges Communauté;Mauges Communauté;CTR;;;2020_06903_00;;09/2017;122
La requalification d'une friche industrielle en espace commercial et d'activités;;;20I05947;18I07459;373996;60473;60473;;COMMUNE DE L ILE D ELLE;2020-05-29;85000640;;Sud Vendée Littoral;48;297801.82823589;85;950717267.472634;Juillet 2018;sig.territoires.pdl_ctr.48;CC Sud Vendée Littoral;Sud Vendée Littoral;CTR;;;2020_06569_00;;07/2018;106
La construction d'une salle de gymnastique;Vendée;MOUTIERS LES MAUXFAITS;20I05948;19I06843;2755233;638100;638100;85156;COMMUNAUTE DE COMMUNES VENDEE GRAND LITTORAL;2020-05-29;85000660;0;Vendée Grand Littoral;50;130718.72390863;85;506742589.437246;Juillet 2019;sig.territoires.pdl_ctr.50;Vendée Grand Littoral;Vendée Grand Littoral;CTR;85156;85;2020_06681;46.489279204, -1.43622387207;07/2019;111
L'étude de faisabilité relative à une gestion des déchets en méthanisation;Sarthe;LOUE;20I07270;17I09880;18000;14400;14400;72168;COMMUNAUTE DE COMMUNES LOUE BRULON NOYEN;2020-07-10;00058630;0;CC Loué - Brûlon - Noyen;52;226944.40757679;72;1117349894.39695;Novembre 2017;sig.territoires.pdl_ctr.52;Pays Vallée de la Sarthe;Pays Vallée de la Sarthe;CTR;72168;72;2020_08342;47.9976308821, -0.138237768355;11/2017;74
L'extension de la salle des fêtes;Mayenne;LIGNIERES ORGERES;20I07265;19I06842;380842;150000;150000;53133;COMMUNE DE LIGNIERES ORGERES;2020-07-10;00054433;0;Mont des Avaloirs;54;160156.70260044;53;546971565.364143;Juillet 2019;sig.territoires.pdl_ctr.54;Mont des Avaloirs;Mont des Avaloirs;CTR;53133;53;2020_08316;48.5288919372, -0.212232237721;07/2019;85
La construction d'un équipement culturel;Maine-et-Loire;LES GARENNES SUR LOIRE;20I09130;17I08581;978950;67142;67142;49167;COMMUNES DES GARENNES SUR LOIRE;2020-09-25;00069016;0;Loire Layon Aubance;29;220718.82914478;49;613435516.735679;Septembre 2017;sig.territoires.pdl_ctr.29;Loire Layon Aubance;Loire Layon Aubance;CTR;49167;49;2020_09868;47.40011602, -0.484584915233;09/2017;121
Les acquisitions foncières en vue de la réalisation d'un foyer logement pour personnes âgées;Sarthe;NOTRE DAME DU PE;20I09165;17I09881;61340;45000;45000;72232;COMMUNE DE NOTRE DAME DU PE;2020-09-25;00069453;0;;;;;;;;;;;72232;72;2020_09921;47.7258292037, -0.337170709008;;
La création d'un city-stade;;;20I09326;18I06679;91992;27373;27373;;COMMUNE DES EPESSES;2020-09-25;85000716;;Pays des Herbiers;17;117942.86919888;85;250332696.371675;Juillet 2018;sig.territoires.pdl_ctr.17;Pays des Herbiers;Pays des Herbiers;CTR;;;2020_09825_00;;07/2018;104
La création d'une liaison douce entre les bourgs de Bernay et de Neuvy;Sarthe;BERNAY NEUVY EN CHAMPAGNE;20I09161;18I09952;114000;34200;34200;72219;COMMUNE DE BERNAY NEUVY EN CHAMPAGNE;2020-09-25;00071803;34200;;;;;;;;;;;72219;72;2020_09880;48.0792849605, -0.0218826401128;;
La mise en oeuvre d'équipements sportifs cyclistes sur le site du Vélodrome Léon Bollée;Sarthe;LE MANS;20I09144;19I04948;896761;160000;160000;72181;COMMUNE DU MANS;2020-09-25;00058668;0;CU Le Mans Métropole;20;141570.43537983;72;268048561.841433;Juin 2019;sig.territoires.pdl_ctr.20;CU Le Mans Métropole;CU Le Mans Métropole;CDM;72181;72;2020_10655;47.9885256718, 0.200030493539;06/2019;91
La rénovation d'un logement communal;Loire-Atlantique;VUE;20I11973;17I08233;18231;11412;11412;44220;COMMUNE DE VUE;2020-11-13;00121412;0;Pornic Agglo Pays de Retz;33;137060.38656142;44;451066582.29291;Septembre 2017;sig.territoires.pdl_ctr.33;Communauté d'Agglomération de Pornic Cœur Pays de Retz;Pornic Agglo Pays de Retz;CTR;44220;44;2020_13638;47.1941974605, -1.9008768965;09/2017;127
Les travaux de réhabilitation de la MSAP, commune déléguée de Thouarcé;Maine-et-Loire;BELLEVIGNE EN LAYON;20I11787;17I08581;998216;224517;224517;49345;COMMUNE DE BELLEVIGNE EN LAYON;2020-11-13;00121260;188654;Loire Layon Aubance;29;220718.82914478;49;613435516.735679;Septembre 2017;sig.territoires.pdl_ctr.29;Loire Layon Aubance;Loire Layon Aubance;CTR;49345;49;2020_13363;47.2592682331, -0.517923916545;09/2017;121
Les travaux d'installation de panneaux photovoltaïques sur la toiture du cercle Léon LEGAULT;Maine-et-Loire;SAINT JEAN DE LA CROIX;20I11789;17I08581;43356;10000;10000;49288;COMMUNE DE SAINT JEAN DE LA CROIX;2020-11-13;00120481;10000;Loire Layon Aubance;29;220718.82914478;49;613435516.735679;Septembre 2017;sig.territoires.pdl_ctr.29;Loire Layon Aubance;Loire Layon Aubance;CTR;49288;49;2020_13366;47.4108613803, -0.588351617749;09/2017;121
La construction d'une halle de sports et loisirs;Vendée;BARBATRE;20I11774;17I08584;1637059;299600;299600;85011;COMMUNE DE BARBATRE;2020-11-13;85000751;36400;Ile de Noirmoutier;42;58228.61267806;85;49215409.8708768;Septembre 2017;sig.territoires.pdl_ctr.42;Ile de Noirmoutier;Ile de Noirmoutier;CTR;85011;85;2020_13596;46.9335754783, -2.16743559847;09/2017;93
Les études et l'acquisition de terrains pour la ZA des Rues;Mayenne;COSSE LE VIVIEN;20I12007;17I09006;141650;113000;113000;53077;CC DU PAYS DE CRAON;2020-11-13;00122288;0;Pays de Craon;62;169901.29669863;53;646041148.74744;Septembre 2017;sig.territoires.pdl_ctr.62;Pays de Craon;Pays de Craon;CTR;53077;53;2020_13689;47.94585879, -0.934606329089;09/2017;77
La requalification-extension de la ZA  la Maladrerie;Mayenne;ANDOUILLE;20I12009;18I04046;542231;203400;129220;53005;COMMUNAUTE DE COMMUNES DE L ERNEE;2020-11-13;00121237;0;L'Ernée;8;134446.67084716;53;485109090.730026;Avril 2018;sig.territoires.pdl_ctr.8;L'Ernée;L'Ernée;CTR;53005;53;2020_13691;48.1771432995, -0.792693064482;04/2018;82
L'installation de huit terrains multisports et d'un skatepark;Maine-et-Loire;OMBREE D ANJOU;20I11783;18I05642;468277;115000;115000;49248;COMMUNE DE OMBREE D ANJOU;2020-11-13;00109511;0;Anjou Bleu Communauté;57;184223.75006092;49;654967768.886332;Mai 2018;sig.territoires.pdl_ctr.57;Anjou Bleu Communauté;Anjou Bleu Communauté;CTR;49248;49;2020_13339;47.7629344972, -1.19300189799;05/2018;118
La valorisation de l'identité de la Communauté de communes par la mise en place d'une signalétique harmonisée;Sarthe;MAROLLES-LES-BRAULTS;20I12014;18I06858;44377;35501;35501;72189;COMMUNAUTE DE COMMUNES MAINE SAOSNOIS;2020-11-13;00123546;0;CC Maine Saosnois;31;160838.92939288;72;582200983.266689;Juillet 2018;sig.territoires.pdl_ctr.31;CC Maine Saosnois;CC Maine Saosnois;CTR;72189;72;2020_13698;48.2539587745, 0.320191786224;07/2018;86
La rénovation de la mairie et du foyer rural;Vendée;MONSIREIGNE;20I11773;18I08141;435376;100000;100000;85145;COMMUNE DE MONSIREIGNE;2020-11-13;85000730;100000;Pays de Pouzauges;60;109218.55751266;85;320861396.374744;Septembre 2018;sig.territoires.pdl_ctr.60;Communauté de communes du Pays de Pouzauges;Pays de Pouzauges;CTR;85145;85;2020_13595;46.7383480028, -0.931953130855;09/2018;107
La rénovation et extension de l'aire d'accueil des gens du voyage;Loire-Atlantique;NORT SUR ERDRE;23I02800;17I04913;733978;100000;100000;44110;COMMUNAUTE DE COMMUNES D ERDRE GESVRES;2021-02-12;00139643;;Erdre et Gesvres;13;166735.21638325;44;509712555.822317;Mai 2017;sig.territoires.pdl_ctr.13;Communauté de communes d'Erdre et Gesvres;Erdre et Gesvres;CTR;44110;44;2021_04340_01;47.447122285, -1.51824792558;05/2017;113
La réalisation du Schéma de COhérence Territoriale;Loire-Atlantique;ANCENIS SAINT GEREON;23I00672;17I09762;166560;50000;20160;44003;COMMUNAUTE DE COMMUNES DU PAYS D ANCENIS;2021-02-12;00140282;0;Pays d'Ancenis;56;189953.08705022;44;865594442.852705;Novembre 2017;sig.territoires.pdl_ctr.56;Pays d'Ancenis;Pays d'Ancenis;CTR;44003;44;2021_04301_00;47.3833270209, -1.18241880879;11/2017;126
Les travaux complémentaires de viabilité sur les zones d'activités de Beaufay et Bonnétable;;;23I05121;18I06858;46900;37520;;;COMMUNAUTE DE COMMUNES MAINE SAOSNOIS;2021-02-12;00137686;;CC Maine Saosnois;31;160838.92939288;72;582200983.266689;Juillet 2018;sig.territoires.pdl_ctr.31;CC Maine Saosnois;CC Maine Saosnois;CTR;;;2021_04344_01;;07/2018;86
La construction de bâtiments à vocation économique sur le parc d'activités de LoirEcopark;;;23I04994;19I03414;1242493;614071;614071;;COMMUNAUTE DE COMMUNES SUD SARTHE;2021-02-12;00123879;;CC du Pays Fléchois;49;306001.78232882;72;1427230046.65579;;sig.territoires.pdl_ctr.49;PETR Pays Vallée du Loir;Pays Vallée du Loir;CTR;;;2021_04356_01;;;90
La transformation d'un bâtiment industriel en salle polyvalente;;;23I05101;19I00771;795000;100000;100000;;COMMUNE DE LOMBRON;2021-03-31;00137374;;CC du Pays de l'Huisne Sarthoise;35;265241.4780676;72;1290421266.50866;Février 2019;sig.territoires.pdl_ctr.35;Pays du Perche Sarthois;Pays du Perche Sarthois;CTR;;;2021_05387_01;;02/2019;88
La réhabiliation du logement de la mairie;;;23I05126;19I06842;260000;49910;49910;;COMMUNE DE SAINT AUBIN DU DESERT;2021-03-31;00138364;;Mont des Avaloirs;54;160156.70260044;53;546971565.364143;Juillet 2019;sig.territoires.pdl_ctr.54;Mont des Avaloirs;Mont des Avaloirs;CTR;;;2021_05352_02;;07/2019;85
L'aménagement d'une plateforme à la déchetterie de Craon;Mayenne;CRAON;23I05005;17I09006;525000;230000;230000;53084;CC DU PAYS DE CRAON;2021-05-21;00148450;;Pays de Craon;62;169901.29669863;53;646041148.74744;Septembre 2017;sig.territoires.pdl_ctr.62;Pays de Craon;Pays de Craon;CTR;53084;53;2021_08426_01;47.8454412251, -0.943066490216;09/2017;77
L'acquisition de véhicules électriques et l'installation de bornes de recharge;Loire-Atlantique;SAVENAY;21I07878;17I09760;134353;107482;107482;44195;COMMUNAUTE DE COMMUNES ESTUAIRE ET SILLON;2021-05-21;00148679;107482;Estuaire et Sillon;61;112337.65867316;44;313121598.740399;Novembre 2017;sig.territoires.pdl_ctr.61;Communauté de communes d'Estuaire et Sillon;Estuaire et Sillon;CTR;44195;44;2021_07611;47.3570647854, -1.91842119102;11/2017;129
La restructuration de l'école Nicolas Grippon;;;23I02681;18I09952;460000;102000;102000;;COMMUNE DE ROUESSE VASSE;2021-05-21;00135088;;;;;;;;;;;;;;2021_08432_01;;;
L'aménagement et la requalification du cimetière communal;Loire-Atlantique;LE GAVRE;23I04873;17I04912;202000;51509;;44062;COMMUNE DU GAVRE;2021-09-23;00150483;;Région de Blain;12;104466.22577119;44;214288660.02636;Mai 2017;sig.territoires.pdl_ctr.12;Communauté de communes de la Région de Blain;Région de Blain;CTR;44062;44;2021_11410_01;47.5279203716, -1.79412055817;05/2017;112
La revitalisation du centre-ville de Chemillé;Maine-et-Loire;CHEMILLE EN ANJOU;23I00506;17I08582;1672505;778428;778428;49092;COMMUNE DE CHEMILLE EN ANJOU;2021-09-23;00149298;;Mauges Communauté;5;274965.40485114;49;1318044533.54153;Septembre 2017;sig.territoires.pdl_ctr.5;Mauges Communauté;Mauges Communauté;CTR;49092;49;2021_11106_00;47.2272268469, -0.730188160448;09/2017;122
La rénovation extérieure de la salle de la cité et de ses abords;;;23I02742;17I09578;204336;35041;35041;;COMMUNE DE MALLIEVRE;2021-09-23;85000904;;Pays de Mortagne;18;126807.36564022;85;228566018.366052;Novembre 2017;sig.territoires.pdl_ctr.18;Pays de Mortagne;Pays de Mortagne;CTR;;;2021_11112_01;;11/2017;95
Les travaux de rénovation de l'église Saint-Pierre;;;23I05081;17I09578;886352;88291;88291;;LA GAUBRETIERE;2021-09-23;85000951;;Pays de Mortagne;18;126807.36564022;85;228566018.366052;Novembre 2017;sig.territoires.pdl_ctr.18;Pays de Mortagne;Pays de Mortagne;CTR;;;2021_11115_01;;11/2017;95
La réhabilitation du siège de la CCSE;Loire-Atlantique;PAIMBŒUF;23I04906;17I09761;415400;188000;188000;44116;COMMUNAUTE DE COMMUNES DU SUD ESTUAIRE;2021-09-23;00148773;;Sud Estuaire;40;69676.17445778;44;202807972.29704;Novembre 2017;sig.territoires.pdl_ctr.40;Sud Estuaire;Sud Estuaire;CTR;44116;44;2021_11438_01;47.2863992883, -2.02807425552;11/2017;128
La construction de plateformes de déchets verts et les aménagements de déchèteries;Sarthe;LOUE;23I05128;17I09880;570300;202170;202170;72168;LBN COMMUNAUTE;2021-09-23;00150511;;CC Loué - Brûlon - Noyen;52;226944.40757679;72;1117349894.39695;Novembre 2017;sig.territoires.pdl_ctr.52;Pays Vallée de la Sarthe;Pays Vallée de la Sarthe;CTR;72168;72;2021_12389_02;47.9976308821, -0.138237768355;11/2017;74
La rénovation du logement du gardien du camping;Mayenne;MAYENNE;21I11203;18I00723;122000;94240;94240;53147;MAYENNE COMMUNAUTE;2021-09-23;00150495;94240;Mayenne Communauté;3;193726.21308398;53;626754357.991273;Février 2018;sig.territoires.pdl_ctr.3;Mayenne Communauté;Mayenne Communauté;CTR;53147;53;2021_14166;48.3074609449, -0.614799950799;02/2018;79
L' acquisition d'un immeuble du centre-bourg en vue de la création de logements locatifs communaux à Landivy;Mayenne;LANDIVY;21I10784;18I07457;142593;86400;86400;53125;COMMUNE DE LANDIVY;2021-09-23;00150506;;Bocage Mayennais;9;189865.43542796;53;529745022.271069;Juillet 2018;sig.territoires.pdl_ctr.9;Communauté de communes du Bocage Mayennais;Bocage Mayennais;CTR;53125;53;2021_12430;48.4787671606, -1.03882246254;07/2018;83
La viabilisation de la Zone d'Activités de Oisseau;;;23I05216;18I07457;137383;100000;100000;;COMMUNAUTE DE COMMUNES DU BOCAGE MAYENNAIS;2021-09-23;00150494;;Bocage Mayennais;9;189865.43542796;53;529745022.271069;Juillet 2018;sig.territoires.pdl_ctr.9;Communauté de communes du Bocage Mayennais;Bocage Mayennais;CTR;;;2021_12432_02;;07/2018;83
Les aménagements de la rue Sainte-Marie;;;23I10820;18I07459;173397;28579;28579;;COMMUNE DE GRUES;2021-09-23;85000896;;Sud Vendée Littoral;48;297801.82823589;85;950717267.472634;Juillet 2018;sig.territoires.pdl_ctr.48;CC Sud Vendée Littoral;Sud Vendée Littoral;CTR;;;2021_12488_02;;07/2018;106
La requalification du centre bourg;;;23I05038;19I00771;922590;90000;90000;;COMMUNE DE SILLE LE PHILIPPE;2021-09-23;00057826;;CC du Pays de l'Huisne Sarthoise;35;265241.4780676;72;1290421266.50866;Février 2019;sig.territoires.pdl_ctr.35;Pays du Perche Sarthois;Pays du Perche Sarthois;CTR;;;2021_12399_01;;02/2019;88
La réhabilitation de l'éclairage public;Sarthe;THORIGNE SUR DUE;21I10759;19I00771;99900;24975;24975;72358;COMMUNE DE THORIGNE SUR DUE;2021-09-23;00150551;24975;CC du Pays de l'Huisne Sarthoise;35;265241.4780676;72;1290421266.50866;Février 2019;sig.territoires.pdl_ctr.35;Pays du Perche Sarthois;Pays du Perche Sarthois;CTR;72358;72;2021_12401;48.0297154005, 0.519874230361;02/2019;88
la construction d'une salle sportive multi-activités;;;23I05042;19I00771;1200000;558572;;;COMMUNE DE CONNERRE;2021-09-23;00149993;;CC du Pays de l'Huisne Sarthoise;35;265241.4780676;72;1290421266.50866;Février 2019;sig.territoires.pdl_ctr.35;Pays du Perche Sarthois;Pays du Perche Sarthois;CTR;;;2021_12405_02;;02/2019;88
L'extension du Village d'artisans - ZAE La Chicane;;;23I05116;19I00773;480481;340190;340190;;COMMUNAUTE DE COMMUNES VENDEE SEVRE AUTISE;2021-09-23;85000939;;Vendée Sèvre Autise;22;164911.17006129;85;300390165.394669;Février 2019;sig.territoires.pdl_ctr.22;Communauté de communes de Vendée Sèvre Autise;Vendée Sèvre Autise;CTR;;;2021_12446_01;;02/2019;109
L'extension et la réhabilitation de l'école Aimé Césaire;;;23I06486;19I04943;669450;60628;60628;;COMMUNAUTE DE COMMUNES DU PAYS DES ACHARDS;2021-09-23;85000948;;Pays des Achards;21;104278.42393642;85;226747782.653686;Juin 2019;sig.territoires.pdl_ctr.21;Pays des Achards;Pays des Achards;CTR;;;2021_12438_02;;06/2019;110
L'aménagement de voies de circulation pour les mobilités douces;;;23I04990;19I06781;250000;120000;120000;;COMMUNE DE PLESSE;2021-09-23;00148795;;Redon Bretagne Sud;58;222098.45592879;44;975206076.430979;Juillet 2019;sig.territoires.pdl_ctr.58;Redon Bretagne Sud;Redon Bretagne Sud;CTR;;;2021_11419_01;;07/2019;136
L'extension de l'école;;;23I05448;19I06781;650000;90000;90000;;COMMUNE DE CONQUEREUIL;2021-09-23;00128502;;Redon Bretagne Sud;58;222098.45592879;44;975206076.430979;Juillet 2019;sig.territoires.pdl_ctr.58;Redon Bretagne Sud;Redon Bretagne Sud;CTR;;;2021_11435_01;;07/2019;136
Programme de rénovation thermique et d'efficacité énergétique de 3 logements de la CCMA;;;23I05130;19I06842;190720;109000;;;COMMUNAUTE DE COMMUNES DU MONT DES AVALOIRS;2021-09-23;00150603;;Mont des Avaloirs;54;160156.70260044;53;546971565.364143;Juillet 2019;sig.territoires.pdl_ctr.54;Mont des Avaloirs;Mont des Avaloirs;CTR;;;2021_12426_01;;07/2019;85
L'aménagement et la sécurisation du lotissement les Rives de l'Acheneau - CTR 2020 - CA Pornic Coeur Pays de Retz;Loire-Atlantique;PORT-SAINT-PERE;18I02011;17I08233;205000;33948;33948;44133;COMMUNE DE PORT SAINT PERE;2018-02-16;00036918;0;Pornic Agglo Pays de Retz;33;137060.38656142;44;451066582.29291;Septembre 2017;sig.territoires.pdl_ctr.33;Communauté d'Agglomération de Pornic Cœur Pays de Retz;Pornic Agglo Pays de Retz;CTR;44133;44;2018_00211;47.1406810974, -1.76837740762;09/2017;127
L'aménagement rue des Sports - CTR 2020 - CC Estuaire et Sillon;Loire-Atlantique;CAMPBON;18I00838;17I09760;197230;47890;47890;44025;COMMUNE DE CAMPBON;2018-02-16;00041311;0;Estuaire et Sillon;61;112337.65867316;44;313121598.740399;Novembre 2017;sig.territoires.pdl_ctr.61;Communauté de communes d'Estuaire et Sillon;Estuaire et Sillon;CTR;44025;44;2018_00187;47.4160977851, -1.96776519689;11/2017;129
l'extension de la salle omnisports;Maine-et-Loire;JARZE VILLAGES;18I03724;17I06491;656952;131390;131390;49163;COMMUNE NOUVELLE JARZE VILLAGES;2018-04-20;00039761;0;Anjou Loir et Sarthe;26;172077.9474839;49;457111657.097573;Juillet 2017;sig.territoires.pdl_ctr.26;Communauté de Communes Anjou Loir et Sarthe;Anjou Loir et Sarthe;CTR;49163;49;2018_04335;47.5576434301, -0.24007574412;07/2017;119
L'extension et l'aménagement du boulodrome - CTR  2020 - Communauté de communes de Pont Château Saint Gildas des Bois;Loire-Atlantique;MISSILLAC;18I03756;17I06805;119645;10000;10000;44098;COMMUNE DE MISSILLAC;2018-04-20;00044045;0;Pays de Pontchâteau St Gildas des Bois;1;130121.86476614;44;327059918.271195;Juillet 2017;sig.territoires.pdl_ctr.1;Communauté de communes de Pont Château Saint Gildas des Bois;Pays de Pontchâteau St Gildas des Bois;CTR;44098;44;2018_04377;47.4881482821, -2.17765365439;07/2017;115
L'aménagement des abords et équipements annexes du lycée de Nort-sur-Erdre - CTR 2020 - Erdre et Gesvres;Loire-Atlantique;NORT-SUR-ERDRE;18I05638;17I04913;2521912;100000;100000;44110;COMMUNE DE NORT SUR ERDRE;2018-05-25;00039479;0;Erdre et Gesvres;13;166735.21638325;44;509712555.822317;Mai 2017;sig.territoires.pdl_ctr.13;Communauté de communes d'Erdre et Gesvres;Erdre et Gesvres;CTR;44110;44;2018_06827;47.447122285, -1.51824792558;05/2017;113
Favoriser l'accueil d'entreprises par le développement d'un espace tertiaire- Craon-53-CTR CC Craon;Mayenne;CRAON;19I00450;17I09006;226000;60000;60000;53084;CC DU PAYS DE CRAON;2018-07-13;00039379;0;Pays de Craon;62;169901.29669863;53;646041148.74744;Septembre 2017;sig.territoires.pdl_ctr.62;Pays de Craon;Pays de Craon;CTR;53084;53;2018_08550_00;47.8454412251, -0.943066490216;09/2017;77
le renouvellement des habitations légères de loisirs (HLL) sur le camping municipal - EVRON-53-CTR de la CC Coëvrons;Mayenne;EVRON;18I07149;18I01923;333334;150000;117720;53097;COMMUNE D EVRON;2018-07-13;00040061;0;Les Coëvrons;2;193924.72196165;53;788955843.049511;Février 2018;sig.territoires.pdl_ctr.2;Les Coëvrons;Les Coëvrons;CTR;53097;53;2018_08556_01;48.1520198351, -0.389270176708;02/2018;81
Le plateau sportif  - COMMUNAUTE DE COMMUNES REGION DE NOZAY (44) - CTR 2020;Loire-Atlantique;NOZAY;18I07156;18I03759;397542;100000;100000;44113;COMMUNAUTE DE COMMUNES REGION DE NOZAY;2018-07-13;00040220;0;Région de Nozay;23;98766.52204624;44;275618396.875015;Avril 2018;sig.territoires.pdl_ctr.23;Région de Nozay;Région de Nozay;CTR;44113;44;2018_09255;47.5728858483, -1.60097664616;04/2018;130
l'aménagement de la rue Georges Clemenceau-Saint Révérend-85-CTR 2020 de la CC Pays de Saint-Gilles Croix de Vie;Vendée;SAINT-REVEREND;18I07628;18I07458;102219;53035;53035;85268;COMMUNE DE SAINT REVEREND;2018-07-13;85000152;0;Pays de St Gilles-Croix-de-Vie;4;126534.03790467;85;293800477.999917;Avril 2018;sig.territoires.pdl_ctr.4;Communauté de communes du Pays de St Gilles-Croix-de-Vie;Pays de St Gilles-Croix-de-Vie;CTR;85268;85;2018_08916;46.7057741864, -1.83155480996;04/2018;105
la mise aux normes et accessibilité de la salle omnisports et installation d'un city stadeSud Vendée Littoral - MAGNILS-REIGNIERS -53- CTR 2020 de la CC Sud Vendée Littoral;Vendée;LES MAGNILS-REIGNIERS;18I07627;18I07459;258236;68151;68151;85131;COMMUNE DES MAGNILS REIGNIERS;2018-07-13;85000144;0;Sud Vendée Littoral;48;297801.82823589;85;950717267.472634;Juillet 2018;sig.territoires.pdl_ctr.48;CC Sud Vendée Littoral;Sud Vendée Littoral;CTR;85131;85;2018_08915;46.4635045649, -1.210635375;07/2018;106
La création du parc d'activité la Belle Etoile;Loire-Atlantique;GRANDCHAMPS-DES-FONTAINES;18I08838;17I04913;2000000;330941;330941;44066;COMMUNAUTE DE COMMUNES D ERDRE GESVRES;2018-09-28;00041241;0;Erdre et Gesvres;13;166735.21638325;44;509712555.822317;Mai 2017;sig.territoires.pdl_ctr.13;Communauté de communes d'Erdre et Gesvres;Erdre et Gesvres;CTR;44066;44;2018_10161_02;47.3606796643, -1.61754475868;05/2017;113
La création d'une médiathèque - COMMUNE LES LUCS SUR BOULOGNE - 85 - CTR 2020 CC Vie et Boulogne;Vendée;LES LUCS-SUR-BOULOGNE;18I08863;18I02800;734766;68500;68500;85129;COMMUNE DE LES LUCS SUR BOULOGNE;2018-09-28;85000175;68500;Vie et Boulogne;37;148814.1881539;85;492534760.430236;Avril 2018;sig.territoires.pdl_ctr.37;Vie et Boulogne;Vie et Boulogne;CTR;85129;85;2018_11232_00;46.8527299002, -1.48398928084;04/2018;102
La réhabilitation de l'Espace Villeneuve en Pôle culturel - COMMUNE D'AIZENAY - 85 - CTR 2020 CC Vie et Boulogne;Vendée;AIZENAY;18I08864;18I02800;2607407;320205;320205;85003;COMMUNE D AIZENAY;2018-09-28;85000196;325000;Vie et Boulogne;37;148814.1881539;85;492534760.430236;Avril 2018;sig.territoires.pdl_ctr.37;Vie et Boulogne;Vie et Boulogne;CTR;85003;85;2018_11239_00;46.7384516809, -1.62702889721;04/2018;102
La création d'une maison de santé pluridisciplinaire - COMMUNE DE CANDE - 49 - CTR 2020 - CC Anjou Bleu Communauté;Maine-et-Loire;CANDE;18I08793;18I05642;2029000;418986;418986;49054;COMMUNE DE CANDE;2018-09-28;00041303;0;Anjou Bleu Communauté;57;184223.75006092;49;654967768.886332;Mai 2018;sig.territoires.pdl_ctr.57;Anjou Bleu Communauté;Anjou Bleu Communauté;CTR;49054;49;2018_10119;47.5585230813, -1.03503351449;05/2018;118
la construction de vestiaires du stade communal et d'une salle de convivialité - COMMUNE DE SOULAIRE ET BOURG - 49 - CDM Angers Loire Métropole;Maine-et-Loire;SOULAIRE-ET-BOURG;18I08784;18I06680;508570;140000;140000;49339;COMMUNE DE SOULAIRE ET BOURG;2018-09-28;00041514;140000;Angers Loire Métropole;10;192445.630446;49;676496020.936854;Juillet 2018;sig.territoires.pdl_ctr.10;Angers Loire Métropole;Angers Loire Métropole;CDM;49339;49;2018_11102;47.5798701651, -0.542933611394;07/2018;116
Les travaux d'aménagement extérieurs du pôle enfance et jeunesse - Commune du Bignon - 44 - CTR 2020 de la Communauté de communes de Grand-Lieu;Loire-Atlantique;LE BIGNON;18I08845;18I06807;320816;121900;121900;44014;COMMUNE LE BIGNON;2018-09-28;00041336;0;Grand Lieu;7;107565.11514829;44;300535663.006993;Juillet 2018;sig.territoires.pdl_ctr.7;Grand Lieu;Grand Lieu;CTR;44014;44;2018_10182;47.1004098153, -1.50942309254;07/2018;131
La construction d'une salle de sports - Commune de Saint-André-des-Eaux - 44 - CTR 2020 de la CA de la CARENE;Loire-Atlantique;SAINT-ANDRE-DES-EAUX;18I08847;18I08406;1922719;346089;346089;44151;COMMUNE DE SAINT ANDRE DES EAUX;2018-09-28;00041354;0;CARENE;59;128866.92125478;44;316957860.724649;Septembre 2018;sig.territoires.pdl_ctr.59;CARENE;CARENE;CTR;44151;44;2018_10195;47.3234376088, -2.31269060612;09/2018;133
La rénovation énergétique de la mairie de Petit-Mars -  COMMUNE DE PETIT-MARS  - 44 - CTR 2020 CC D'ERDRE ET GESVRES;Loire-Atlantique;PETIT-MARS;18I10714;17I04913;432136;30000;30000;44122;COMMUNE DE PETIT MARS;2018-11-23;00043079;30000;Erdre et Gesvres;13;166735.21638325;44;509712555.822317;Mai 2017;sig.territoires.pdl_ctr.13;Communauté de communes d'Erdre et Gesvres;Erdre et Gesvres;CTR;44122;44;2018_12531;47.4051549703, -1.45655214384;05/2017;113
44 - PONT CHATEAU ST GILDAS DES BOIS - MME ROCHET MARIE-JOËLLE - Ecoconstruction à la maison éclusière de Guenrouët;Loire-Atlantique;GUENROUET;18I10716;17I06805;0;0;;44068;ROCHET MARIE JOELLE;2018-11-23;00041535;0;Pays de Pontchâteau St Gildas des Bois;1;130121.86476614;44;327059918.271195;Juillet 2017;sig.territoires.pdl_ctr.1;Communauté de communes de Pont Château Saint Gildas des Bois;Pays de Pontchâteau St Gildas des Bois;CTR;44068;44;2018_12724_00;47.5034137503, -1.95561601434;07/2017;115
L'écoplage - COMMUNE DE LA BAULE - 44 - CTR 2020 -  CA CAP ATLANTIQUE;Loire-Atlantique;LA BAULE-ESCOUBLAC;18I10720;17I09003;1520000;287401;287401;44055;COMMUNE DE LA BAULE ESCOUBLAC;2018-11-23;00041922;304000;Cap Atlantique;41;145725.47329518;44;395838108.965296;Septembre 2017;sig.territoires.pdl_ctr.41;Cap Atlantique;Cap Atlantique;CTR;44055;44;2018_12762_00;47.2909720179, -2.3538291745;09/2017;125
La restructuration aire d'accueil permanent des gens du voyage - CAP ATLANTIQUE - 44 - CTR 2020;Loire-Atlantique;LE POULIGUEN;18I10721;17I09003;96979;19396;19396;44135;COMMUNAUTE D AGGLOMERATION DE LA PRESQU ILE DE GUERANDE ATLANTIQUE;2018-11-23;00041930;0;Cap Atlantique;41;145725.47329518;44;395838108.965296;Septembre 2017;sig.territoires.pdl_ctr.41;Cap Atlantique;Cap Atlantique;CTR;44135;44;2018_12765;47.2716208982, -2.43210265977;09/2017;125
L'amélioration des performances acoustiques et thermiques de la salle Emeraude du complexe sportif - COMMUNE DES LANDES GENUSSON - 85 - CTR 2020 Pays de Mortagne;Vendée;LES LANDES-GENUSSON;18I10393;17I09578;160222;72987;72987;85119;COMMUNE DE LES LANDES GENUSSON;2018-11-23;85000263;72987;Pays de Mortagne;18;126807.36564022;85;228566018.366052;Novembre 2017;sig.territoires.pdl_ctr.18;Pays de Mortagne;Pays de Mortagne;CTR;85119;85;2018_13313_00;46.9663828627, -1.12900644447;11/2017;95
L'aménagement d'une voie mixte piétons cyclistes le long de la RD 323 - COMMUNE DE DURTAL - 49 - CTR 2020 ANJOU LOIR ET SARTHE;Maine-et-Loire;DURTAL;19I01572;17I06491;342723;68545;68545;49127;COMMUNE DE DURTAL;2019-02-08;00044729;68545;Anjou Loir et Sarthe;26;172077.9474839;49;457111657.097573;Juillet 2017;sig.territoires.pdl_ctr.26;Communauté de Communes Anjou Loir et Sarthe;Anjou Loir et Sarthe;CTR;49127;49;2019_00875;47.6780515421, -0.254608332885;07/2017;119
La restructuration et l'extension de la salle polyvalente - COMMUNE DE FALLERON - 85 - CTR 2020 CC Vie et Boulogne;;;19I01576;18I02800;909493;85050;85050;;COMMUNE DE FALLERON;2019-02-08;85000341;;Vie et Boulogne;37;148814.1881539;85;492534760.430236;Avril 2018;sig.territoires.pdl_ctr.37;Vie et Boulogne;Vie et Boulogne;CTR;;;2019_00879_00;;04/2018;102
la création de la zone d'activités de Lesbois  - COMMUNAUTE DE COMMUNES DU BOCAGE MAYENNAIS - 53 - CTR 2020 CC BOCAGE MAYENNAIS;Mayenne;LESBOIS;19I01616;18I07457;114087;90000;90000;53131;COMMUNAUTE DE COMMUNES DU BOCAGE MAYENNAIS;2019-02-08;00044822;0;Bocage Mayennais;9;189865.43542796;53;529745022.271069;Juillet 2018;sig.territoires.pdl_ctr.9;Communauté de communes du Bocage Mayennais;Bocage Mayennais;CTR;53131;53;2019_01057;48.4514022952, -0.793461282551;07/2018;83
la rénovation du bâtiment de la voilerie et buvette de la base de loisirs - COMMUNAUTÉ DE COMMUNES DES VALLÉES DE LA BRAYE ET DE L'ANILLE -72 - CTR 2020 PAYS PERCHE SARTHOIS;Sarthe;LAVARE;19I01627;19I00771;256796;155436;155436;72158;COMMUNAUTE DE COMMUNES DES VALLEES DE LA BRAYE ET DE L ANILLE;2019-02-08;00045365;0;CC du Pays de l'Huisne Sarthoise;35;265241.4780676;72;1290421266.50866;Février 2019;sig.territoires.pdl_ctr.35;Pays du Perche Sarthois;Pays du Perche Sarthois;CTR;72158;72;2019_01145;48.0582643991, 0.657147028816;02/2019;88
l'installation de panneaux photovoltaïques sur la salle communale des associations-53 - CONGRIER - CTR 2020 DU PAYS DE CRAON;Mayenne;CONGRIER;19I03616;17I09006;34000;9768;9768;53073;COMMUNE DE CONGRIER;2019-04-05;00045829;10200;Pays de Craon;62;169901.29669863;53;646041148.74744;Septembre 2017;sig.territoires.pdl_ctr.62;Pays de Craon;Pays de Craon;CTR;53073;53;2019_04558_00;47.802801926, -1.12483688372;09/2017;77
La rénovation et la réhabilitation de l'ancien presbytère en maison des associations - Commue de Chanverrie;Vendée;CHANVERRIE;19I03828;17I09578;500000;97764;97764;85302;COMMUNE DE CHANVERRIE;2019-04-05;85000336;97764;Pays de Mortagne;18;126807.36564022;85;228566018.366052;Novembre 2017;sig.territoires.pdl_ctr.18;Pays de Mortagne;Pays de Mortagne;CTR;85302;85;2019_04152;46.9634774521, -0.985340006089;11/2017;95
Les travaux d'aménagement d'un espace public en entrée de bourg - Commune de la Merlatière;Vendée;LA MERLATIERE;19I03832;18I01087;60210;20830;20830;85142;COMMUNE DE LA MERLATIERE;2019-04-05;85000322;0;Pays de Saint-Fulgent – Les Essarts;36;123566.51305289;85;326545965.188948;Février 2018;sig.territoires.pdl_ctr.36;Pays de Saint-Fulgent – Les Essarts;Pays de Saint-Fulgent – Les Essarts;CTR;85142;85;2019_04156_00;46.7557703112, -1.29794577;02/2018;99
La valorisation du site sportif de Tressé à Pouancé et la construction de tribunes et vestiaires - Commune d'Ombrée d'Anjou;Maine-et-Loire;OMBREE D'ANJOU;19I03600;18I05642;625000;150000;150000;49248;COMMUNE DE OMBREE D ANJOU;2019-04-05;00045897;0;Anjou Bleu Communauté;57;184223.75006092;49;654967768.886332;Mai 2018;sig.territoires.pdl_ctr.57;Anjou Bleu Communauté;Anjou Bleu Communauté;CTR;49248;49;2019_04260;47.7629344972, -1.19300189799;05/2018;118
L'aménagement sécuritaire de la rue de la Jarrie à Montbert;Loire-Atlantique;MONTBERT;19I03592;18I06807;520000;144100;144100;44102;COMMUNE DE MONTBERT;2019-04-05;00046125;0;Grand Lieu;7;107565.11514829;44;300535663.006993;Juillet 2018;sig.territoires.pdl_ctr.7;Grand Lieu;Grand Lieu;CTR;44102;44;2019_04228;47.0679433931, -1.4701852733;07/2018;131
l'Aménagement et la mise en accessibilité du bâtiment de la mairie- 85- Saint-Juire-Champgillon - CTR 2020 Sud Vendée Littoral;Vendée;SAINT-JUIRE-CHAMPGILLON;19I03627;18I07459;112457;39006;39006;85235;SAINT JUIRE CHAMPGILLON;2019-04-05;85000328;0;Sud Vendée Littoral;48;297801.82823589;85;950717267.472634;Juillet 2018;sig.territoires.pdl_ctr.48;CC Sud Vendée Littoral;Sud Vendée Littoral;CTR;85235;85;2019_04573;46.5882648491, -1.00959676911;07/2018;106
L'aménagement et la rénovation de l'hôtel de ville;Loire-Atlantique;BLAIN;19I06310;17I04912;121128;71392;71392;44015;COMMUNE DE BLAIN;2019-06-06;00046645;0;Région de Blain;12;104466.22577119;44;214288660.02636;Mai 2017;sig.territoires.pdl_ctr.12;Communauté de communes de la Région de Blain;Région de Blain;CTR;44015;44;2019_06488;47.4628210409, -1.76789479614;05/2017;112
Le projet d'aménagement de voiries à Notre-Dame-des-Landes pour favoriser les mobilité actives;Loire-Atlantique;NOTRE-DAME-DES-LANDES;19I06320;17I04913;174232;40000;40000;44111;COMMUNE DE NOTRE DAME DES LANDES;2019-06-06;00047327;40000;Erdre et Gesvres;13;166735.21638325;44;509712555.822317;Mai 2017;sig.territoires.pdl_ctr.13;Communauté de communes d'Erdre et Gesvres;Erdre et Gesvres;CTR;44111;44;2019_06507;47.3753590043, -1.71598291146;05/2017;113
La rénovation patrimoniale du manoir de la Chataigneraie;Loire-Atlantique;SUCE-SUR-ERDRE;19I06331;17I04913;941559;100000;100000;44201;COMMUNE DE SUCE SUR ERDRE;2019-06-06;00043594;0;Erdre et Gesvres;13;166735.21638325;44;509712555.822317;Mai 2017;sig.territoires.pdl_ctr.13;Communauté de communes d'Erdre et Gesvres;Erdre et Gesvres;CTR;44201;44;2019_06606;47.3536547402, -1.51945689724;05/2017;113
La construction d'une maison de santé pluridisciplinaire à Cossé le Vivien;Mayenne;COSSE LE VIVIEN;19I06173;17I09006;1875800;335320;335320;53077;CC DU PAYS DE CRAON;2019-06-06;00047169;58000;Pays de Craon;62;169901.29669863;53;646041148.74744;Septembre 2017;sig.territoires.pdl_ctr.62;Pays de Craon;Pays de Craon;CTR;53077;53;2019_06505_00;47.94585879, -0.934606329089;09/2017;77
La rénovation d'un local pour la création d'un commerce multiservices;Sarthe;ETIVAL-LES-LE-MANS;19I06179;17I09882;98000;25000;25000;72127;COMMUNE ETIVAL LES LE MANS;2019-06-06;00044900;25000;;;;;;;;;;;72127;72;2019_06532;47.9634415619, 0.077249958248;;
Le réaménagement d'un bâtiment pour un projet culturel;Vendée;L'AIGUILLON-SUR-VIE;19I06210;18I07458;135000;53035;53035;85002;COMMUNE DE L AIGUILLON SUR VIE;2019-06-06;85000395;0;Pays de St Gilles-Croix-de-Vie;4;126534.03790467;85;293800477.999917;Avril 2018;sig.territoires.pdl_ctr.4;Communauté de communes du Pays de St Gilles-Croix-de-Vie;Pays de St Gilles-Croix-de-Vie;CTR;85002;85;2019_06573;46.6706426618, -1.82599992318;04/2018;105
La modernisation des halles couvertes;;;19I06215;18I07459;344078;63120;63120;;COMMUNE DE SAINT MICHEL EN L HERM;2019-06-06;85000324;;Sud Vendée Littoral;48;297801.82823589;85;950717267.472634;Juillet 2018;sig.territoires.pdl_ctr.48;CC Sud Vendée Littoral;Sud Vendée Littoral;CTR;;;2019_06578_00;;07/2018;106
La requalification de l'Entrée nord de l'agglomération - Boulevard de l'Atlantique;Loire-Atlantique;SAINT-NAZAIRE;19I06328;18I08406;11401370;1230000;1228032;44184;COMMUNAUTE D AGGLO DE LA REGION NAZAIRIENNE ET DE L ESTUAIRE;2019-06-06;00047357;0;CARENE;59;128866.92125478;44;316957860.724649;Septembre 2018;sig.territoires.pdl_ctr.59;CARENE;CARENE;CTR;44184;44;2019_06598_01;47.2802857028, -2.25379927249;09/2018;133
L'agrandissement de l'hôtel communautaire;Sarthe;SAINT-CALAIS;19I06178;19I00771;142905;89817;89817;72269;COMMUNAUTE DE COMMUNES DES VALLEES DE LA BRAYE ET DE L ANILLE;2019-06-06;00046688;0;CC du Pays de l'Huisne Sarthoise;35;265241.4780676;72;1290421266.50866;Février 2019;sig.territoires.pdl_ctr.35;Pays du Perche Sarthois;Pays du Perche Sarthois;CTR;72269;72;2019_06517_00;47.9250578354, 0.747660967628;02/2019;88
La création d'une Maison des associations;Vendée;SAINT-HILAIRE-DES-LOGES;19I06216;19I00773;0;0;;85227;MAIRIE DE SAINT HILAIRE DES LOGES;2019-06-06;85000393;0;Vendée Sèvre Autise;22;164911.17006129;85;300390165.394669;Février 2019;sig.territoires.pdl_ctr.22;Communauté de communes de Vendée Sèvre Autise;Vendée Sèvre Autise;CTR;85227;85;2019_06581_00;46.4747117878, -0.650611151998;02/2019;109
L'aménagement d'un terrain multisports;;;19I06217;19I00773;228023;79032;79032;;MAIRIE DE MAILLEZAIS;2019-06-06;85000411;;Vendée Sèvre Autise;22;164911.17006129;85;300390165.394669;Février 2019;sig.territoires.pdl_ctr.22;Communauté de communes de Vendée Sèvre Autise;Vendée Sèvre Autise;CTR;;;2019_06590_00;;02/2019;109
L'acquisition d'un véhicule utilitaire électrique par la Commune de Notre-Dame-des-Landes;Loire-Atlantique;NOTRE-DAME-DES-LANDES;19I07531;17I04913;14808;11846;11846;44111;COMMUNE DE NOTRE DAME DES LANDES;2019-07-12;00048610;11846;Erdre et Gesvres;13;166735.21638325;44;509712555.822317;Mai 2017;sig.territoires.pdl_ctr.13;Communauté de communes d'Erdre et Gesvres;Erdre et Gesvres;CTR;44111;44;2019_08528_00;47.3753590043, -1.71598291146;05/2017;113
L'amélioration de la performance énergétique de la salle Poitevin à Daumeray;Maine-et-Loire;MORANNES SUR SARTHE-DAUMERAY;19I07475;17I06491;84039;16808;16808;49220;COMMUNE DE MORANNES SUR SARTHE DAUMERAY;2019-07-12;00048499;16808;Anjou Loir et Sarthe;26;172077.9474839;49;457111657.097573;Juillet 2017;sig.territoires.pdl_ctr.26;Communauté de Communes Anjou Loir et Sarthe;Anjou Loir et Sarthe;CTR;49220;49;2019_07835;47.725500783, -0.403190245491;07/2017;119
La restructuration de bâtiments communaux pour regrouper les services des deux anciennes Communes à Chaumes-en-Retz;Loire-Atlantique;CHAUMES-EN-RETZ;19I07520;17I08233;1007288;137303;137303;44005;COMMUNE DE CHAUMES EN RETZ;2019-07-12;00048536;0;Pornic Agglo Pays de Retz;33;137060.38656142;44;451066582.29291;Septembre 2017;sig.territoires.pdl_ctr.33;Communauté d'Agglomération de Pornic Cœur Pays de Retz;Pornic Agglo Pays de Retz;CTR;44005;44;2019_08500;47.1592162214, -1.95412512421;09/2017;127
L'acquisition d'un véhicule électrique;Loire-Atlantique;NOZAY;19I07534;18I03759;31286;11008;11008;44113;COMMUNAUTE DE COMMUNES REGION DE NOZAY;2019-07-12;00048362;12000;Région de Nozay;23;98766.52204624;44;275618396.875015;Avril 2018;sig.territoires.pdl_ctr.23;Région de Nozay;Région de Nozay;CTR;44113;44;2019_08642_00;47.5728858483, -1.60097664616;04/2018;130
L'aménagement et la sécurisation du bourg;Vendée;PEAULT;19I07517;18I07459;202500;47364;47364;85171;COMMUNE DE PEAULT;2019-07-12;85000398;0;Sud Vendée Littoral;48;297801.82823589;85;950717267.472634;Juillet 2018;sig.territoires.pdl_ctr.48;CC Sud Vendée Littoral;Sud Vendée Littoral;CTR;85171;85;2019_08740;46.502029199, -1.22708559855;07/2018;106
Les travaux de sécurisation des axes périphériques de l'école communale;Vendée;PUYRAVAULT;19I07519;18I07459;119530;49612;49612;85185;COMMUNE DE PUYRAVAULT;2019-07-12;85000440;0;Sud Vendée Littoral;48;297801.82823589;85;950717267.472634;Juillet 2018;sig.territoires.pdl_ctr.48;CC Sud Vendée Littoral;Sud Vendée Littoral;CTR;85185;85;2019_08742;46.3653834101, -1.09115660367;07/2018;106
La construction de vestiaires de football;Mayenne;ENTRAMMES;19I07501;19I00770;335740;58515;58515;53094;COMMUNE D ENTRAMMES;2019-07-12;00048468;0;Laval Agglomération;53;160270.39281569;53;438471285.378152;Février 2019;sig.territoires.pdl_ctr.53;Laval Agglomération;Laval Agglomération;CTR;53094;53;2019_08596_00;47.9934210518, -0.715102434492;02/2019;84
La requalification de la rue du Haut Bourg;Mayenne;SAINT-BERTHEVIN;19I07506;19I00770;296046;80000;80000;53201;COMMUNE DE SAINT BERTHEVIN;2019-07-12;00048391;0;Laval Agglomération;53;160270.39281569;53;438471285.378152;Février 2019;sig.territoires.pdl_ctr.53;Laval Agglomération;Laval Agglomération;CTR;53201;53;2019_08603;48.0702234162, -0.845217269922;02/2019;84
L'aménagement de la place de l'Eglise pour l'implantation d'un pôle commercial;Loire-Atlantique;CHAUVE;19I09031;17I08233;408460;91687;91687;44038;COMMUNE DE CHAUVE;2019-09-27;00049434;0;Pornic Agglo Pays de Retz;33;137060.38656142;44;451066582.29291;Septembre 2017;sig.territoires.pdl_ctr.33;Communauté d'Agglomération de Pornic Cœur Pays de Retz;Pornic Agglo Pays de Retz;CTR;44038;44;2019_11113;47.1588661346, -2.01200123653;09/2017;127
La réhabilitation de la déchetterie de Kéraline;Loire-Atlantique;HERBIGNAC;19I09036;17I09003;710000;142000;142000;44072;COMMUNAUTE D AGGLOMERATION DE LA PRESQU ILE DE GUERANDE ATLANTIQUE;2019-09-27;00045932;0;Cap Atlantique;41;145725.47329518;44;395838108.965296;Septembre 2017;sig.territoires.pdl_ctr.41;Cap Atlantique;Cap Atlantique;CTR;44072;44;2019_11855;47.4472411995, -2.31338629512;09/2017;125
L'acquisition de véhicules électriques;Vendée;INTERCOMMUNALE;19I08937;18I02799;80000;41200;41200;85234;COMMUNAUTE DE COMMUNES OCEAN MARAIS DE MONTS;2019-09-27;85000459;41200;Océan Marais de Monts;43;97448.69013118;85;184686424.300016;Avril 2018;sig.territoires.pdl_ctr.43;Océan Marais de Monts;Océan Marais de Monts;CTR;85234;85;2019_11050;46.8021968737, -2.04839789308;04/2018;101
Le 1er Réinventer Rural : l'appel à projets;Loire-Atlantique;NOZAY;19I09038;18I03759;76450;10000;10000;44113;COMMUNAUTE DE COMMUNES REGION DE NOZAY;2019-09-27;00049331;0;Région de Nozay;23;98766.52204624;44;275618396.875015;Avril 2018;sig.territoires.pdl_ctr.23;Région de Nozay;Région de Nozay;CTR;44113;44;2019_13145;47.5728858483, -1.60097664616;04/2018;130
La construction d'un groupe scolaire dans la ZAC du Champs de Manoeuvre;Loire-Atlantique;NANTES;19I08947;18I06834;8498000;2289053;2289053;44109;COMMUNE DE NANTES;2019-09-27;00049367;2289053;Nantes Métropole;6;181264.28832122;44;534212730.160229;Juillet 2018;sig.territoires.pdl_ctr.6;Nantes Métropole;Nantes Métropole;CDM;44109;44;2019_10951;47.2316356767, -1.54831008605;07/2018;132
La création d'une maison de santé pluridisciplinaire pour le sud du Pays de Saint-Gilles-Croix-de-Vie;;;19I08932;18I07458;1864319;51990;51990;;COMMUNE DE BRETIGNOLLES SUR MER;2019-09-27;85000456;;Pays de St Gilles-Croix-de-Vie;4;126534.03790467;85;293800477.999917;Avril 2018;sig.territoires.pdl_ctr.4;Communauté de communes du Pays de St Gilles-Croix-de-Vie;Pays de St Gilles-Croix-de-Vie;CTR;;;2019_10392_00;;04/2018;105
L'aménagement et la sécurisation du centre-bourg;;;19I08934;18I07459;140000;30979;30979;;SAINT ETIENNE DE BRILLOUET;2019-09-27;85000486;;Sud Vendée Littoral;48;297801.82823589;85;950717267.472634;Juillet 2018;sig.territoires.pdl_ctr.48;CC Sud Vendée Littoral;Sud Vendée Littoral;CTR;;;2019_10396_00;;07/2018;106
La réhabilitation d'un atelier en équipement sportif;Sarthe;SILLE-LE-GUILLAUME;19I08915;18I09952;383000;57450;57450;72334;COMMUNE DE SILLE LE GUILLAUME;2019-09-27;00049479;0;;;;;;;;;;;72145;72;2019_10349;48.1864769196, -0.132591918679;;
La construction du foyer des jeunes - pôle associatif;Mayenne;BONCHAMP-LES-LAVAL;19I08903;19I00770;1314331;99140;99140;53034;COMMUNE DE BONCHAMP LES LAVAL;2019-09-27;00048830;0;Laval Agglomération;53;160270.39281569;53;438471285.378152;Février 2019;sig.territoires.pdl_ctr.53;Laval Agglomération;Laval Agglomération;CTR;53034;53;2019_10327_00;48.067608658, -0.698304870899;02/2019;84
La création de points d'informations touristiques;Sarthe;INTERCOMMUNALE;19I08920;19I03413;51142;21000;21000;72124;COMMUNAUTE DE COMMUNES DE L OREE DE BERCE BELINOIS;2019-09-27;00049299;0;Pays du Mans;55;211770.96933046;72;515795064.742766;;sig.territoires.pdl_ctr.55;Pays du Mans;Pays du Mans;CTR;72124;72;2019_10366;47.8249669123, 0.284900847455;;89
L'animation territoriale PCAET;Sarthe;INTERCOMMUNALE;19I08921;19I03413;130000;65000;65000;72181;SYNDICAT MIXTE DU PAYS DU MANS;2019-09-27;00049300;65000;Pays du Mans;55;211770.96933046;72;515795064.742766;;sig.territoires.pdl_ctr.55;Pays du Mans;Pays du Mans;CTR;72181;72;2019_10367;47.9885256718, 0.200030493539;;89
La création d'une unité de méthanisation sur la station d'épuration de la Chauvinière;Sarthe;LE MANS;19I08899;19I04948;5000000;300000;300000;72181;LE MANS METROPOLE COMMUNAUTE URBAINE;2019-09-27;00049179;300000;CU Le Mans Métropole;20;141570.43537983;72;268048561.841433;Juin 2019;sig.territoires.pdl_ctr.20;CU Le Mans Métropole;CU Le Mans Métropole;CDM;72181;72;2019_10337;47.9885256718, 0.200030493539;06/2019;91
La construction de halles commerçantes;Loire-Atlantique;MASSERAC;19I09034;19I06781;83333;25000;25000;44092;COMMUNE DE MASSERAC;2019-09-27;00048995;0;Redon Bretagne Sud;58;222098.45592879;44;975206076.430979;Juillet 2019;sig.territoires.pdl_ctr.58;Redon Bretagne Sud;Redon Bretagne Sud;CTR;44092;44;2019_11481;47.6758102411, -1.90458344966;07/2019;136
Les travaux d'aménagement, de mise en sécurité et de mise en valeur de l'allée de la Loire à Rochefort;Maine-et-Loire;ROCHEFORT SUR LOIRE;19I10534;17I08581;125709;47475;47475;49259;CC LOIRE LAYON AUBANCE;2019-11-15;00051819;0;Loire Layon Aubance;29;220718.82914478;49;613435516.735679;Septembre 2017;sig.territoires.pdl_ctr.29;Loire Layon Aubance;Loire Layon Aubance;CTR;49259;49;2019_15594_00;47.3508366008, -0.65047354418;09/2017;121
La rénovation de la  salle des fêtes;Mayenne;LOIRON-RUILLE;19I10545;18I00770;251570;43190;43190;53137;COMMUNE DE LOIRON RUILLE;2019-11-15;00049680;43190;Pays de Loiron;63;104558.05453473;53;256504826.222709;Février 2018;sig.territoires.pdl_ctr.63;Pays de Loiron;Pays de Loiron;CTR;53137;53;2019_15289;48.0630179288, -0.919282481771;02/2018;80
La rénovation du bâtiment cantine/garderie;Mayenne;BOURGON;19I10546;18I00770;89771;24000;24000;53040;COMMUNE DE BOURGON;2019-11-15;00051306;24000;Pays de Loiron;63;104558.05453473;53;256504826.222709;Février 2018;sig.territoires.pdl_ctr.63;Pays de Loiron;Pays de Loiron;CTR;53040;53;2019_15290;48.1603649988, -1.04536225795;02/2018;80
Animation de la démarche Cit'ergie;Loire-Atlantique;NOZAY;19I10736;18I03759;57000;45000;45000;44113;COMMUNAUTE DE COMMUNES REGION DE NOZAY;2019-11-15;00052109;45000;Région de Nozay;23;98766.52204624;44;275618396.875015;Avril 2018;sig.territoires.pdl_ctr.23;Région de Nozay;Région de Nozay;CTR;44113;44;2019_15544;47.5728858483, -1.60097664616;04/2018;130
L'élaboration du Plan Climat Air Energie Territorial;;;19I10842;18I07459;70837;49756;49756;;COMMUNAUTE DE COMMUNES SUD VENDEE LITTORAL;2019-11-15;85000531;;Sud Vendée Littoral;48;297801.82823589;85;950717267.472634;Juillet 2018;sig.territoires.pdl_ctr.48;CC Sud Vendée Littoral;Sud Vendée Littoral;CTR;;;2019_15811_00;;07/2018;106
Les travaux d'aménagement et de sécurité routière des rue JB. Robin et G. Landais;Mayenne;AHUILLE;19I10551;19I00770;376500;50956;50956;53001;COMMUNE D AHUILLE;2019-11-15;00049897;0;Laval Agglomération;53;160270.39281569;53;438471285.378152;Février 2019;sig.territoires.pdl_ctr.53;Laval Agglomération;Laval Agglomération;CTR;53001;53;2019_15300_00;48.0242749675, -0.872848003304;02/2019;84
La construction d'une salle polyvalente;Vendée;BOUILLE COURDAULT;19I10845;19I00773;851980;60000;60000;85028;COMMUNE DE BOUILLE COURDAULT;2019-11-15;85000533;0;Vendée Sèvre Autise;22;164911.17006129;85;300390165.394669;Février 2019;sig.territoires.pdl_ctr.22;Communauté de communes de Vendée Sèvre Autise;Vendée Sèvre Autise;CTR;85028;85;2019_15815;46.3847932448, -0.684917815779;02/2019;109
L'aménagement des allées du cimetière;Loire-Atlantique;BLAIN;20I02230;17I04912;47700;36473;36473;44015;COMMUNE DE BLAIN;2020-02-14;00052435;;Région de Blain;12;104466.22577119;44;214288660.02636;Mai 2017;sig.territoires.pdl_ctr.12;Communauté de communes de la Région de Blain;Région de Blain;CTR;44015;44;2020_00913_00;47.4628210409, -1.76789479614;05/2017;112
La réalisation d'une épicerie sociale;Loire-Atlantique;BLAIN;20I02232;17I04912;83333;14575;14575;44015;COMMUNE DE BLAIN;2020-02-14;00052437;;Région de Blain;12;104466.22577119;44;214288660.02636;Mai 2017;sig.territoires.pdl_ctr.12;Communauté de communes de la Région de Blain;Région de Blain;CTR;44015;44;2020_00915_00;47.4628210409, -1.76789479614;05/2017;112
La construction d'une école de musique avec chaufferie bois à Châteauneuf-sur-Sarthe;Maine-et-Loire;CHATEAUNEUF SUR SARTHE;20I02271;18I02797;1147101;800000;800000;49080;CC DES VALLEES DU HAUT ANJOU;2020-02-14;00053965;238054;Vallées du Haut-Anjou;30;216414.19412737;49;658684300.095436;Avril 2018;sig.territoires.pdl_ctr.30;Vallées du Haut-Anjou;Vallées du Haut-Anjou;CTR;49080;49;2020_01081;47.6841712906, -0.495930395639;04/2018;124
L'implantation et l'aménagement de terrains multi-sports;Maine-et-Loire;LE LION D'ANGERS;20I02272;18I02797;693903;429699;429699;49176;CC DES VALLEES DU HAUT ANJOU;2020-02-14;00053972;0;Vallées du Haut-Anjou;30;216414.19412737;49;658684300.095436;Avril 2018;sig.territoires.pdl_ctr.30;Vallées du Haut-Anjou;Vallées du Haut-Anjou;CTR;49176;49;2020_01083_00;47.6307737346, -0.749881925184;04/2018;124
La création du Parc d'Activité La Mine;;;20I02289;18I04046;418995;190000;148333;;COMMUNAUTE DE COMMUNES DE L ERNEE;2020-02-14;00052760;;L'Ernée;8;134446.67084716;53;485109090.730026;Avril 2018;sig.territoires.pdl_ctr.8;L'Ernée;L'Ernée;CTR;;;2020_01288;;04/2018;82
La restructuration du quartier de la Croix-Verte;;;20I02280;18I05643;1802823;297580;297580;;COMMUNE DE SAUMUR;2020-02-14;00052887;;Saumur Val de Loire;28;222936.82254543;49;1244790494.62575;Mai 2018;sig.territoires.pdl_ctr.28;Saumur Val de Loire;Saumur Val de Loire;CTR;;;2020_01106_00;;05/2018;123
La rénovation thermique de la mairie;Vendée;SAINT MARTIN DES NOYERS;20I02253;18I06678;216038;22630;22630;85246;COMMUNE DE SAINT MARTIN DES NOYERS;2020-02-14;85000586;22630;Pays de Chantonnay;44;130417.27851046;85;319474713.690402;Avril 2018;sig.territoires.pdl_ctr.44;Pays de Chantonnay;Pays de Chantonnay;CTR;85246;85;2020_01758;46.7239461187, -1.20379080965;04/2018;103
La réhabilitation du groupe scolaire Jacqueline AURIOL;Loire-Atlantique;SAINT-HERBLAIN;20I02262;18I06834;2973917;338346;338346;44162;COMMUNE DE SAINT HERBLAIN;2020-02-14;00054040;52763;Nantes Métropole;6;181264.28832122;44;534212730.160229;Juillet 2018;sig.territoires.pdl_ctr.6;Nantes Métropole;Nantes Métropole;CDM;44162;44;2020_01012_00;47.2243762412, -1.63434818692;07/2018;132
La construction de la nouvelle déchetterie d'Ambrières-les-Vallées;Mayenne;AMBRIERES LES VALLEES;20I02287;18I07457;476993;175000;175000;53003;COMMUNAUTE DE COMMUNES DU BOCAGE MAYENNAIS;2020-02-14;00054502;0;Bocage Mayennais;9;189865.43542796;53;529745022.271069;Juillet 2018;sig.territoires.pdl_ctr.9;Communauté de communes du Bocage Mayennais;Bocage Mayennais;CTR;53003;53;2020_01286;48.4227200634, -0.624160085775;07/2018;83
La rénovation de la salle polyvalente;Sarthe;LE GREZ;20I02300;18I09952;34551;17435;17435;72145;COMMUNE DE LE GREZ;2020-02-14;00052546;0;;;;;;;;;;;72145;72;2020_01327;48.189214849, -0.15566536803;;
L'extension du bâtiment 50 site Quartier Ferrié;Mayenne;LAVAL;20I02314;19I00770;189009;150000;150000;53130;CCAS VILLE DE LAVAL;2020-02-14;00054535;0;Laval Agglomération;53;160270.39281569;53;438471285.378152;Février 2019;sig.territoires.pdl_ctr.53;Laval Agglomération;Laval Agglomération;CTR;53130;53;2020_02452;48.0608565468, -0.766005687142;02/2019;84
La construction d'ateliers-relais sur les Communes de Plessé et Guémené-Penfao :;;;20I02244;19I06781;879825;149430;149430;;CA REDON AGGLOMERATION;2020-02-14;00052705;;Redon Bretagne Sud;58;222098.45592879;44;975206076.430979;Juillet 2019;sig.territoires.pdl_ctr.58;Redon Bretagne Sud;Redon Bretagne Sud;CTR;;;2020_00931_00;;07/2019;136
Les travaux de mise aux normes sanitaires et accessibilité du petit bassin d'apprentissage et des vestiaires de la piscine du Louet;Maine-et-Loire;ROCHEFORT SUR LOIRE;20I04489;17I08581;216928;40000;40000;49259;ROCHEFORT SUR LOIRE;2020-04-30;00055538;0;Loire Layon Aubance;29;220718.82914478;49;613435516.735679;Septembre 2017;sig.territoires.pdl_ctr.29;Loire Layon Aubance;Loire Layon Aubance;CTR;49259;49;2020_04368;47.3508366008, -0.65047354418;09/2017;121
La création du pôle sportif du Complexe Aquatique Patinoire (nouvelle tranche);Vendée;LA ROCHE-SUR-YON;20I04633;17I09579;8100000;685224;685224;85191;LA ROCHE SUR YON AGGLOMERATION;2020-04-30;85000609;0;La Roche Sur Yon Agglomération;16;155815.38916483;85;500779101.845023;Novembre 2017;sig.territoires.pdl_ctr.16;La Roche Sur Yon Agglomération;La Roche Sur Yon Agglomération;CTR;85191;85;2020_04372;46.6675261644, -1.4077954093;11/2017;96
Le renouvellement de la chaudière de la mairie et du logement attenant;Mayenne;LAUNAY VILLIERS;20I04617;18I00770;27452;9151;9151;53129;LAUNAY VILLIERS;2020-04-30;00054917;0;Pays de Loiron;63;104558.05453473;53;256504826.222709;Février 2018;sig.territoires.pdl_ctr.63;Pays de Loiron;Pays de Loiron;CTR;53129;53;2020_04880_00;48.1329122905, -1.0116324097;02/2018;80
La création d'une liaison douce entre Vivy et Neuillé;Maine-et-Loire;VIVY;20I04487;18I05643;174403;43600;;49378;COMMUNE DE VIVY;2020-04-30;00055283;43600;Saumur Val de Loire;28;222936.82254543;49;1244790494.62575;Mai 2018;sig.territoires.pdl_ctr.28;Saumur Val de Loire;Saumur Val de Loire;CTR;49378;49;2020_04358;47.3228206835, -0.0669608639815;05/2018;123
L'élaboration du programme local de l'habitat (PLH);Maine-et-Loire;SEGRE EN ANJOU BLEU;20I04713;20I03659;78480;52320;52320;49331;CC ANJOU BLEU COMMUNAUTE;2020-04-30;00054870;0;;;;;;;;;;;49331;49;2020_07099;47.7016654227, -0.863354104119;;
Les travaux de rénovation énergétique de la mairie;Maine-et-Loire;CHAMPTOCE SUR LOIRE;20I05934;17I08581;216519;56289;56289;49068;MAIRIE DE CHAMPTOCE SUR LOIRE;2020-05-29;00057616;56289;Loire Layon Aubance;29;220718.82914478;49;613435516.735679;Septembre 2017;sig.territoires.pdl_ctr.29;Loire Layon Aubance;Loire Layon Aubance;CTR;49068;49;2020_06897;47.4299165836, -0.874606992873;09/2017;121
La création d'un terrain de football en gazon synthétique à Saint Macaire en Mauges;Maine-et-Loire;SEVREMOINE;20I05937;17I08582;1133968;451623;451623;49301;COMMUNE DE SEVREMOINE;2020-05-29;00057596;0;Mauges Communauté;5;274965.40485114;49;1318044533.54153;Septembre 2017;sig.territoires.pdl_ctr.5;Mauges Communauté;Mauges Communauté;CTR;49301;49;2020_06901;47.1256560392, -0.998341815021;09/2017;122
